Workbook

Sheet Input
A1: Use Incremental Input | D1: TRUE
A3: Incremental Input Values | N3: Cumulative Input Values | AA3: Incrementa Input Values Implied by Cumulative Input Values
A4: Period | B4: Dev | C4: 1 | D4: 2 | E4: 3 | F4: 4 | G4: 5 | H4: 6 | I4: 7 | J4: 8 | K4: 9 | L4: 10 | N4: Period | O4: Dev | P4: 1 | Q4: 2 | R4: 3 | S4: 4 | T4: 5 | U4: 6 | V4: 7 | W4: 8 | X4: 9 | Y4: 10 | AA4: Period | AB4: Dev | AC4: 1 | AD4: 2 | AE4: 3 | AF4: 4 | AG4: 5 | AH4: 6 | AI4: 7 | AJ4: 8 | AK4: 9 | AL4: 10
A5: Exp | N5: Exp | AA5: Exp
A6: 1 | C6: 2823701 | D6: 2536475 | E6: 1125533 | F6: 601484 | G6: 321420 | H6: 157915 | I6: 79395 | J6: 38016 | K6: 18838 | L6: 9836 | N6: 1 | O6: 0 | AA6: 1 | AC6: =IF(UsingIncInput,"",IF(InTriangle,IF(ISNUMBER(RawCumInput),IF(ISNUMBER(RawCumShifted),RawCumInput-RawCumShifted,""),""),"")) -> 
A7: 2 | C7: 3181381 | D7: 2723043 | E7: 1226151 | F7: 633645 | G7: 321623 | H7: 154692 | I7: 74083 | J7: 39773 | K7: 17525 | N7: 2 | O7: 0 | AA7: 2
A8: 3 | C8: 3188314 | D8: 2682586 | E8: 1196454 | F8: 622922 | G8: 297869 | H8: 143653 | I8: 75744 | J8: 40527 | N8: 3 | O8: 0 | AA8: 3
A9: 4 | C9: 3557266 | D9: 2907921 | E9: 1288319 | F9: 640096 | G9: 311520 | H9: 159719 | I9: 82672 | N9: 4 | O9: 0 | AA9: 4
A10: 5 | C10: 3864567 | D10: 3076096 | E10: 1285639 | F10: 633827 | G10: 315839 | H10: 162529 | N10: 5 | O10: 0 | AA10: 5
A11: 6 | C11: 4254977 | D11: 3184599 | E11: 1282801 | F11: 673810 | G11: 358060 | N11: 6 | O11: 0 | AA11: 6
A12: 7 | C12: 4416059 | D12: 3085207 | E12: 1278943 | F12: 675913 | N12: 7 | O12: 0 | AA12: 7
A13: 8 | C13: 4364315 | D13: 2930960 | E13: 1284297 | N13: 8 | O13: 0 | AA13: 8
A14: 9 | C14: 4256384 | D14: 2845630 | N14: 9 | O14: 0 | AA14: 9
A15: 10 | C15: 4208129 | N15: 10 | O15: 0 | AA15: 10
A17: Validated Incremental Data Values (Positive Incrementals Only) | N17: Valid Input | AA17: Mask For Triangle
A18: Period | B18: Dev | C18: 1 | D18: 2 | E18: 3 | F18: 4 | G18: 5 | H18: 6 | I18: 7 | J18: 8 | K18: 9 | L18: 10 | N18: Period | O18: Dev | P18: 1 | Q18: 2 | R18: 3 | S18: 4 | T18: 5 | U18: 6 | V18: 7 | W18: 8 | X18: 9 | Y18: 10 | AA18: Period | AB18: Dev | AC18: 1 | AD18: 2 | AE18: 3 | AF18: 4 | AG18: 5 | AH18: 6 | AI18: 7 | AJ18: 8 | AK18: 9 | AL18: 10
A19: Exp | N19: Exp | AA19: Exp
A20: 1 | C20: =IF(HasValidInput,IF(UsingIncInput,RawIncInput,IncFromCumInput),"") -> 2823701 | D20: 2536475 | E20: 1125533 | F20: 601484 | G20: 321420 | H20: 157915 | I20: 79395 | J20: 38016 | K20: 18838 | L20: 9836 | N20: 1 | P20: =IF(InTriangle,IF(UsingIncInput,IF(ISNUMBER(RawIncInput),RawIncInput>0,FALSE),IF(ISNUMBER(IncFromCumInput),IncFromCumInput>0,FALSE)),FALSE) -> TRUE | Q20: TRUE | R20: TRUE | S20: TRUE | T20: TRUE | U20: TRUE | V20: TRUE | W20: TRUE | X20: TRUE | Y20: TRUE | AA20: 1 | AC20: TRUE | AD20: TRUE | AE20: TRUE | AF20: TRUE | AG20: TRUE | AH20: TRUE | AI20: TRUE | AJ20: TRUE | AK20: TRUE | AL20: TRUE
A21: 2 | C21: 3181381 | D21: 2723043 | E21: 1226151 | F21: 633645 | G21: 321623 | H21: 154692 | I21: 74083 | J21: 39773 | K21: 17525 | N21: 2 | P21: TRUE | Q21: TRUE | R21: TRUE | S21: TRUE | T21: TRUE | U21: TRUE | V21: TRUE | W21: TRUE | X21: TRUE | Y21: FALSE | AA21: 2 | AC21: TRUE | AD21: TRUE | AE21: TRUE | AF21: TRUE | AG21: TRUE | AH21: TRUE | AI21: TRUE | AJ21: TRUE | AK21: TRUE | AL21: FALSE
A22: 3 | C22: 3188314 | D22: 2682586 | E22: 1196454 | F22: 622922 | G22: 297869 | H22: 143653 | I22: 75744 | J22: 40527 | N22: 3 | P22: TRUE | Q22: TRUE | R22: TRUE | S22: TRUE | T22: TRUE | U22: TRUE | V22: TRUE | W22: TRUE | X22: FALSE | Y22: FALSE | AA22: 3 | AC22: TRUE | AD22: TRUE | AE22: TRUE | AF22: TRUE | AG22: TRUE | AH22: TRUE | AI22: TRUE | AJ22: TRUE | AK22: FALSE | AL22: FALSE
A23: 4 | C23: 3557266 | D23: 2907921 | E23: 1288319 | F23: 640096 | G23: 311520 | H23: 159719 | I23: 82672 | N23: 4 | P23: TRUE | Q23: TRUE | R23: TRUE | S23: TRUE | T23: TRUE | U23: TRUE | V23: TRUE | W23: FALSE | X23: FALSE | Y23: FALSE | AA23: 4 | AC23: TRUE | AD23: TRUE | AE23: TRUE | AF23: TRUE | AG23: TRUE | AH23: TRUE | AI23: TRUE | AJ23: FALSE | AK23: FALSE | AL23: FALSE
A24: 5 | C24: 3864567 | D24: 3076096 | E24: 1285639 | F24: 633827 | G24: 315839 | H24: 162529 | N24: 5 | P24: TRUE | Q24: TRUE | R24: TRUE | S24: TRUE | T24: TRUE | U24: TRUE | V24: FALSE | W24: FALSE | X24: FALSE | Y24: FALSE | AA24: 5 | AC24: TRUE | AD24: TRUE | AE24: TRUE | AF24: TRUE | AG24: TRUE | AH24: TRUE | AI24: FALSE | AJ24: FALSE | AK24: FALSE | AL24: FALSE
A25: 6 | C25: 4254977 | D25: 3184599 | E25: 1282801 | F25: 673810 | G25: 358060 | N25: 6 | P25: TRUE | Q25: TRUE | R25: TRUE | S25: TRUE | T25: TRUE | U25: FALSE | V25: FALSE | W25: FALSE | X25: FALSE | Y25: FALSE | AA25: 6 | AC25: TRUE | AD25: TRUE | AE25: TRUE | AF25: TRUE | AG25: TRUE | AH25: FALSE | AI25: FALSE | AJ25: FALSE | AK25: FALSE | AL25: FALSE
A26: 7 | C26: 4416059 | D26: 3085207 | E26: 1278943 | F26: 675913 | N26: 7 | P26: TRUE | Q26: TRUE | R26: TRUE | S26: TRUE | T26: FALSE | U26: FALSE | V26: FALSE | W26: FALSE | X26: FALSE | Y26: FALSE | AA26: 7 | AC26: TRUE | AD26: TRUE | AE26: TRUE | AF26: TRUE | AG26: FALSE | AH26: FALSE | AI26: FALSE | AJ26: FALSE | AK26: FALSE | AL26: FALSE
A27: 8 | C27: 4364315 | D27: 2930960 | E27: 1284297 | N27: 8 | P27: TRUE | Q27: TRUE | R27: TRUE | S27: FALSE | T27: FALSE | U27: FALSE | V27: FALSE | W27: FALSE | X27: FALSE | Y27: FALSE | AA27: 8 | AC27: TRUE | AD27: TRUE | AE27: TRUE | AF27: FALSE | AG27: FALSE | AH27: FALSE | AI27: FALSE | AJ27: FALSE | AK27: FALSE | AL27: FALSE
A28: 9 | C28: 4256384 | D28: 2845630 | N28: 9 | P28: TRUE | Q28: TRUE | R28: FALSE | S28: FALSE | T28: FALSE | U28: FALSE | V28: FALSE | W28: FALSE | X28: FALSE | Y28: FALSE | AA28: 9 | AC28: TRUE | AD28: TRUE | AE28: FALSE | AF28: FALSE | AG28: FALSE | AH28: FALSE | AI28: FALSE | AJ28: FALSE | AK28: FALSE | AL28: FALSE
A29: 10 | C29: 4208129 | N29: 10 | P29: TRUE | Q29: FALSE | R29: FALSE | S29: FALSE | T29: FALSE | U29: FALSE | V29: FALSE | W29: FALSE | X29: FALSE | Y29: FALSE | AA29: 10 | AC29: TRUE | AD29: FALSE | AE29: FALSE | AF29: FALSE | AG29: FALSE | AH29: FALSE | AI29: FALSE | AJ29: FALSE | AK29: FALSE | AL29: FALSE
A35: Incremental Input Values | D35: Taylor & Ashe (1983)
A36: Period | B36: Dev | C36: 1 | D36: 2 | E36: 3 | F36: 4 | G36: 5 | H36: 6 | I36: 7 | J36: 8 | K36: 9 | L36: 10
A37: Exp
A38: 1 | C38: 357848 | D38: 766940 | E38: 610542 | F38: 482940 | G38: 527326 | H38: 574398 | I38: 146342 | J38: 139950 | K38: 227229 | L38: 67948
A39: 2 | C39: 352118 | D39: 884021 | E39: 933894 | F39: 1183289 | G39: 445745 | H39: 320996 | I39: 527804 | J39: 266172 | K39: 425046
A40: 3 | C40: 290507 | D40: 1001799 | E40: 926219 | F40: 1016654 | G40: 750816 | H40: 146923 | I40: 495992 | J40: 280405
A41: 4 | C41: 310608 | D41: 1108250 | E41: 776189 | F41: 1562400 | G41: 272482 | H41: 352053 | I41: 206286
A42: 5 | C42: 443160 | D42: 693190 | E42: 991983 | F42: 769488 | G42: 504851 | H42: 470639
A43: 6 | C43: 396132 | D43: 937085 | E43: 847498 | F43: 805037 | G43: 705960
A44: 7 | C44: 440832 | D44: 847631 | E44: 1131398 | F44: 1063269
A45: 8 | C45: 359480 | D45: 1061648 | E45: 1443370
A46: 9 | C46: 376686 | D46: 986608
A47: 10 | C47: 344014
A50: Incremental Input Values | D50: Xie & Wu (2015)
A51: Period | B51: Dev | C51: 1 | D51: 2 | E51: 3 | F51: 4 | G51: 5 | H51: 6 | I51: 7 | J51: 8 | K51: 9 | L51: 10
A52: Exp
A53: 1 | C53: 2823701 | D53: 2536475 | E53: 1125533 | F53: 601484 | G53: 321420 | H53: 157915 | I53: 79395 | J53: 38016 | K53: 18838 | L53: 9836
A54: 2 | C54: 3181381 | D54: 2723043 | E54: 1226151 | F54: 633645 | G54: 321623 | H54: 154692 | I54: 74083 | J54: 39773 | K54: 17525
A55: 3 | C55: 3188314 | D55: 2682586 | E55: 1196454 | F55: 622922 | G55: 297869 | H55: 143653 | I55: 75744 | J55: 40527
A56: 4 | C56: 3557266 | D56: 2907921 | E56: 1288319 | F56: 640096 | G56: 311520 | H56: 159719 | I56: 82672
A57: 5 | C57: 3864567 | D57: 3076096 | E57: 1285639 | F57: 633827 | G57: 315839 | H57: 162529
A58: 6 | C58: 4254977 | D58: 3184599 | E58: 1282801 | F58: 673810 | G58: 358060
A59: 7 | C59: 4416059 | D59: 3085207 | E59: 1278943 | F59: 675913
A60: 8 | C60: 4364315 | D60: 2930960 | E60: 1284297
A61: 9 | C61: 4256384 | D61: 2845630
A62: 10 | C62: 4208129
A65: Incremental Input Values | D65: Alaska - WC
A66: Period | B66: Dev | C66: 1 | D66: 2 | E66: 3 | F66: 4 | G66: 5 | H66: 6 | I66: 7 | J66: 8 | K66: 9 | L66: 10
A67: Exp
A68: 1 | C68: 4608 | D68: 4489 | E68: 2593 | F68: 1718 | G68: 1285 | H68: 620 | I68: 401 | J68: 1235 | K68: 536 | L68: 408
A69: 2 | C69: 3873 | D69: 4033 | E69: 2197 | F69: 1526 | G69: 847 | H69: 870 | I69: 999 | J69: 964 | K69: 526
A70: 3 | C70: 4488 | D70: 5278 | E70: 2811 | F70: 1928 | G70: 877 | H70: 817 | I70: 488 | J70: 480
A71: 4 | C71: 4302 | D71: 4264 | E71: 2366 | F71: 1446 | G71: 979 | H71: 785 | I71: 485
A72: 5 | C72: 5152 | D72: 5205 | E72: 2336 | F72: 1376 | G72: 681 | H72: 656
A73: 6 | C73: 7496 | D73: 5898 | E73: 3044 | F73: 1602 | G73: 1374
A74: 7 | C74: 7486 | D74: 7351 | E74: 3558 | F74: 1900
A75: 8 | C75: 7401 | D75: 5960 | E75: 3189
A76: 9 | C76: 7772 | D76: 7200
A77: 10 | C77: 6814
A80: Incremental Input Values | D80: Sample Medium PAL
A81: Period | B81: Dev | C81: 1 | D81: 2 | E81: 3 | F81: 4 | G81: 5 | H81: 6 | I81: 7 | J81: 8 | K81: 9 | L81: 10
A82: Exp
A83: 1 | C83: 69458 | D83: 53502 | E83: 34208 | F83: 20841 | G83: 8630 | H83: 3902 | I83: 1500 | J83: 1642 | K83: 77 | L83: 595
A84: 2 | C84: 52951 | D84: 45262 | E84: 32176 | F84: 21315 | G84: 11022 | H84: 6370 | I84: 1146 | J84: 792 | K84: 1337
A85: 3 | C85: 46059 | D85: 42425 | E85: 26585 | F85: 17150 | G85: 10056 | H85: 4463 | I85: 2801 | J85: 513
A86: 4 | C86: 42297 | D86: 39254 | E86: 23614 | F86: 14490 | G86: 8403 | H86: 3363 | I86: 1945
A87: 5 | C87: 41479 | D87: 32614 | E87: 26962 | F87: 16208 | G87: 10533 | H87: 2266
A88: 6 | C88: 36376 | D88: 34240 | E88: 20446 | F88: 16444 | G88: 8338
A89: 7 | C89: 37714 | D89: 35011 | E89: 28197 | F89: 15498
A90: 8 | C90: 33457 | D90: 32240 | E90: 22166
A91: 9 | C91: 33172 | D91: 33722
A92: 10 | C92: 37784
A95: Incremental Input Values | D95: Sample Medium CMP
A96: Period | B96: Dev | C96: 1 | D96: 2 | E96: 3 | F96: 4 | G96: 5 | H96: 6 | I96: 7 | J96: 8 | K96: 9 | L96: 10
A97: Exp
A98: 1 | C98: 241486 | D98: 161157 | E98: 41456 | F98: 44928 | G98: 25187 | H98: 15496 | I98: 7099 | J98: 5292 | K98: 3512 | L98: 3583
A99: 2 | C99: 382020 | D99: 267774 | E99: 70867 | F99: 41683 | G99: 22497 | H99: 28605 | I99: 4144 | J99: 5969 | K99: 4656
A100: 3 | C100: 256101 | D100: 208198 | E100: 62943 | F100: 33392 | G100: 27522 | H100: 23199 | I100: 11700 | J100: 31442
A101: 4 | C101: 281384 | D101: 190936 | E101: 65389 | F101: 39091 | G101: 25360 | H101: 9877 | I101: 12437
A102: 5 | C102: 452892 | D102: 252514 | E102: 63459 | F102: 48364 | G102: 31437 | H102: 22040
A103: 6 | C103: 257750 | D103: 163351 | E103: 82750 | F103: 48972 | G103: 50567
A104: 7 | C104: 296436 | D104: 181029 | E104: 64858 | F104: 54173
A105: 8 | C105: 431112 | D105: 252447 | E105: 101161
A106: 9 | C106: 283067 | D106: 349872
A107: 10 | C107: 228050
A110: Incremental Input Values | D110: Sample Large MedMal - A
A111: Period | B111: Dev | C111: 1 | D111: 2 | E111: 3 | F111: 4 | G111: 5 | H111: 6 | I111: 7 | J111: 8 | K111: 9 | L111: 10
A112: Exp
A113: 1 | C113: 258 | D113: 2288 | E113: 4163 | F113: 7613 | G113: 12031 | H113: 11166 | I113: 10132 | J113: 4708 | K113: 3638 | L113: 2706
A114: 2 | C114: 548 | D114: 4097 | E114: 6614 | F114: 15089 | G114: 10116 | H114: 7213 | I114: 7704 | J114: 4590 | K114: 4148
A115: 3 | C115: 1113 | D115: 4427 | E115: 10397 | F115: 14293 | G115: 10057 | H115: 13277 | I115: 8781 | J115: 9013
A116: 4 | C116: 976 | D116: 6633 | E116: 11495 | F116: 18444 | G116: 20880 | H116: 9381 | I116: 10451
A117: 5 | C117: 914 | D117: 9590 | E117: 12137 | F117: 12673 | G117: 13664 | H117: 12923
A118: 6 | C118: 1242 | D118: 7363 | E118: 10155 | F118: 13544 | G118: 18686
A119: 7 | C119: 2087 | D119: 9479 | E119: 16579 | F119: 16563
A120: 8 | C120: 2596 | D120: 12700 | E120: 18019
A121: 9 | C121: 3196 | D121: 9791
A122: 10 | C122: 4039
A125: Incremental Input Values | D125: Sample Large MedMal - B
A126: Period | B126: Dev | C126: 1 | D126: 2 | E126: 3 | F126: 4 | G126: 5 | H126: 6 | I126: 7 | J126: 8 | K126: 9 | L126: 10
A127: Exp
A128: 1 | C128: 2716 | D128: 21860 | E128: 19414 | F128: 15732 | G128: 11297 | H128: 5335 | I128: 438 | J128: 415 | K128: 381 | L128: 68
A129: 2 | C129: 3835 | D129: 21323 | E129: 19987 | F129: 15186 | G129: 7126 | H129: 3364 | I129: 948 | J129: 316 | K129: -50
A130: 3 | C130: 4838 | D130: 23127 | E130: 22908 | F130: 15527 | G130: 5475 | H130: 2880 | I130: 421 | J130: 74
A131: 4 | C131: 4456 | D131: 29785 | E131: 30496 | F131: 14653 | G131: 5075 | H131: 2910 | I131: 1744
A132: 5 | C132: 5970 | D132: 30110 | E132: 32188 | F132: 13515 | G132: 4293 | H132: 1091
A133: 6 | C133: 9398 | D133: 36812 | E133: 30835 | F133: 9253 | G133: 5498
A134: 7 | C134: 6181 | D134: 33023 | E134: 30802 | F134: 12379
A135: 8 | C135: 7828 | D135: 34528 | E135: 28373
A136: 9 | C136: 8854 | D136: 42546
A137: 10 | C137: 7818
A140: Incremental Input Values | D140: Sample Large GL - A
A141: Period | B141: Dev | C141: 1 | D141: 2 | E141: 3 | F141: 4 | G141: 5 | H141: 6 | I141: 7 | J141: 8 | K141: 9 | L141: 10
A142: Exp
A143: 1 | C143: 67641 | D143: 108301 | E143: 98195 | F143: 96212 | G143: 68927 | H143: 77375 | I143: 64443 | J143: 43850 | K143: 22621 | L143: 21495
A144: 2 | C144: 62463 | D144: 138727 | E144: 128724 | F144: 161519 | G144: 104053 | H144: 237688 | I144: 55113 | J144: 52052 | K144: 44884
A145: 3 | C145: 45902 | D145: 105458 | E145: 140400 | F145: 137795 | G145: 129508 | H145: 109144 | I145: 62639 | J145: 38200
A146: 4 | C146: 46512 | D146: 118497 | E146: 156581 | F146: 268859 | G146: 258671 | H146: 148893 | I146: 105465
A147: 5 | C147: 42217 | D147: 118143 | E147: 187731 | F147: 185476 | G147: 145113 | H147: 190192
A148: 6 | C148: 32855 | D148: 116096 | E148: 143389 | F148: 170335 | G148: 117016
A149: 7 | C149: 47439 | D149: 138701 | E149: 145228 | F149: 127893
A150: 8 | C150: 59858 | D150: 155475 | E150: 136586
A151: 9 | C151: 42038 | D151: 141539
A152: 10 | C152: 50094
A155: Incremental Input Values | D155: Sample Large GL - B
A156: Period | B156: Dev | C156: 1 | D156: 2 | E156: 3 | F156: 4 | G156: 5 | H156: 6 | I156: 7 | J156: 8 | K156: 9 | L156: 10
A157: Exp
A158: 1 | C158: 3962 | D158: 22325 | E158: 26713 | F158: 39637 | G158: 13699 | H158: 10341 | I158: 3939 | J158: 3161 | K158: 2079 | L158: 2064
A159: 2 | C159: 6066 | D159: 22231 | E159: 31838 | F159: 23890 | G159: 19061 | H159: 14446 | I159: 4848 | J159: 3734 | K159: 5085
A160: 3 | C160: 3751 | D160: 27752 | E160: 36613 | F160: 32308 | G160: 12364 | H160: 10289 | I160: 6004 | J160: 3432
A161: 4 | C161: 3336 | D161: 42852 | E161: 49612 | F161: 39363 | G161: 17983 | H161: 12284 | I161: 13032
A162: 5 | C162: 6647 | D162: 42672 | E162: 45541 | F162: 34446 | G162: 18929 | H162: 17241
A163: 6 | C163: 8056 | D163: 73031 | E163: 66645 | F163: 45543 | G163: 23924
A164: 7 | C164: 9720 | D164: 55619 | E164: 64964 | F164: 56447
A165: 8 | C165: 7171 | D165: 75651 | E165: 77480
A166: 9 | C166: 16696 | D166: 72104
A167: 10 | C167: 21098
A170: Incremental Input Values | D170: Sample Medium GL - A | I170: Split-Linear Fails
A171: Period | B171: Dev | C171: 1 | D171: 2 | E171: 3 | F171: 4 | G171: 5 | H171: 6 | I171: 7 | J171: 8 | K171: 9 | L171: 10
A172: Exp
A173: 1 | C173: 979 | D173: 3298 | E173: 5730 | F173: 5031 | G173: 2592 | H173: 3474 | I173: 6865 | J173: 264 | K173: 833 | L173: 14
A174: 2 | C174: 140 | D174: 6435 | E174: 9933 | F174: 5045 | G174: 5673 | H174: 1404 | I174: 300 | J174: 55 | K174: 32
A175: 3 | C175: 87 | D175: 2792 | E175: 5753 | F175: 5128 | G175: 1340 | H175: 3084 | I175: 358 | J175: 614
A176: 4 | C176: 127 | D176: 4095 | E176: 13000 | F176: 6979 | G176: 1763 | H176: 2867 | I176: 567
A177: 5 | C177: 1316 | D177: 3462 | E177: 3853 | F177: 8139 | G177: 1412 | H177: 1523
A178: 6 | C178: 404 | D178: 8207 | E178: 6104 | F178: 4481 | G178: 3098
A179: 7 | C179: 151 | D179: 9995 | E179: 6054 | F179: 2811
A180: 8 | C180: 584 | D180: 6428 | E180: 3488
A181: 9 | C181: 1587 | D181: 4740
A182: 10 | C182: 1211
A185: Incremental Input Values | D185: Sample Medium GL - B
A186: Period | B186: Dev | C186: 1 | D186: 2 | E186: 3 | F186: 4 | G186: 5 | H186: 6 | I186: 7 | J186: 8 | K186: 9 | L186: 10
A187: Exp
A188: 1 | C188: 2552 | D188: 4708 | E188: 4233 | F188: 3566 | G188: 1911 | H188: 1498 | I188: 1405 | J188: 706 | K188: 986 | L188: 84
A189: 2 | C189: 3342 | D189: 4562 | E189: 8185 | F189: 6283 | G189: 3767 | H189: 2907 | I189: 1279 | J189: 976 | K189: 74
A190: 3 | C190: 4336 | D190: 8201 | E190: 9493 | F190: 6606 | G190: 5765 | H190: 2818 | I190: 1371 | J190: 1358
A191: 4 | C191: 5654 | D191: 6435 | E191: 8628 | F191: 9643 | G191: 3964 | H191: 2047 | I191: 2058
A192: 5 | C192: 4335 | D192: 6865 | E192: 8733 | F192: 7521 | G192: 5347 | H192: 3865
A193: 6 | C193: 8166 | D193: 7614 | E193: 8197 | F193: 9262 | G193: 4499
A194: 7 | C194: 5668 | D194: 6854 | E194: 9135 | F194: 8285
A195: 8 | C195: 5324 | D195: 9108 | E195: 9170
A196: 9 | C196: 6582 | D196: 8010
A197: 10 | C197: 7384
A200: Incremental Input Values | D200: Sample Large WC Insurer
A201: Period | B201: Dev | C201: 1 | D201: 2 | E201: 3 | F201: 4 | G201: 5 | H201: 6 | I201: 7 | J201: 8 | K201: 9 | L201: 10
A202: Exp
A203: 1 | C203: 364118.49 | D203: 330681.69 | E203: 235129.23 | F203: 157286.61 | G203: 78904.53 | H203: 52762.59 | I203: 15957.81 | J203: 3445.74 | K203: 2050.92 | L203: 1032.75
A204: 2 | C204: 442114.2 | D204: 380285.28 | E204: 267287.85 | F204: 203723.91 | G204: 127499.67 | H204: 43871.22 | I204: 27553.77 | J204: 5642.46 | K204: 3411.72
A205: 3 | C205: 528403.5 | D205: 475718.67 | E205: 344287.26 | F205: 250542.72 | G205: 112283.01 | H205: 50016.69 | I205: 12004.2 | J205: 14426.91
A206: 4 | C206: 566428.14 | D206: 540677.43 | E206: 360497.79 | F206: 211164.57 | G206: 129983.13 | H206: 47739.78 | I206: 17063.46
A207: 5 | C207: 587416.05 | D207: 507469.05 | E207: 383424.84 | F207: 214347.87 | G207: 119726.1 | H207: 45334.08
A208: 6 | C208: 585773.37 | D208: 535919.49 | E208: 331405.83 | F208: 222315.84 | G208: 128355.03
A209: 7 | C209: 538602.21 | D209: 426608.37 | E209: 295886.52 | F209: 195209.19
A210: 8 | C210: 535107.87 | D210: 451945.98 | E210: 345682.08
A211: 9 | C211: 541073.52 | D211: 527851.89
A212: 10 | C212: 555787.17
A215: Incremental Input Values | D215: Sample Large GL Insurer
A216: Period | B216: Dev | C216: 1 | D216: 2 | E216: 3 | F216: 4 | G216: 5 | H216: 6 | I216: 7 | J216: 8 | K216: 9 | L216: 10
A217: Exp
A218: 1 | C218: 645975.6277 | D218: 709954.1863 | E218: 854348.971 | F218: 647397.264 | G218: 444542.633 | H218: 425612.166 | I218: 222851.324 | J218: 105719.373 | K218: 145367.223 | L218: 101908.599
A219: 2 | C219: 380954.0368 | D219: 1055322.895 | E219: 830630.356 | F219: 422966.344 | G219: 1205626.355 | H219: 437059.298 | I219: 377493.735 | J219: 383051.938 | K219: 177546.547
A220: 3 | C220: 165758.8151 | D220: 1019268.626 | E220: 1077269.402 | F220: 833503.245 | G220: 653784.754 | H220: 435227.955 | I220: 377365.393 | J220: 223907.678
A221: 4 | C221: 218823.3554 | D221: 1077777.835 | E221: 977152.658 | F221: 1311375.345 | G221: 894914.961 | H221: 528725.206 | I221: 465427.849
A222: 5 | C222: 189778.541 | D222: 855395.453 | E222: 1082546.239 | F222: 877070.466 | G222: 962743.784 | H222: 727803.617
A223: 6 | C223: 361678.034 | D223: 1104640.833 | E223: 1238837.352 | F223: 1212255.721 | G223: 979921.886
A224: 7 | C224: 188756.74 | D224: 821522.999 | E224: 1086978.98 | F224: 1141884.735
A225: 8 | C225: 225852.5559 | D225: 769035.9987 | E225: 951864.3194
A226: 9 | C226: 226257.3272 | D226: 1017886.48
A227: 10 | C227: 349431.2317

Sheet 2d + 1 Model
A1: Variance Functions | C1: 2d+1 Log-Linear Trend Model with Parameters for Exposure, Devlopment, and Payment Periods
A2: Constant | B2: 0
A3: Poisson | B3: 1 | C3: 259.5830078 | H3: GLM Options | L3: Summary of Fitted and Extrapolated Amounts | T3: ="Summary of Bootstrap Results ("&TEXT(NumBootstrapIterations,"#,##0")&" Iterations, " & TEXT(RunTimeBootstrapIterations,"0.00") & " Seconds)" -> Summary of Bootstrap Results (50,000 Iterations, 259.58 Seconds) | CH3: Payment Period Factors
A4: Gamma | B4: 2 | H4: Link Function | L4: Period | M4: Past Amounts | P4: Future | T4: Period | U4: Modeled Amounts | W4: Reserve Amounts | Z4: Reserve Outcome | AC4: Standard Deviations | CH4: Offset | CI4: 1 | CJ4: 2 | CK4: 3 | CL4: 4 | CM4: 5 | CN4: 6 | CO4: 7 | CP4: 8 | CQ4: 9 | CR4: 10
A5: Tweedie | B5: =TweedieP -> 1.825 | H5: Logarithm | L5: Exp | M5: Extrapo. | N5: Fitted | O5: All | P5: Triangle | Q5: Tail | R5: Total | T5: Exp | U5: Expected | V5: Avg Resmpl | W5: Expected | X5: Avg Projct | Y5: Avg Sim | Z5: Mean | AA5: Std Error | AB5: StEr/ExRes | AC5: Avg Resmpl | AD5: Avg Projct | AE5: Avg Sim | CH5: 3 | CI5: =SUMPRODUCT(CN$24:CN$51,$CY$24:$CY$51) -> 0 | CJ5: 1.819743412 | CK5: 3.561800116 | CL5: 5.291613544 | CM5: 7.006977279 | CN5: 8.708749693 | CO5: 10.36850025 | CP5: 11.99634014 | CQ5: 13.62733963 | CR5: 15.25252869
H6: Variance Function | L6: 1 | M6: =SUM(IF(Input!AC20:AL20,IF(AO25:AX25,0,J39:S39),0)) -> 0 | N6: =SUM(IF(Input!AC20:AL20,IF(AO25:AX25,J39:S39,0),0)) -> 7712613 | O6: =M6:M15+N6:N15 -> 7712613 | P6: =SUM(IF(Input!AC20:AL20,0,J39:S39)) -> 0 | Q6: =SUM(T39:X39) -> 12033.0069 | R6: =O6:O15+P6:P15+Q6:Q15 -> 7724646.007 | T6: 1 | U6: 7712613 | V6: 7712818.669 | W6: 12033.0069 | X6: 12692.43317 | Y6: 12049.46069 | Z6: =IF(AvgPrjctRes_TopLeft="","",X6-Y6) -> 642.9724826 | AA6: 9907.097774 | AB6: =IF(StdError_TopLeft="","",StdError_TopLeft/ExptRes_TopLeft) -> 0.8233268589 | AC6: 125440.2268 | AD6: 8570.370549 | AE6: 4941.335028
A7: Resampling Type | H7: Poisson | I7: 1.825 | L7: 2 | M7: =SUM(IF(Input!AC21:AL21,IF(AO26:AX26,0,J40:S40),0)) -> 0 | N7: =SUM(IF(Input!AC21:AL21,IF(AO26:AX26,J40:S40,0),0)) -> 8371916 | O7: 8371916 | P7: =SUM(IF(Input!AC21:AL21,0,J40:S40)) -> 9994.261896 | Q7: =SUM(T40:X40) -> 12226.61878 | R7: 8394136.881 | T7: 2 | U7: 8371916 | V7: 8372076.842 | W7: 22220.88068 | X7: 22862.21411 | Y7: 22226.53434 | Z7: =X7-Y7 -> 635.6797687 | AA7: 14926.47982 | AB7: =AA7:AA16/W7:W16 -> 0.671732144 | AC7: 130600.3213 | AD7: 13253.86931 | AE7: 6706.443099 | CH7: Check sum of all paramter values for period
A8: Split-Linear | H8: =IF(H7="Tweedy","Please verify the Tweedy parameter, p.","") ->  | L8: 3 | M8: =SUM(IF(Input!AC22:AL22,IF(AO27:AX27,0,J41:S41),0)) -> 0 | N8: =SUM(IF(Input!AC22:AL22,IF(AO27:AX27,J41:S41,0),0)) -> 8248069 | O8: 8248069 | P8: =SUM(IF(Input!AC22:AL22,0,J41:S41)) -> 26539.59519 | Q8: 11719.14127 | R8: 8286327.736 | T8: 3 | U8: 8248069 | V8: 8248953.241 | W8: 38258.73646 | X8: 38906.0732 | Y8: 38297.26157 | Z8: =X8-Y8 -> 608.8116335 | AA8: 15972.22658 | AB8: 0.4174791972 | AC8: 129645.4286 | AD8: 13343.74284 | AE8: 8832.892123 | CH8: Offset | CI8: 1 | CJ8: 2 | CK8: 3 | CL8: 4 | CM8: 5 | CN8: 6 | CO8: 7 | CP8: 8 | CQ8: 9 | CR8: 10 | CS8: RefPeriod
A9: Limited Pareto | C9: GLM Output | H9: Reference Periods | L9: 4 | M9: =SUM(IF(Input!AC23:AL23,IF(AO28:AX28,0,J42:S42),0)) -> 0 | N9: =SUM(IF(Input!AC23:AL23,IF(AO28:AX28,J42:S42,0),0)) -> 8947513 | O9: 8947513 | P9: =SUM(IF(Input!AC23:AL23,0,J42:S42)) -> 67071.00815 | Q9: 12579.33006 | R9: 9027163.338 | T9: 4 | U9: 8947513 | V9: 8947522.141 | W9: 79650.33821 | X9: 80339.56789 | Y9: 79660.95944 | Z9: 678.6084419 | AA9: 19940.50477 | AB9: 0.2503505348 | AC9: 135167.1093 | AD9: 15287.60338 | AE9: 12750.47943 | CH9: 1 | CI9: =SUMIF($CB$24:$CB$50,$CH9,CN$24:CN$50) -> -9 | CJ9: -8 | CK9: -7 | CL9: -6 | CM9: -5 | CN9: -4 | CO9: -3 | CP9: -2 | CQ9: -1 | CR9: 0 | CS9: =RefExp -> 10
A10: Asymp. Approx. | C10: φ | D10: Num Iter | E10: Num Resid | H10: Exp | I10: Dev | J10: Pay | L10: 5 | M10: =SUM(IF(Input!AC24:AL24,IF(AO29:AX29,0,J43:S43),0)) -> 0 | N10: =SUM(IF(Input!AC24:AL24,IF(AO29:AX29,J43:S43,0),0)) -> 9338497 | O10: 9338497 | P10: =SUM(IF(Input!AC24:AL24,0,J43:S43)) -> 147617.4862 | Q10: 13265.50526 | R10: 9499379.991 | T10: 5 | U10: 9338497 | V10: 9338469.283 | W10: 160882.9914 | X10: 161573.1671 | Y10: 161025.7926 | Z10: 547.374437 | AA10: 25261.34177 | AB10: 0.1570168577 | AC10: 137872.2971 | AD10: 17739.744 | AE10: 18146.00119 | CH10: 2 | CI10: 0 | CJ10: 1 | CK10: 2 | CL10: 3 | CM10: 4 | CN10: 5 | CO10: 6 | CP10: 7 | CQ10: 8 | CR10: 9 | CS10: =RefDev -> 1
C11: 2032.697551 | D11: 4 | E11: 52 | H11: 10 | I11: 1 | J11: 1 | L11: 6 | M11: =SUM(IF(Input!AC25:AL25,IF(AO30:AX30,0,J44:S44),0)) -> 0 | N11: =SUM(IF(Input!AC25:AL25,IF(AO30:AX30,J44:S44,0),0)) -> 9754247 | O11: 9754247 | P11: =SUM(IF(Input!AC25:AL25,0,J44:S44)) -> 320246.7058 | Q11: 14424.0972 | R11: 10088917.8 | T11: 6 | U11: 9754247 | V11: 9753844.182 | W11: 334670.803 | X11: 335497.3729 | Y11: 334544.7811 | Z11: 952.5917736 | AA11: 34628.41299 | AB11: 0.1034700747 | AC11: 141056.8552 | AD11: 22851.91664 | AE11: 26086.89641 | CH11: 3 | CI11: =IF(CI8<FirstDiagIncluded,"",SUMIF($CB$24:$CB$50,$CH11,CN$24:CN$50)) -> 0 | CJ11: 1 | CK11: 2 | CL11: 3 | CM11: 4 | CN11: 5 | CO11: 6 | CP11: 7 | CQ11: 8 | CR11: 9 | CS11: =RefPay -> 1
L12: 7 | M12: =SUM(IF(Input!AC26:AL26,IF(AO31:AX31,0,J45:S45),0)) -> 0 | N12: =SUM(IF(Input!AC26:AL26,IF(AO31:AX31,J45:S45,0),0)) -> 9456122 | O12: 9456122 | P12: =SUM(IF(Input!AC26:AL26,0,J45:S45)) -> 671545.8888 | Q12: 15223.25824 | R12: 10142891.15 | T12: 7 | U12: 9456122 | V12: 9455731.588 | W12: 686769.147 | X12: 687658.1308 | Y12: 686784.7582 | Z12: 873.3725915 | AA12: 49250.5283 | AB12: 0.07171336761 | AC12: 138076.6152 | AD12: 31783.16633 | AE12: 37294.63174
C13: Vector of Parameters (π) | H13: Bootstrap Options | L13: 8 | M13: =SUM(IF(Input!AC27:AL27,IF(AO32:AX32,0,J46:S46),0)) -> 0 | N13: =SUM(IF(Input!AC27:AL27,IF(AO32:AX32,J46:S46,0),0)) -> 8579572 | O13: 8579572 | P13: =SUM(IF(Input!AC27:AL27,0,J46:S46)) -> 1366537.603 | Q13: 15832.2535 | R13: 9961941.857 | T13: 8 | U13: 8579572 | V13: 8580229.305 | W13: 1382369.857 | X13: 1383415.117 | Y13: 1382219.402 | Z13: 1195.714237 | AA13: 72255.98941 | AB13: 0.05226965061 | AC13: 131699.4903 | AD13: 49319.81968 | AE13: 52836.73396 | CH13: Mapping of diagonals to parameters
A14: ParType | B14: ParNo | C14: Parameter | D14: Start Period | E14: End Period | F14: Value | H14: Iterations | I14: Resampling | J14: Tailfactor | L14: 9 | M14: =SUM(IF(Input!AC28:AL28,IF(AO33:AX33,0,J47:S47),0)) -> 0 | N14: =SUM(IF(Input!AC28:AL28,IF(AO33:AX33,J47:S47,0),0)) -> 7102014 | O14: 7102014 | P14: =SUM(IF(Input!AC28:AL28,0,J47:S47)) -> 2729027.914 | Q14: 16422.33118 | R14: 9847464.245 | T14: 9 | U14: 7102014 | V14: 7101604.998 | W14: 2745450.245 | X14: 2746226.741 | Y14: 2746176.19 | Z14: 50.55102379 | AA14: 107995.1807 | AB14: 0.0393360546 | AC14: 119759.4165 | AD14: 78031.51008 | AE14: 75315.58911 | CI14: 1 | CJ14: 2 | CK14: 3 | CL14: 4 | CM14: 5 | CN14: 6 | CO14: 7 | CP14: 8 | CQ14: 9 | CR14: 10 | CS14: RefPeriod
A15: =CB24:CB50 -> 1 | B15: 1 | C15: =CK24:CM50 -> α₁ | D15: 1 | E15: 2 | F15: -1.678763416 | H15: 50000 | I15: Split-Linear | J15: Yes | L15: 10 | M15: =SUM(IF(Input!AC29:AL29,IF(AO34:AX34,0,J48:S48),0)) -> 0 | N15: =SUM(IF(Input!AC29:AL29,IF(AO34:AX34,J48:S48,0),0)) -> 4208129 | O15: 4208129 | P15: =SUM(IF(Input!AC29:AL29,0,J48:S48)) -> 6224017.184 | Q15: 17932.65126 | R15: 10450078.83 | T15: 10 | U15: 4208129 | V15: 4208221.763 | W15: 6241949.835 | X15: 6243487.214 | Y15: 6242352.902 | Z15: 1134.31197 | AA15: 192601.4544 | AB15: 0.03085597601 | AC15: 92473.87786 | AD15: 156224.3776 | AE15: 113265.5069 | CH15: Exp | CI15: =MapRowsToExpPeriodPars -> 1 | CJ15: 2 | CK15: 3 | CL15: 4 | CM15: 5 | CN15: 6 | CO15: 7 | CP15: 8 | CQ15: 9 | CR15: 0 | CS15: =RefExp -> 10
A16: 1 | B16: 1 | C16: α₂ | D16: 2 | E16: 3 | F16: -1.737117341 | H16: Min % Pearson | I16: Seed values for RNG | L16: Total | M16: =SUM(M6:M15) -> 0 | N16: =SUM(N6:N15) -> 81718692 | O16: 81718692 | P16: 11562597.65 | Q16: =SUM(Q6:Q15) -> 141658.1936 | R16: =SUM(R6:R15) -> 93422947.84 | T16: Total | U16: 81718692 | V16: 81719472.01 | W16: 11704255.84 | X16: 11712658.03 | Y16: 11705338.04 | Z16: 7319.988359 | AA16: 319245.4494 | AB16: 0.02727601428 | AC16: 407991.8356 | AD16: 279558.5792 | AE16: 154736.5733 | CH16: Dev | CI16: =MapColsToDevPeriodPars -> 0 | CJ16: 1 | CK16: 2 | CL16: 3 | CM16: 4 | CN16: 5 | CO16: 6 | CP16: 7 | CQ16: 8 | CR16: 9 | CS16: =RefDev -> 1
A17: 1 | B17: 1 | C17: α₃ | D17: 3 | E17: 4 | F17: -1.623893926 | H17: 0.4991224497 | I17: 1597262096 | J17: 1016013135 | AG17: Order of Precence For Exclusion Of Data Points | CH17: Pay | CI17: =IF(CI14:CR14<FirstDiagIncluded,-1,MapDiagsToPayPeriodPars) -> 0 | CJ17: 1 | CK17: 2 | CL17: 3 | CM17: 4 | CN17: 5 | CO17: 6 | CP17: 7 | CQ17: 8 | CR17: 9 | CS17: =RefPay -> 1
A18: 1 | B18: 1 | C18: α₄ | D18: 4 | E18: 5 | F18: -1.641613329 | H18: Min % Target | I18: 3906379055 | J18: 4099474108 | AG18: 1) Invalid raw input
A19: 1 | B19: 1 | C19: α₅ | D19: 5 | E19: 6 | F19: -1.610992262 | H19: 0.05 | I19: 3312112953 | J19: 275305423 | AG19: 2) Override for diagonals
A20: 1 | B20: 1 | C20: α₆ | D20: 6 | E20: 7 | F20: -1.640801229 | I20: Process Bias Adjustement? | J20: No | AG20: 3) Override for individal data points
A21: 1 | B21: 1 | C21: α₇ | D21: 7 | E21: 8 | F21: -1.655500596
A22: 1 | B22: 1 | C22: α₈ | D22: 8 | E22: 9 | F22: -1.658132564 | H22: Validated Incremental Data Values - very dark cells are empty or manually excluded | Z22: Manual Override For Included Data Points | AM22: Included Data Points - reflect both validation and user selection | AZ22: Model Matrix Row Index For Included Data Points | BN22: Extended Model Matrix Row Index For Extrapolated Values | CC22: Consolidate Parameters
A23: 1 | B23: 1 | C23: α₉ | D23: 9 | E23: 10 | F23: -1.606744332 | H23: Period | I23: Dev | J23: 1 | K23: 2 | L23: 3 | M23: 4 | N23: 5 | O23: 6 | P23: 7 | Q23: 8 | R23: 9 | S23: 10 | Z23: Period | AA23: Dev | AB23: 1 | AC23: 2 | AD23: 3 | AE23: 4 | AF23: 5 | AG23: 6 | AH23: 7 | AI23: 8 | AJ23: 9 | AK23: 10 | AM23: Period | AN23: Dev | AO23: 1 | AP23: 2 | AQ23: 3 | AR23: 4 | AS23: 5 | AT23: 6 | AU23: 7 | AV23: 8 | AW23: 9 | AX23: 10 | AZ23: Period | BA23: Dev | BB23: 1 | BC23: 2 | BD23: 3 | BE23: 4 | BF23: 5 | BG23: 6 | BH23: 7 | BI23: 8 | BJ23: 9 | BK23: 10 | BL23: Get Row | BN23: Period | BO23: Dev | BP23: 1 | BQ23: 2 | BR23: 3 | BS23: 4 | BT23: 5 | BU23: 6 | BV23: 7 | BW23: 8 | BX23: 9 | BY23: 10 | BZ23: Get Row | CB23: Offset | CC23: Type | CD23: NumPar | CE23: RunTot | CF23: Par No | CG23: Exp | CH23: Dev | CI23: Pay | CJ23: NonBlank | CK23: Par | CL23: Start | CM23: End | CN23: 1 | CO23: 2 | CP23: 3 | CQ23: 4 | CR23: 5 | CS23: 6 | CT23: 7 | CU23: 8 | CV23: 9 | CW23: 10 | CY23: PickupPay
A24: 2 | B24: 2 | C24: β₁ | D24: 1 | E24: 2 | F24: -1.954934091 | H24: Exp | Z24: Exp | AM24: Exp | AZ24: Exp | BA24: Get Column | BL24: 0 | BN24: Exp | BO24: Get Column | BZ24: =NumCellsIncluded -> 55 | CB24: =IF(CJ24,IF(CG24,1,IF(CH24,2,IF(CI24,3,""))),"") -> 1 | CC24: Exp | CD24: =IF(CG24,NumExpPars,IF(CH24,NumDevPars,IF(CI24,NumPayParsIncluded,""))) -> 9 | CE24: =IF(CJ24,IF(CC24<>CC23,1,CE23+1),"") -> 1 | CF24: =IF(CI24,IF(CE24>NumPayParsIncluded,CE24,INDEX($AO$44:$AW$44,CE24)),CE24) -> 1 | CG24: =$CC24=CG$23 -> TRUE | CH24: FALSE | CI24: FALSE | CJ24: =CC24<>"" -> TRUE | CK24: =IF(CG24,"α",IF(CH24,"β",IF(CI24,"γ","")))&IF(CJ24,INDEX(SubNums,CE24+1),"") -> α₁ | CL24: =IF(CG24,INDEX(ExpParStart,CE24),IF(CH24,INDEX(DevParStart,CE24),IF(CI24,IF(CE24<=NumPayParsIncluded,INDEX(PayParStart,CF24),10),""))) -> 1 | CM24: =IF(CG24,INDEX(ExpParEnd,CE24),IF(CH24,INDEX(DevParEnd,CE24),IF(CI24,IF(CE24<=NumPayParsIncluded,INDEX(PayParEnd,CF24),19),""))) -> 2 | CN24: =IF($CJ24,IF(OFFSET(CI$14,$CB24,0)=0,0,IF(OFFSET(CI$14,$CB24,0)=$CF24,SIGN(CI$14-OFFSET($CS$14,$CB24,0)),0)+OFFSET(CN24,0,SIGN(OFFSET($CS$14,$CB24,0)-CI$14))),"") -> -1 | CO24: =IF($CJ24,IF(OFFSET(CJ$14,$CB24,0)=0,0,IF(OFFSET(CJ$14,$CB24,0)=$CF24,SIGN(CJ$14-OFFSET($CS$14,$CB24,0)),0)+OFFSET(CO24,0,SIGN(OFFSET($CS$14,$CB24,0)-CJ$14))),"") -> 0 | CP24: =IF($CJ24,IF(OFFSET(CK$14,$CB24,0)=0,0,IF(OFFSET(CK$14,$CB24,0)=$CF24,SIGN(CK$14-OFFSET($CS$14,$CB24,0)),0)+OFFSET(CP24,0,SIGN(OFFSET($CS$14,$CB24,0)-CK$14))),"") -> 0 | CQ24: =IF($CJ24,IF(OFFSET(CL$14,$CB24,0)=0,0,IF(OFFSET(CL$14,$CB24,0)=$CF24,SIGN(CL$14-OFFSET($CS$14,$CB24,0)),0)+OFFSET(CQ24,0,SIGN(OFFSET($CS$14,$CB24,0)-CL$14))),"") -> 0 | CR24: =IF($CJ24,IF(OFFSET(CM$14,$CB24,0)=0,0,IF(OFFSET(CM$14,$CB24,0)=$CF24,SIGN(CM$14-OFFSET($CS$14,$CB24,0)),0)+OFFSET(CR24,0,SIGN(OFFSET($CS$14,$CB24,0)-CM$14))),"") -> 0 | CS24: =IF($CJ24,IF(OFFSET(CN$14,$CB24,0)=0,0,IF(OFFSET(CN$14,$CB24,0)=$CF24,SIGN(CN$14-OFFSET($CS$14,$CB24,0)),0)+OFFSET(CS24,0,SIGN(OFFSET($CS$14,$CB24,0)-CN$14))),"") -> 0 | CT24: =IF($CJ24,IF(OFFSET(CO$14,$CB24,0)=0,0,IF(OFFSET(CO$14,$CB24,0)=$CF24,SIGN(CO$14-OFFSET($CS$14,$CB24,0)),0)+OFFSET(CT24,0,SIGN(OFFSET($CS$14,$CB24,0)-CO$14))),"") -> 0 | CU24: =IF($CJ24,IF(OFFSET(CP$14,$CB24,0)=0,0,IF(OFFSET(CP$14,$CB24,0)=$CF24,SIGN(CP$14-OFFSET($CS$14,$CB24,0)),0)+OFFSET(CU24,0,SIGN(OFFSET($CS$14,$CB24,0)-CP$14))),"") -> 0 | CV24: =IF($CJ24,IF(OFFSET(CQ$14,$CB24,0)=0,0,IF(OFFSET(CQ$14,$CB24,0)=$CF24,SIGN(CQ$14-OFFSET($CS$14,$CB24,0)),0)+OFFSET(CV24,0,SIGN(OFFSET($CS$14,$CB24,0)-CQ$14))),"") -> 0 | CW24: =IF($CJ24,IF(OFFSET(CR$14,$CB24,0)=0,0,IF(OFFSET(CR$14,$CB24,0)=$CF24,SIGN(CR$14-OFFSET($CS$14,$CB24,0)),0)+OFFSET(CW24,0,SIGN(OFFSET($CS$14,$CB24,0)-CR$14))),"") -> 0 | CY24: =IF(AND($A15=3,$B15<=NumPayPars),$F15,0) -> 0
A25: 2 | B25: 2 | C25: β₂ | D25: 2 | E25: 3 | F25: -2.51233756 | H25: 1 | J25: =Input!CleanData -> 2823701 | K25: 2536475 | L25: 1125533 | M25: 601484 | N25: 321420 | O25: 157915 | P25: 79395 | Q25: 38016 | R25: 18838 | S25: 9836 | Z25: 1 | AB25: TRUE | AC25: TRUE | AD25: TRUE | AE25: TRUE | AF25: TRUE | AG25: TRUE | AH25: TRUE | AI25: TRUE | AJ25: TRUE | AK25: TRUE | AM25: 1 | AO25: =IF(Input!InTriangle,IF(Input!HasValidInput,IF(OverrideDiagonals,OverrideCells,FALSE),FALSE),FALSE) -> TRUE | AP25: TRUE | AQ25: TRUE | AR25: TRUE | AS25: TRUE | AT25: TRUE | AU25: TRUE | AV25: TRUE | AW25: TRUE | AX25: TRUE | AZ25: 1 | BA25: 0 | BB25: =IF(Input!InTriangle,IF(IncludedDataPoints,1,0)+LookupIncludedShifted,"") -> 1 | BC25: 2 | BD25: 3 | BE25: 4 | BF25: 5 | BG25: 6 | BH25: 7 | BI25: 8 | BJ25: 9 | BK25: 10 | BL25: =BK25 -> 10 | BN25: 1 | BO25: =NumCellsIncluded -> 55 | BP25: =IF(IncludedDataPoints,0,1)+LookupExtrapolatedShifted -> 55 | BQ25: 55 | BR25: 55 | BS25: 55 | BT25: 55 | BU25: 55 | BV25: 55 | BW25: 55 | BX25: 55 | BY25: 55 | BZ25: =BY25 -> 55 | CB25: =IF(CJ25,IF(CG25,1,IF(CH25,2,IF(CI25,3,""))),"") -> 1 | CC25: =IF(CJ24,IF(CE24<CD24,CC24,IF(CC24="Exp","Dev",IF(CC24="Dev","Pay",""))),"") -> Exp | CD25: =IF(CG25,NumExpPars,IF(CH25,NumDevPars,IF(CI25,NumPayParsIncluded,""))) -> 9 | CE25: =IF(CJ25,IF(CC25<>CC24,1,CE24+1),"") -> 2 | CF25: 2 | CG25: TRUE | CH25: FALSE | CI25: FALSE | CJ25: =CC25<>"" -> TRUE | CK25: α₂ | CL25: =IF(CG25,INDEX(ExpParStart,CE25),IF(CH25,INDEX(DevParStart,CE25),IF(CI25,IF(CE25<=NumPayParsIncluded,INDEX(PayParStart,CF25),10),""))) -> 2 | CM25: =IF(CG25,INDEX(ExpParEnd,CE25),IF(CH25,INDEX(DevParEnd,CE25),IF(CI25,IF(CE25<=NumPayParsIncluded,INDEX(PayParEnd,CF25),19),""))) -> 3 | CN25: -1 | CO25: -1 | CP25: 0 | CQ25: 0 | CR25: 0 | CS25: 0 | CT25: 0 | CU25: 0 | CV25: 0 | CW25: 0 | CY25: 0
A26: 2 | B26: 2 | C26: β₃ | D26: 3 | E26: 4 | F26: -2.332625767 | H26: 2 | J26: 3181381 | K26: 2723043 | L26: 1226151 | M26: 633645 | N26: 321623 | O26: 154692 | P26: 74083 | Q26: 39773 | R26: 17525 | Z26: 2 | AB26: TRUE | AC26: TRUE | AD26: TRUE | AE26: TRUE | AF26: TRUE | AG26: TRUE | AH26: TRUE | AI26: TRUE | AJ26: TRUE | AM26: 2 | AO26: TRUE | AP26: TRUE | AQ26: TRUE | AR26: TRUE | AS26: TRUE | AT26: TRUE | AU26: TRUE | AV26: TRUE | AW26: TRUE | AX26: FALSE | AZ26: 2 | BA26: =BK25 -> 10 | BB26: 11 | BC26: 12 | BD26: 13 | BE26: 14 | BF26: 15 | BG26: 16 | BH26: 17 | BI26: 18 | BJ26: 19 | BL26: =BJ26 -> 19 | BN26: 2 | BO26: =BY25 -> 55 | BP26: 55 | BQ26: 55 | BR26: 55 | BS26: 55 | BT26: 55 | BU26: 55 | BV26: 55 | BW26: 55 | BX26: 55 | BY26: 56 | BZ26: =BY26 -> 56 | CB26: =IF(CJ26,IF(CG26,1,IF(CH26,2,IF(CI26,3,""))),"") -> 1 | CC26: =IF(CJ25,IF(CE25<CD25,CC25,IF(CC25="Exp","Dev",IF(CC25="Dev","Pay",""))),"") -> Exp | CD26: 9 | CE26: =IF(CJ26,IF(CC26<>CC25,1,CE25+1),"") -> 3 | CF26: 3 | CG26: TRUE | CH26: FALSE | CI26: FALSE | CJ26: =CC26<>"" -> TRUE | CK26: α₃ | CL26: 3 | CM26: 4 | CN26: -1 | CO26: -1 | CP26: -1 | CQ26: 0 | CR26: 0 | CS26: 0 | CT26: 0 | CU26: 0 | CV26: 0 | CW26: 0 | CY26: 0
A27: 2 | B27: 2 | C27: β₄ | D27: 4 | E27: 5 | F27: -2.350167979 | H27: 3 | J27: 3188314 | K27: 2682586 | L27: 1196454 | M27: 622922 | N27: 297869 | O27: 143653 | P27: 75744 | Q27: 40527 | Z27: 3 | AB27: TRUE | AC27: TRUE | AD27: TRUE | AE27: TRUE | AF27: TRUE | AG27: TRUE | AH27: TRUE | AI27: TRUE | AM27: 3 | AO27: TRUE | AP27: TRUE | AQ27: TRUE | AR27: TRUE | AS27: TRUE | AT27: TRUE | AU27: TRUE | AV27: TRUE | AW27: FALSE | AX27: FALSE | AZ27: 3 | BA27: =BJ26 -> 19 | BB27: 20 | BC27: 21 | BD27: 22 | BE27: 23 | BF27: 24 | BG27: 25 | BH27: 26 | BI27: 27 | BL27: =BI27 -> 27 | BN27: 3 | BO27: =BY26 -> 56 | BP27: 56 | BQ27: 56 | BR27: 56 | BS27: 56 | BT27: 56 | BU27: 56 | BV27: 56 | BW27: 56 | BX27: 57 | BY27: 58 | BZ27: 58 | CB27: 1 | CC27: Exp | CD27: 9 | CE27: 4 | CF27: 4 | CG27: TRUE | CH27: FALSE | CI27: FALSE | CJ27: TRUE | CK27: α₄ | CL27: 4 | CM27: 5 | CN27: -1 | CO27: -1 | CP27: -1 | CQ27: -1 | CR27: 0 | CS27: 0 | CT27: 0 | CU27: 0 | CV27: 0 | CW27: 0 | CY27: 0
A28: 2 | B28: 2 | C28: β₅ | D28: 5 | E28: 6 | F28: -2.377086555 | H28: 4 | J28: 3557266 | K28: 2907921 | L28: 1288319 | M28: 640096 | N28: 311520 | O28: 159719 | P28: 82672 | Z28: 4 | AB28: TRUE | AC28: TRUE | AD28: TRUE | AE28: TRUE | AF28: TRUE | AG28: TRUE | AH28: TRUE | AM28: 4 | AO28: TRUE | AP28: TRUE | AQ28: TRUE | AR28: TRUE | AS28: TRUE | AT28: TRUE | AU28: TRUE | AV28: FALSE | AW28: FALSE | AX28: FALSE | AZ28: 4 | BA28: =BI27 -> 27 | BB28: 28 | BC28: 29 | BD28: 30 | BE28: 31 | BF28: 32 | BG28: 33 | BH28: 34 | BL28: =BH28 -> 34 | BN28: 4 | BO28: 58 | BP28: 58 | BQ28: 58 | BR28: 58 | BS28: 58 | BT28: 58 | BU28: 58 | BV28: 58 | BW28: 59 | BX28: 60 | BY28: 61 | BZ28: 61 | CB28: 1 | CC28: Exp | CD28: 9 | CE28: 5 | CF28: 5 | CG28: TRUE | CH28: FALSE | CI28: FALSE | CJ28: TRUE | CK28: α₅ | CL28: 5 | CM28: 6 | CN28: -1 | CO28: -1 | CP28: -1 | CQ28: -1 | CR28: -1 | CS28: 0 | CT28: 0 | CU28: 0 | CV28: 0 | CW28: 0 | CY28: 0
A29: 2 | B29: 2 | C29: β₆ | D29: 6 | E29: 7 | F29: -2.342169334 | H29: 5 | J29: 3864567 | K29: 3076096 | L29: 1285639 | M29: 633827 | N29: 315839 | O29: 162529 | Z29: 5 | AB29: TRUE | AC29: TRUE | AD29: TRUE | AE29: TRUE | AF29: TRUE | AG29: TRUE | AM29: 5 | AO29: TRUE | AP29: TRUE | AQ29: TRUE | AR29: TRUE | AS29: TRUE | AT29: TRUE | AU29: FALSE | AV29: FALSE | AW29: FALSE | AX29: FALSE | AZ29: 5 | BA29: =BH28 -> 34 | BB29: 35 | BC29: 36 | BD29: 37 | BE29: 38 | BF29: 39 | BG29: 40 | BL29: =BG29 -> 40 | BN29: 5 | BO29: 61 | BP29: 61 | BQ29: 61 | BR29: 61 | BS29: 61 | BT29: 61 | BU29: 61 | BV29: 62 | BW29: 63 | BX29: 64 | BY29: 65 | BZ29: 65 | CB29: 1 | CC29: Exp | CD29: 9 | CE29: 6 | CF29: 6 | CG29: TRUE | CH29: FALSE | CI29: FALSE | CJ29: TRUE | CK29: α₆ | CL29: 6 | CM29: 7 | CN29: -1 | CO29: -1 | CP29: -1 | CQ29: -1 | CR29: -1 | CS29: -1 | CT29: 0 | CU29: 0 | CV29: 0 | CW29: 0 | CY29: 0
A30: 2 | B30: 2 | C30: β₇ | D30: 7 | E30: 8 | F30: -2.331139763 | H30: 6 | J30: 4254977 | K30: 3184599 | L30: 1282801 | M30: 673810 | N30: 358060 | Z30: 6 | AB30: TRUE | AC30: TRUE | AD30: TRUE | AE30: TRUE | AF30: TRUE | AM30: 6 | AO30: TRUE | AP30: TRUE | AQ30: TRUE | AR30: TRUE | AS30: TRUE | AT30: FALSE | AU30: FALSE | AV30: FALSE | AW30: FALSE | AX30: FALSE | AZ30: 6 | BA30: =BG29 -> 40 | BB30: 41 | BC30: 42 | BD30: 43 | BE30: 44 | BF30: 45 | BL30: =BF30 -> 45 | BN30: 6 | BO30: 65 | BP30: 65 | BQ30: 65 | BR30: 65 | BS30: 65 | BT30: 65 | BU30: 66 | BV30: 67 | BW30: 68 | BX30: 69 | BY30: 70 | BZ30: 70 | CB30: 1 | CC30: Exp | CD30: 9 | CE30: 7 | CF30: 7 | CG30: TRUE | CH30: FALSE | CI30: FALSE | CJ30: TRUE | CK30: α₇ | CL30: 7 | CM30: 8 | CN30: -1 | CO30: -1 | CP30: -1 | CQ30: -1 | CR30: -1 | CS30: -1 | CT30: -1 | CU30: 0 | CV30: 0 | CW30: 0 | CY30: 0
A31: 2 | B31: 2 | C31: β₈ | D31: 8 | E31: 9 | F31: -2.445849255 | H31: 7 | J31: 4416059 | K31: 3085207 | L31: 1278943 | M31: 675913 | Z31: 7 | AB31: TRUE | AC31: TRUE | AD31: TRUE | AE31: TRUE | AM31: 7 | AO31: TRUE | AP31: TRUE | AQ31: TRUE | AR31: TRUE | AS31: FALSE | AT31: FALSE | AU31: FALSE | AV31: FALSE | AW31: FALSE | AX31: FALSE | AZ31: 7 | BA31: =BF30 -> 45 | BB31: 46 | BC31: 47 | BD31: 48 | BE31: 49 | BL31: =BE31 -> 49 | BN31: 7 | BO31: 70 | BP31: 70 | BQ31: 70 | BR31: 70 | BS31: 70 | BT31: 71 | BU31: 72 | BV31: 73 | BW31: 74 | BX31: 75 | BY31: 76 | BZ31: 76 | CB31: 1 | CC31: Exp | CD31: 9 | CE31: 8 | CF31: 8 | CG31: TRUE | CH31: FALSE | CI31: FALSE | CJ31: TRUE | CK31: α₈ | CL31: 8 | CM31: 9 | CN31: -1 | CO31: -1 | CP31: -1 | CQ31: -1 | CR31: -1 | CS31: -1 | CT31: -1 | CU31: -1 | CV31: 0 | CW31: 0 | CY31: 0
A32: 2 | B32: 2 | C32: β₉ | D32: 9 | E32: 10 | F32: -2.265972975 | H32: 8 | J32: 4364315 | K32: 2930960 | L32: 1284297 | Z32: 8 | AB32: TRUE | AC32: TRUE | AD32: TRUE | AM32: 8 | AO32: TRUE | AP32: TRUE | AQ32: TRUE | AR32: FALSE | AS32: FALSE | AT32: FALSE | AU32: FALSE | AV32: FALSE | AW32: FALSE | AX32: FALSE | AZ32: 8 | BA32: =BE31 -> 49 | BB32: 50 | BC32: 51 | BD32: 52 | BL32: =BD32 -> 52 | BN32: 8 | BO32: 76 | BP32: 76 | BQ32: 76 | BR32: 76 | BS32: 77 | BT32: 78 | BU32: 79 | BV32: 80 | BW32: 81 | BX32: 82 | BY32: 83 | BZ32: 83 | CB32: 1 | CC32: Exp | CD32: 9 | CE32: 9 | CF32: 9 | CG32: TRUE | CH32: FALSE | CI32: FALSE | CJ32: TRUE | CK32: α₉ | CL32: 9 | CM32: 10 | CN32: -1 | CO32: -1 | CP32: -1 | CQ32: -1 | CR32: -1 | CS32: -1 | CT32: -1 | CU32: -1 | CV32: -1 | CW32: 0 | CY32: 0
A33: 3 | B33: 3 | C33: γ₁ | D33: 1 | E33: 2 | F33: 1.819743412 | H33: 9 | J33: 4256384 | K33: 2845630 | Z33: 9 | AB33: TRUE | AC33: TRUE | AM33: 9 | AO33: TRUE | AP33: TRUE | AQ33: FALSE | AR33: FALSE | AS33: FALSE | AT33: FALSE | AU33: FALSE | AV33: FALSE | AW33: FALSE | AX33: FALSE | AZ33: 9 | BA33: =BD32 -> 52 | BB33: 53 | BC33: 54 | BL33: =BC33 -> 54 | BN33: 9 | BO33: 83 | BP33: 83 | BQ33: 83 | BR33: 84 | BS33: 85 | BT33: 86 | BU33: 87 | BV33: 88 | BW33: 89 | BX33: 90 | BY33: 91 | BZ33: 91 | CB33: 2 | CC33: Dev | CD33: 9 | CE33: 1 | CF33: 1 | CG33: FALSE | CH33: TRUE | CI33: FALSE | CJ33: TRUE | CK33: β₁ | CL33: 1 | CM33: 2 | CN33: 0 | CO33: 1 | CP33: 1 | CQ33: 1 | CR33: 1 | CS33: 1 | CT33: 1 | CU33: 1 | CV33: 1 | CW33: 1 | CY33: 0
A34: 3 | B34: 3 | C34: γ₂ | D34: 2 | E34: 3 | F34: 1.742056704 | H34: 10 | J34: 4208129 | Z34: 10 | AB34: TRUE | AM34: 10 | AO34: TRUE | AP34: FALSE | AQ34: FALSE | AR34: FALSE | AS34: FALSE | AT34: FALSE | AU34: FALSE | AV34: FALSE | AW34: FALSE | AX34: FALSE | AZ34: 10 | BA34: =BC33 -> 54 | BB34: 55 | BL34: =BB34 -> 55 | BN34: 10 | BO34: 91 | BP34: 91 | BQ34: 92 | BR34: 93 | BS34: 94 | BT34: 95 | BU34: 96 | BV34: 97 | BW34: 98 | BX34: 99 | BY34: 100 | BZ34: 100 | CB34: 2 | CC34: Dev | CD34: 9 | CE34: 2 | CF34: 2 | CG34: FALSE | CH34: TRUE | CI34: FALSE | CJ34: TRUE | CK34: β₂ | CL34: 2 | CM34: 3 | CN34: 0 | CO34: 0 | CP34: 1 | CQ34: 1 | CR34: 1 | CS34: 1 | CT34: 1 | CU34: 1 | CV34: 1 | CW34: 1 | CY34: 0
A35: 3 | B35: 3 | C35: γ₃ | D35: 3 | E35: 4 | F35: 1.729813428 | CB35: 2 | CC35: Dev | CD35: 9 | CE35: 3 | CF35: 3 | CG35: FALSE | CH35: TRUE | CI35: FALSE | CJ35: TRUE | CK35: β₃ | CL35: 3 | CM35: 4 | CN35: 0 | CO35: 0 | CP35: 0 | CQ35: 1 | CR35: 1 | CS35: 1 | CT35: 1 | CU35: 1 | CV35: 1 | CW35: 1 | CY35: 0
A36: 3 | B36: 3 | C36: γ₄ | D36: 4 | E36: 5 | F36: 1.715363736 | H36: Fitted Incremental Values - dark cells require extrapolated payment parameters | Z36: Manual Override For Included Diagonals (Payment Periods) | AM36: Included Payment Period Trend Groups | AZ36: Mask for identifying cells where model projection depends on extended parameters | BN36: Consolidated Row Index For Fitted And Extrapolated Values | CB36: 2 | CC36: Dev | CD36: 9 | CE36: 4 | CF36: 4 | CG36: FALSE | CH36: TRUE | CI36: FALSE | CJ36: TRUE | CK36: β₄ | CL36: 4 | CM36: 5 | CN36: 0 | CO36: 0 | CP36: 0 | CQ36: 0 | CR36: 1 | CS36: 1 | CT36: 1 | CU36: 1 | CV36: 1 | CW36: 1 | CY36: 0
A37: 3 | B37: 3 | C37: γ₅ | D37: 5 | E37: 6 | F37: 1.701772414 | H37: Period | I37: Dev | J37: 1 | K37: 2 | L37: 3 | M37: 4 | N37: 5 | O37: 6 | P37: 7 | Q37: 8 | R37: 9 | S37: 10 | T37: 11 | U37: 12 | V37: 13 | W37: 14 | X37: 15 | Z37: Period | AA37: Pay | AB37: 1 | AC37: 2 | AD37: 3 | AE37: 4 | AF37: 5 | AG37: 6 | AH37: 7 | AI37: 8 | AJ37: 9 | AK37: 10 | AO37: 1 | AP37: 2 | AQ37: 3 | AR37: 4 | AS37: 5 | AT37: 6 | AU37: 7 | AV37: 8 | AW37: 9 | AX37: 10 | AZ37: Period | BA37: Pay | BB37: 1 | BC37: 2 | BD37: 3 | BE37: 4 | BF37: 5 | BG37: 6 | BH37: 7 | BI37: 8 | BJ37: 9 | BK37: 10 | BN37: Period | BO37: Dev | BP37: 1 | BQ37: 2 | BR37: 3 | BS37: 4 | BT37: 5 | BU37: 6 | BV37: 7 | BW37: 8 | BX37: 9 | BY37: 10 | CB37: 2 | CC37: Dev | CD37: 9 | CE37: 5 | CF37: 5 | CG37: FALSE | CH37: TRUE | CI37: FALSE | CJ37: TRUE | CK37: β₅ | CL37: 5 | CM37: 6 | CN37: 0 | CO37: 0 | CP37: 0 | CQ37: 0 | CR37: 0 | CS37: 1 | CT37: 1 | CU37: 1 | CV37: 1 | CW37: 1 | CY37: 0
A38: 3 | B38: 3 | C38: γ₆ | D38: 6 | E38: 7 | F38: 1.659750556 | H38: Exp | Z38: Exp | AM38: Diag'l Has Data | AO38: =OR(AO25) -> TRUE | AP38: =OR(AO26,AP25) -> TRUE | AQ38: =OR(AO27,AP26,AQ25) -> TRUE | AR38: =OR(AO28,AP27,AQ26,AR25) -> TRUE | AS38: =OR(AO29,AP28,AQ27,AR26,AS25) -> TRUE | AT38: =OR(AO30,AP29,AQ28,AR27,AS26,AT25) -> TRUE | AU38: =OR(AO31,AP30,AQ29,AR28,AS27,AT26,AU25) -> TRUE | AV38: =OR(AO32,AP31,AQ30,AR29,AS28,AT27,AU26,AV25) -> TRUE | AW38: =OR(AO33,AP32,AQ31,AR30,AS29,AT28,AU27,AV26,AW25) -> TRUE | AX38: =OR(AO34,AP33,AQ32,AR31,AS30,AT29,AU28,AV27,AW26,AX25) -> TRUE | AZ38: Exp | BN38: Exp | CB38: 2 | CC38: Dev | CD38: 9 | CE38: 6 | CF38: 6 | CG38: FALSE | CH38: TRUE | CI38: FALSE | CJ38: TRUE | CK38: β₆ | CL38: 6 | CM38: 7 | CN38: 0 | CO38: 0 | CP38: 0 | CQ38: 0 | CR38: 0 | CS38: 0 | CT38: 1 | CU38: 1 | CV38: 1 | CW38: 1 | CY38: 0
A39: 3 | B39: 3 | C39: γ₇ | D39: 7 | E39: 8 | F39: 1.627839894 | H39: 1 | J39: =INDEX(ModeledValues,LookupAll) -> 2823701 | K39: 2466642.11 | L39: 1141766.816 | M39: 624855.1358 | N39: 331197.7393 | O39: 168578.4897 | P39: 85198.40195 | Q39: 42168.89266 | R39: 18668.4146 | S39: 9836 | T39: =IF(UseTailfactor="No",0,$AM196:$AM205) -> 5555.736279 | U39: =IF(UseTailfactor="No",0,$AM206:$AM215) -> 3138.085157 | V39: =IF(UseTailfactor="No",0,$AM216:$AM225) -> 1772.506461 | W39: =IF(UseTailfactor="No",0,$AM226:$AM235) -> 1001.177151 | X39: =IF(UseTailfactor="No",0,$AM236:$AM245) -> 565.5018521 | Z39: 1 | AB39: TRUE | AC39: TRUE | AD39: TRUE | AE39: TRUE | AF39: TRUE | AG39: TRUE | AH39: TRUE | AI39: TRUE | AJ39: TRUE | AK39: TRUE | AM39: Pay Par Has Data | AO39: =IF(AO37<=NumPayPars,COUNTIFS(DiagHasData,TRUE,MapDiagsToPayPeriodPars,AO37)>0,"") -> TRUE | AP39: TRUE | AQ39: TRUE | AR39: TRUE | AS39: TRUE | AT39: TRUE | AU39: TRUE | AV39: TRUE | AW39: TRUE | AZ39: 1 | BB39: =NOT(AO38:AX38) -> FALSE | BC39: FALSE | BD39: FALSE | BE39: FALSE | BF39: FALSE | BG39: FALSE | BH39: FALSE | BI39: FALSE | BJ39: FALSE | BK39: FALSE | BL39: TRUE | BN39: 1 | BO39: =AX44 ->  | BP39: =IF(IncludedDataPoints,LookupIncludedCells,LookupExtrapolatedCells) -> 1 | BQ39: 2 | BR39: 3 | BS39: 4 | BT39: 5 | BU39: 6 | BV39: 7 | BW39: 8 | BX39: 9 | BY39: 10 | CB39: 2 | CC39: Dev | CD39: =IF(CG39,NumExpPars,IF(CH39,NumDevPars,IF(CI39,NumPayParsIncluded,""))) -> 9 | CE39: 7 | CF39: 7 | CG39: FALSE | CH39: TRUE | CI39: FALSE | CJ39: TRUE | CK39: β₇ | CL39: =IF(CG39,INDEX(ExpParStart,CE39),IF(CH39,INDEX(DevParStart,CE39),IF(CI39,IF(CE39<=NumPayParsIncluded,INDEX(PayParStart,CF39),10),""))) -> 7 | CM39: =IF(CG39,INDEX(ExpParEnd,CE39),IF(CH39,INDEX(DevParEnd,CE39),IF(CI39,IF(CE39<=NumPayParsIncluded,INDEX(PayParEnd,CF39),19),""))) -> 8 | CN39: 0 | CO39: 0 | CP39: 0 | CQ39: 0 | CR39: 0 | CS39: 0 | CT39: 0 | CU39: 1 | CV39: 1 | CW39: 1 | CY39: 0
A40: 3 | B40: 3 | C40: γ₈ | D40: 8 | E40: 9 | F40: 1.630999483 | H40: 2 | J40: 3251213.89 | K40: 2627810.643 | L40: 1201567.449 | M40: 648148.7092 | N40: 338906.6139 | O40: 165403.6077 | P40: 80968.41621 | Q40: 40202.08562 | R40: 17694.5854 | S40: 9994.261896 | T40: 5645.128447 | U40: 3188.577157 | V40: 1801.026209 | W40: 1017.286158 | X40: 574.6008146 | Z40: 2 | AB40: =AC39 -> TRUE | AC40: =AD39 -> TRUE | AD40: TRUE | AE40: TRUE | AF40: TRUE | AG40: TRUE | AH40: TRUE | AI40: TRUE | AJ40: TRUE | AM40: Num Pay Pars Included | AO40: =COUNTIF(PayParHasData,TRUE) -> 9 | AP40: Num Parameters | AR40: =NumExpPars+NumDevPars+NumPayParsIncluded -> 27 | AZ40: 2 | BB40: =BC39 -> FALSE | BC40: =BD39 -> FALSE | BD40: FALSE | BE40: FALSE | BF40: FALSE | BG40: FALSE | BH40: FALSE | BI40: FALSE | BJ40: FALSE | BK40: TRUE | BL40: TRUE | BN40: 2 | BO40: =BY39 -> 10 | BP40: 11 | BQ40: 12 | BR40: 13 | BS40: 14 | BT40: 15 | BU40: 16 | BV40: 17 | BW40: 18 | BX40: 19 | BY40: 56 | CB40: 2 | CC40: Dev | CD40: 9 | CE40: 8 | CF40: 8 | CG40: FALSE | CH40: TRUE | CI40: FALSE | CJ40: TRUE | CK40: β₈ | CL40: 8 | CM40: 9 | CN40: 0 | CO40: 0 | CP40: 0 | CQ40: 0 | CR40: 0 | CS40: 0 | CT40: 0 | CU40: 0 | CV40: 1 | CW40: 1 | CY40: 0
A41: 3 | B41: 3 | C41: γ₉ | D41: 9 | E41: 10 | F41: 1.625189063 | H41: 3 | J41: 3267312.541 | K41: 2608687.264 | L41: 1175711.277 | M41: 625640.0663 | N41: 313675.1225 | O41: 148281.3003 | P41: 72816.40676 | Q41: 35945.02172 | R41: 16960.1547 | S41: 9579.440492 | T41: 5410.821988 | U41: 3056.23221 | V41: 1726.272892 | W41: 975.0627222 | X41: 550.7514579 | Z41: 3 | AB41: =AC40 -> TRUE | AC41: TRUE | AD41: TRUE | AE41: TRUE | AF41: TRUE | AG41: TRUE | AH41: TRUE | AI41: TRUE | AM41: Index 1 | AO41: =IF(AO37<=NumPayPars,IF(AO39,1,0),"") -> 1 | AP41: =IF(AP37<=NumPayPars,IF(AP39,1,0)+AO41,"") -> 2 | AQ41: 3 | AR41: 4 | AS41: 5 | AT41: 6 | AU41: 7 | AV41: 8 | AW41: 9 | AZ41: 3 | BB41: =BC40 -> FALSE | BC41: FALSE | BD41: FALSE | BE41: FALSE | BF41: FALSE | BG41: FALSE | BH41: FALSE | BI41: FALSE | BJ41: TRUE | BK41: TRUE | BL41: TRUE | BN41: 3 | BO41: =BY40 -> 56 | BP41: 20 | BQ41: 21 | BR41: 22 | BS41: 23 | BT41: 24 | BU41: 25 | BV41: 26 | BW41: 27 | BX41: 57 | BY41: 58 | CB41: 2 | CC41: Dev | CD41: 9 | CE41: 9 | CF41: 9 | CG41: FALSE | CH41: TRUE | CI41: FALSE | CJ41: TRUE | CK41: β₉ | CL41: 9 | CM41: 10 | CN41: 0 | CO41: 0 | CP41: 0 | CQ41: 0 | CR41: 0 | CS41: 0 | CT41: 0 | CU41: 0 | CV41: 0 | CW41: 1 | CY41: 0
H42: 4 | J42: 3632377.151 | K42: 2858556.968 | L42: 1270933.659 | M42: 648480.4533 | N42: 314915.32 | O42: 149338.6739 | P42: 72910.77508 | Q42: 38583.39803 | R42: 18205.03558 | S42: 10282.57455 | T42: 5807.978085 | U42: 3280.56065 | V42: 1852.981885 | W42: 1046.632644 | X42: 591.1767944 | Z42: 4 | AB42: TRUE | AC42: TRUE | AD42: TRUE | AE42: TRUE | AF42: TRUE | AG42: TRUE | AH42: TRUE | AM42: Index 2 | AO42: =IF(AO37<=NumPayPars,IF(AO39,0,1)+NumPayParsIncluded,"") -> 9 | AP42: =IF(AP37<=NumPayPars,IF(AP39,0,1)+AO42,"") -> 9 | AQ42: 9 | AR42: 9 | AS42: 9 | AT42: 9 | AU42: 9 | AV42: 9 | AW42: 9 | AZ42: 4 | BB42: FALSE | BC42: FALSE | BD42: FALSE | BE42: FALSE | BF42: FALSE | BG42: FALSE | BH42: FALSE | BI42: TRUE | BJ42: TRUE | BK42: TRUE | BL42: TRUE | BN42: 4 | BO42: 58 | BP42: 28 | BQ42: 29 | BR42: 30 | BS42: 31 | BT42: 32 | BU42: 33 | BV42: 34 | BW42: 59 | BX42: 60 | BY42: 61 | CB42: 3 | CC42: Pay | CD42: 9 | CE42: 1 | CF42: 1 | CG42: FALSE | CH42: FALSE | CI42: TRUE | CJ42: TRUE | CK42: γ₁ | CL42: 1 | CM42: 2 | CN42: 0 | CO42: 1 | CP42: 1 | CQ42: 1 | CR42: 1 | CS42: 1 | CT42: 1 | CU42: 1 | CV42: 1 | CW42: 1 | CY42: 1.819743412
H43: 5 | J43: 3910392.306 | K43: 3035803.17 | L43: 1294195.182 | M43: 639609.8796 | N43: 311590.533 | O43: 146905.9284 | P43: 76887.89987 | Q43: 40688.03878 | R43: 19198.08082 | S43: 10843.46671 | T43: 6124.790705 | U43: 3459.508125 | V43: 1954.058032 | W43: 1103.724187 | X43: 623.4242075 | Z43: 5 | AB43: TRUE | AC43: TRUE | AD43: TRUE | AE43: TRUE | AF43: TRUE | AG43: TRUE | AM43: Sort Index | AO43: =IF(AO37<=NumPayPars,IF(AO39,AO41,AO42),"") -> 1 | AP43: 2 | AQ43: 3 | AR43: 4 | AS43: 5 | AT43: 6 | AU43: 7 | AV43: 8 | AW43: 9 | AZ43: 5 | BB43: FALSE | BC43: FALSE | BD43: FALSE | BE43: FALSE | BF43: FALSE | BG43: FALSE | BH43: TRUE | BI43: TRUE | BJ43: TRUE | BK43: TRUE | BL43: TRUE | BN43: 5 | BO43: 61 | BP43: 35 | BQ43: 36 | BR43: 37 | BS43: 38 | BT43: 39 | BU43: 40 | BV43: 62 | BW43: 63 | BX43: 64 | BY43: 65 | CB43: 3 | CC43: Pay | CD43: 9 | CE43: 2 | CF43: 2 | CG43: FALSE | CH43: FALSE | CI43: TRUE | CJ43: TRUE | CK43: γ₂ | CL43: 2 | CM43: 3 | CN43: 0 | CO43: 0 | CP43: 1 | CQ43: 1 | CR43: 1 | CS43: 1 | CT43: 1 | CU43: 1 | CV43: 1 | CW43: 1 | CY43: 1.742056704
H44: 6 | J44: 4281990.001 | K44: 3187491.741 | L44: 1316184.018 | M44: 652535.5687 | N44: 316045.6713 | O44: 159736.5007 | P44: 83603.18885 | Q44: 44241.67907 | R44: 20874.81619 | S44: 11790.52096 | T44: 6659.721943 | U44: 3761.657057 | V44: 2124.722914 | W44: 1200.122019 | X44: 677.8732654 | Z44: 6 | AB44: TRUE | AC44: TRUE | AD44: TRUE | AE44: TRUE | AF44: TRUE | AM44: Pay Pars Included | AO44: =IF(AO37<=NumPayPars,MATCH(AO37,$AO$43:$AX$43,0),"") -> 1 | AP44: 2 | AQ44: 3 | AR44: 4 | AS44: 5 | AT44: 6 | AU44: 7 | AV44: 8 | AW44: 9 | AZ44: 6 | BB44: FALSE | BC44: FALSE | BD44: FALSE | BE44: FALSE | BF44: FALSE | BG44: TRUE | BH44: TRUE | BI44: TRUE | BJ44: TRUE | BK44: TRUE | BL44: TRUE | BN44: 6 | BO44: 65 | BP44: 41 | BQ44: 42 | BR44: 43 | BS44: 44 | BT44: 45 | BU44: 66 | BV44: 67 | BW44: 68 | BX44: 69 | BY44: 70 | CB44: 3 | CC44: Pay | CD44: 9 | CE44: 3 | CF44: 3 | CG44: FALSE | CH44: FALSE | CI44: TRUE | CJ44: TRUE | CK44: γ₃ | CL44: 3 | CM44: 4 | CN44: 0 | CO44: 0 | CP44: 0 | CQ44: 1 | CR44: 1 | CS44: 1 | CT44: 1 | CU44: 1 | CV44: 1 | CW44: 1 | CY44: 1.729813428
H45: 7 | J45: 4363904.491 | K45: 3146444.186 | L45: 1303346.137 | M45: 642427.1871 | N45: 333556.0489 | O45: 168586.6344 | P45: 88235.18838 | Q45: 46692.8707 | R45: 22031.3766 | S45: 12443.76981 | T45: 7028.701038 | U45: 3970.070085 | V45: 2242.442294 | W45: 1266.614275 | X45: 715.4305488 | Z45: 7 | AB45: TRUE | AC45: TRUE | AD45: TRUE | AE45: TRUE | AM45: Index First Diagonal | AO45: =IF(AO38,1,-1) -> 1 | AP45: =IF(AO45=-1,IF(AP38,1,-1),2) -> 2 | AQ45: =IF(AP45=-1,IF(AQ38,1,-1),2) -> 2 | AR45: 2 | AS45: 2 | AT45: 2 | AU45: 2 | AV45: 2 | AW45: 2 | AX45: 2 | AZ45: 7 | BB45: FALSE | BC45: FALSE | BD45: FALSE | BE45: FALSE | BF45: TRUE | BG45: TRUE | BH45: TRUE | BI45: TRUE | BJ45: TRUE | BK45: TRUE | BL45: TRUE | BN45: 7 | BO45: 70 | BP45: 46 | BQ45: 47 | BR45: 48 | BS45: 49 | BT45: 71 | BU45: 72 | BV45: 73 | BW45: 74 | BX45: 75 | BY45: 76 | CB45: 3 | CC45: =IF(CJ44,IF(CE44<CD44,CC44,IF(CC44="Exp","Dev",IF(CC44="Dev","Pay",""))),"") -> Pay | CD45: 9 | CE45: =IF(CJ45,IF(CC45<>CC44,1,CE44+1),"") -> 4 | CF45: 4 | CG45: FALSE | CH45: FALSE | CI45: TRUE | CJ45: TRUE | CK45: γ₄ | CL45: 4 | CM45: 5 | CN45: 0 | CO45: 0 | CP45: 0 | CQ45: 0 | CR45: 1 | CS45: 1 | CT45: 1 | CU45: 1 | CV45: 1 | CW45: 1 | CY45: 1.715363736
H46: 8 | J46: 4244849.988 | K46: 3070289.549 | L46: 1264432.463 | M46: 668127.0145 | N46: 346899.7134 | O46: 175330.8188 | P46: 91764.97224 | Q46: 48560.78467 | R46: 22912.72563 | S46: 12941.57368 | T46: 7309.879057 | U46: 4128.88982 | V46: 2332.149549 | W46: 1317.284248 | X46: 744.050822 | Z46: 8 | AB46: TRUE | AC46: TRUE | AD46: TRUE | AM46: First Diagonal Included | AO46: =MATCH(1,AO45:AX45,0) -> 1 | AP46: <--- First Diag and First Par may differ if there is grouping of parameters that are filtered our for lack of data | AZ46: 8 | BB46: FALSE | BC46: FALSE | BD46: FALSE | BE46: TRUE | BF46: TRUE | BG46: TRUE | BH46: TRUE | BI46: TRUE | BJ46: TRUE | BK46: TRUE | BL46: TRUE | BN46: 8 | BO46: 76 | BP46: 50 | BQ46: 51 | BR46: 52 | BS46: 77 | BT46: 78 | BU46: 79 | BV46: 80 | BW46: 81 | BX46: 82 | BY46: 83 | CB46: 3 | CC46: Pay | CD46: 9 | CE46: 5 | CF46: 5 | CG46: FALSE | CH46: FALSE | CI46: TRUE | CJ46: TRUE | CK46: γ₅ | CL46: 5 | CM46: 6 | CN46: 0 | CO46: 0 | CP46: 0 | CQ46: 0 | CR46: 0 | CS46: 1 | CT46: 1 | CU46: 1 | CV46: 1 | CW46: 1 | CY46: 1.701772414
H47: 9 | J47: 4131222.632 | K47: 2970791.368 | L47: 1311558.627 | M47: 693028.5131 | N47: 359828.8759 | O47: 181865.5046 | P47: 95185.10834 | Q47: 50370.67453 | R47: 23766.69679 | S47: 13423.91397 | T47: 7582.322677 | U47: 4282.776045 | V47: 2419.070176 | W47: 1366.38023 | X47: 771.7820469 | Z47: 9 | AB47: TRUE | AC47: TRUE | AM47: Index First Pay Par | AO47: =IF(AO39,1,-1) -> 1 | AP47: =IF(AO47=-1,IF(AP39,1,-1),2) -> 2 | AQ47: =IF(AP47=-1,IF(AQ39,1,-1),2) -> 2 | AR47: 2 | AS47: 2 | AT47: 2 | AU47: 2 | AV47: 2 | AW47: 2 | AX47: 2 | AZ47: 9 | BB47: FALSE | BC47: FALSE | BD47: TRUE | BE47: TRUE | BF47: TRUE | BG47: TRUE | BH47: TRUE | BI47: TRUE | BJ47: TRUE | BK47: TRUE | BL47: TRUE | BN47: 9 | BO47: 83 | BP47: 53 | BQ47: 54 | BR47: 84 | BS47: 85 | BT47: 86 | BU47: 87 | BV47: 88 | BW47: 89 | BX47: 90 | BY47: 91 | CB47: 3 | CC47: Pay | CD47: 9 | CE47: 6 | CF47: 6 | CG47: FALSE | CH47: FALSE | CI47: TRUE | CJ47: TRUE | CK47: γ₆ | CL47: 6 | CM47: 7 | CN47: 0 | CO47: 0 | CP47: 0 | CQ47: 0 | CR47: 0 | CS47: 0 | CT47: 1 | CU47: 1 | CV47: 1 | CW47: 1 | CY47: 1.659750556
H48: 10 | J48: 4208129 | K48: 3244007.504 | L48: 1432179.342 | M48: 756764.5851 | N48: 392921.4236 | O48: 198591.2132 | P48: 103939.041 | Q48: 55003.13753 | R48: 25952.45953 | S48: 14658.47724 | T48: 8279.649635 | U48: 4676.65208 | V48: 2641.545915 | W48: 1492.042749 | X48: 842.7608814 | Z48: 10 | AB48: =AC47 -> TRUE | AM48: First Pay Par Included | AO48: =MATCH(1,AO47:AX47,0) -> 1 | AP48: ="<--- Index offset needed to find correct column in "&ADDRESS(ROW(AO59),COLUMN(AO59))&":"&ADDRESS(ROW(AW60),COLUMN(AW60))&" to look up start and end periods." -> <--- Index offset needed to find correct column in $AO$59:$AW$60 to look up start and end periods. | AZ48: 10 | BB48: FALSE | BC48: TRUE | BD48: TRUE | BE48: TRUE | BF48: TRUE | BG48: TRUE | BH48: TRUE | BI48: TRUE | BJ48: TRUE | BK48: TRUE | BN48: 10 | BO48: 91 | BP48: 55 | BQ48: 92 | BR48: 93 | BS48: 94 | BT48: 95 | BU48: 96 | BV48: 97 | BW48: 98 | BX48: 99 | BY48: 100 | CB48: 3 | CC48: Pay | CD48: 9 | CE48: 7 | CF48: 7 | CG48: FALSE | CH48: FALSE | CI48: TRUE | CJ48: TRUE | CK48: γ₇ | CL48: 7 | CM48: 8 | CN48: 0 | CO48: 0 | CP48: 0 | CQ48: 0 | CR48: 0 | CS48: 0 | CT48: 0 | CU48: 1 | CV48: 1 | CW48: 1 | CY48: 1.627839894
CB49: 3 | CC49: Pay | CD49: 9 | CE49: 8 | CF49: 8 | CG49: FALSE | CH49: FALSE | CI49: TRUE | CJ49: TRUE | CK49: γ₈ | CL49: 8 | CM49: 9 | CN49: 0 | CO49: 0 | CP49: 0 | CQ49: 0 | CR49: 0 | CS49: 0 | CT49: 0 | CU49: 0 | CV49: 1 | CW49: 1 | CY49: 1.630999483
AM50: Determine Start and End Periods for Payment Period Parameters | AZ50: Determine Start and End Periods for Exposure Period Parameters | BN50: Determine Start and End Periods for Development Period Parameters | CB50: 3 | CC50: Pay | CD50: 9 | CE50: 9 | CF50: 9 | CG50: FALSE | CH50: FALSE | CI50: TRUE | CJ50: TRUE | CK50: γ₉ | CL50: 9 | CM50: 10 | CN50: 0 | CO50: 0 | CP50: 0 | CQ50: 0 | CR50: 0 | CS50: 0 | CT50: 0 | CU50: 0 | CV50: 0 | CW50: 1 | CY50: 1.625189063
AN51: Trends | AO51: 1 | AP51: 2 | AQ51: 3 | AR51: 4 | AS51: 5 | AT51: 6 | AU51: 7 | AV51: 8 | AW51: 9 | AX51: 10 | BA51: Trends | BB51: 1 | BC51: 2 | BD51: 3 | BE51: 4 | BF51: 5 | BG51: 6 | BH51: 7 | BI51: 8 | BJ51: 9 | BK51: 10 | BO51: Trends | BP51: 1 | BQ51: 2 | BR51: 3 | BS51: 4 | BT51: 5 | BU51: 6 | BV51: 7 | BW51: 8 | BX51: 9 | BY51: 10
C52: Fitted Payment Period Trends | F52: Extrapolated Payment Period Trends (Future) | J52: Extrapolation Weights (Future) | U52: Extrapolation Offset (Future) | Y52: Grouped Parameter Weights (cumulative) | AM52: Pay | AN52: Index 1 | AO52: 1 | AP52: =IF($BY114:$CF114,1,0)+AO52:AV52 -> 2 | AQ52: 3 | AR52: 4 | AS52: 5 | AT52: 6 | AU52: 7 | AV52: 8 | AW52: 9 | AZ52: Exp | BA52: Index 1 | BB52: 1 | BC52: =IF($BY112:$CF112,1,0)+BB52:BI52 -> 2 | BD52: 3 | BE52: 4 | BF52: 5 | BG52: 6 | BH52: 7 | BI52: 8 | BJ52: 9 | BN52: Dev | BO52: Index 1 | BP52: 1 | BQ52: =IF($BY113:$CF113,1,0)+BP52:BW52 -> 2 | BR52: 3 | BS52: 4 | BT52: 5 | BU52: 6 | BV52: 7 | BW52: 8 | BX52: 9
B53: Pay Period | C53: Trend | D53: Incremental | F53: Trend | G53: Incremental | H53: Cumulative | J53: Trend | K53: 1-2 | L53: 2-3 | M53: 3-4 | N53: 4-5 | O53: 5-6 | P53: 6-7 | Q53: 7-8 | R53: 8-9 | S53: 9-10 | U53: Trend | V53: Offset | W53: Cumu. | Y53: 1 | Z53: 2 | AA53: 3 | AB53: 4 | AC53: 5 | AD53: 6 | AE53: 7 | AF53: 8 | AG53: 9 | AM53: Pay | AN53: Index 2 | AO53: =NumPayPars -> 9 | AP53: =IF($BY114:$CF114,0,1)+AO53:AV53 -> 9 | AQ53: 9 | AR53: 9 | AS53: 9 | AT53: 9 | AU53: 9 | AV53: 9 | AW53: 9 | AZ53: Exp | BA53: Index 2 | BB53: =NumExpPars -> 9 | BC53: =IF($BY112:$CF112,0,1)+BB53:BI53 -> 9 | BD53: 9 | BE53: 9 | BF53: 9 | BG53: 9 | BH53: 9 | BI53: 9 | BJ53: 9 | BN53: Dev | BO53: Index 2 | BP53: =NumDevPars -> 9 | BQ53: =IF($BY113:$CF113,0,1)+BP53:BW53 -> 9 | BR53: 9 | BS53: 9 | BT53: 9 | BU53: 9 | BV53: 9 | BW53: 9 | BX53: 9
B54: =IF(1<RefPay,1,2) -> 2 | C54: 1-2 | D54: =IF(B54<FirstDiagIncluded,0,INDEX($F$15:$F$41,NumExpPars+NumDevPars+INDEX(MapDiagsToPayPeriodPars,B54)-FirstPayParIncluded+1)) -> 1.819743412 | F54: 10-11 | G54: =MMULT(K54:S54,$D$54:$D$62)+V54 -> 1.69472541 | H54: =ExpandedParsFuture_TopLeft -> 1.69472541 | I54: =IF(SUM(OFFSET(J54,0,FirstDiagIncluded,1,10-FirstDiagIncluded))<>1,"Sum≠1","") ->  | J54: 10-11 | K54: =1/9 -> 0.1111111111 | L54: =1/9 -> 0.1111111111 | M54: 0.1111111111 | N54: 0.1111111111 | O54: 0.1111111111 | P54: 0.1111111111 | Q54: 0.1111111111 | R54: 0.1111111111 | S54: 0.1111111111 | U54: 10-11 | V54: 0 | W54: =V54 -> 0 | Y54: =IF(Y$53>NumPayParsIncluded,"",SUM(OFFSET($J54,0,INDEX(PayParStart,FirstPayParIncluded+Y$53-1),1,INDEX(PayParEnd,FirstPayParIncluded+Y$53-1)-INDEX(PayParStart,FirstPayParIncluded+Y$53-1)))) -> 0.1111111111 | Z54: 0.1111111111 | AA54: 0.1111111111 | AB54: 0.1111111111 | AC54: 0.1111111111 | AD54: 0.1111111111 | AE54: 0.1111111111 | AF54: 0.1111111111 | AG54: 0.1111111111 | AM54: Pay | AN54: Sort Index | AO54: =IF($BX114:$CF114,AO52:AW52,AO53:AW53) -> 1 | AP54: 2 | AQ54: 3 | AR54: 4 | AS54: 5 | AT54: 6 | AU54: 7 | AV54: 8 | AW54: 9 | AZ54: Exp | BA54: Sort Index | BB54: =IF($BX112:$CF112,BB52:BJ52,BB53:BJ53) -> 1 | BC54: 2 | BD54: 3 | BE54: 4 | BF54: 5 | BG54: 6 | BH54: 7 | BI54: 8 | BJ54: 9 | BN54: Dev | BO54: Sort Index | BP54: =IF($BX113:$CF113,BP52:BX52,BP53:BX53) -> 1 | BQ54: 2 | BR54: 3 | BS54: 4 | BT54: 5 | BU54: 6 | BV54: 7 | BW54: 8 | BX54: 9
B55: =B54+IF(B54+1=RefPay,2,1) -> 3 | C55: 2-3 | D55: =IF(B55<FirstDiagIncluded,0,INDEX($F$15:$F$41,NumExpPars+NumDevPars+INDEX(MapDiagsToPayPeriodPars,B55)-FirstPayParIncluded+1)) -> 1.742056704 | F55: 11-12 | G55: =MMULT(K55:S55,$D$54:$D$62)+V55 -> 1.69472541 | H55: =H54+G55 -> 3.38945082 | I55: =IF(SUM(OFFSET(J55,0,FirstDiagIncluded,1,10-FirstDiagIncluded))<>1,"Sum≠1","") ->  | J55: 11-12 | K55: =1/9 -> 0.1111111111 | L55: 0.1111111111 | M55: 0.1111111111 | N55: 0.1111111111 | O55: 0.1111111111 | P55: 0.1111111111 | Q55: 0.1111111111 | R55: 0.1111111111 | S55: 0.1111111111 | U55: 11-12 | V55: 0 | W55: =V55+W54 -> 0 | Y55: =IF(Y$53>NumPayParsIncluded,"",Y54+SUM(OFFSET($J55,0,INDEX(PayParStart,FirstPayParIncluded+Y$53-1),1,INDEX(PayParEnd,FirstPayParIncluded+Y$53-1)-INDEX(PayParStart,FirstPayParIncluded+Y$53-1)))) -> 0.2222222222 | Z55: =IF(Z$53>NumPayParsIncluded,"",Z54+SUM(OFFSET($J55,0,INDEX(PayParStart,FirstPayParIncluded+Z$53-1),1,INDEX(PayParEnd,FirstPayParIncluded+Z$53-1)-INDEX(PayParStart,FirstPayParIncluded+Z$53-1)))) -> 0.2222222222 | AA55: =IF(AA$53>NumPayParsIncluded,"",AA54+SUM(OFFSET($J55,0,INDEX(PayParStart,FirstPayParIncluded+AA$53-1),1,INDEX(PayParEnd,FirstPayParIncluded+AA$53-1)-INDEX(PayParStart,FirstPayParIncluded+AA$53-1)))) -> 0.2222222222 | AB55: =IF(AB$53>NumPayParsIncluded,"",AB54+SUM(OFFSET($J55,0,INDEX(PayParStart,FirstPayParIncluded+AB$53-1),1,INDEX(PayParEnd,FirstPayParIncluded+AB$53-1)-INDEX(PayParStart,FirstPayParIncluded+AB$53-1)))) -> 0.2222222222 | AC55: =IF(AC$53>NumPayParsIncluded,"",AC54+SUM(OFFSET($J55,0,INDEX(PayParStart,FirstPayParIncluded+AC$53-1),1,INDEX(PayParEnd,FirstPayParIncluded+AC$53-1)-INDEX(PayParStart,FirstPayParIncluded+AC$53-1)))) -> 0.2222222222 | AD55: =IF(AD$53>NumPayParsIncluded,"",AD54+SUM(OFFSET($J55,0,INDEX(PayParStart,FirstPayParIncluded+AD$53-1),1,INDEX(PayParEnd,FirstPayParIncluded+AD$53-1)-INDEX(PayParStart,FirstPayParIncluded+AD$53-1)))) -> 0.2222222222 | AE55: =IF(AE$53>NumPayParsIncluded,"",AE54+SUM(OFFSET($J55,0,INDEX(PayParStart,FirstPayParIncluded+AE$53-1),1,INDEX(PayParEnd,FirstPayParIncluded+AE$53-1)-INDEX(PayParStart,FirstPayParIncluded+AE$53-1)))) -> 0.2222222222 | AF55: =IF(AF$53>NumPayParsIncluded,"",AF54+SUM(OFFSET($J55,0,INDEX(PayParStart,FirstPayParIncluded+AF$53-1),1,INDEX(PayParEnd,FirstPayParIncluded+AF$53-1)-INDEX(PayParStart,FirstPayParIncluded+AF$53-1)))) -> 0.2222222222 | AG55: =IF(AG$53>NumPayParsIncluded,"",AG54+SUM(OFFSET($J55,0,INDEX(PayParStart,FirstPayParIncluded+AG$53-1),1,INDEX(PayParEnd,FirstPayParIncluded+AG$53-1)-INDEX(PayParStart,FirstPayParIncluded+AG$53-1)))) -> 0.2222222222 | AM55: Pay | AN55: Start Interim | AO55: =IF(AO51<=NumPayPars,MATCH(AO51,$AO54:$AW54,0),"") -> 1 | AP55: =IF(AP51<=NumPayPars,MATCH(AP51,AO54:AW54,0),"") -> 2 | AQ55: =IF(AQ51<=NumPayPars,MATCH(AQ51,AO54:AW54,0),"") -> 3 | AR55: =IF(AR51<=NumPayPars,MATCH(AR51,AO54:AW54,0),"") -> 4 | AS55: =IF(AS51<=NumPayPars,MATCH(AS51,AO54:AW54,0),"") -> 5 | AT55: =IF(AT51<=NumPayPars,MATCH(AT51,AO54:AW54,0),"") -> 6 | AU55: =IF(AU51<=NumPayPars,MATCH(AU51,AO54:AW54,0),"") -> 7 | AV55: =IF(AV51<=NumPayPars,MATCH(AV51,AO54:AW54,0),"") -> 8 | AW55: =IF(AW51<=NumPayPars,MATCH(AW51,AO54:AW54,0),"") -> 9 | AZ55: Exp | BA55: Start Period | BB55: =IF(BB51<=NumExpPars,MATCH(BB51,BB54:BJ54,0),"") -> 1 | BC55: =IF(BC51<=NumExpPars,MATCH(BC51,BB54:BJ54,0),"") -> 2 | BD55: =IF(BD51<=NumExpPars,MATCH(BD51,BB54:BJ54,0),"") -> 3 | BE55: =IF(BE51<=NumExpPars,MATCH(BE51,BB54:BJ54,0),"") -> 4 | BF55: =IF(BF51<=NumExpPars,MATCH(BF51,BB54:BJ54,0),"") -> 5 | BG55: =IF(BG51<=NumExpPars,MATCH(BG51,BB54:BJ54,0),"") -> 6 | BH55: =IF(BH51<=NumExpPars,MATCH(BH51,BB54:BJ54,0),"") -> 7 | BI55: =IF(BI51<=NumExpPars,MATCH(BI51,BB54:BJ54,0),"") -> 8 | BJ55: =IF(BJ51<=NumExpPars,MATCH(BJ51,BB54:BJ54,0),"") -> 9 | BN55: Dev | BO55: Start Period | BP55: =IF(BP51<=NumDevPars,MATCH(BP51,BP54:BX54,0),"") -> 1 | BQ55: =IF(BQ51<=NumDevPars,MATCH(BQ51,BP54:BX54,0),"") -> 2 | BR55: =IF(BR51<=NumDevPars,MATCH(BR51,BP54:BX54,0),"") -> 3 | BS55: =IF(BS51<=NumDevPars,MATCH(BS51,BP54:BX54,0),"") -> 4 | BT55: =IF(BT51<=NumDevPars,MATCH(BT51,BP54:BX54,0),"") -> 5 | BU55: =IF(BU51<=NumDevPars,MATCH(BU51,BP54:BX54,0),"") -> 6 | BV55: =IF(BV51<=NumDevPars,MATCH(BV51,BP54:BX54,0),"") -> 7 | BW55: =IF(BW51<=NumDevPars,MATCH(BW51,BP54:BX54,0),"") -> 8 | BX55: =IF(BX51<=NumDevPars,MATCH(BX51,BP54:BX54,0),"") -> 9
B56: 4 | C56: 3-4 | D56: 1.729813428 | F56: 12-13 | G56: 1.69472541 | H56: =H55+G56 -> 5.08417623 | J56: 12-13 | K56: 0.1111111111 | L56: 0.1111111111 | M56: 0.1111111111 | N56: 0.1111111111 | O56: 0.1111111111 | P56: 0.1111111111 | Q56: 0.1111111111 | R56: 0.1111111111 | S56: 0.1111111111 | U56: 12-13 | V56: 0 | W56: =V56+W55 -> 0 | Y56: 0.3333333333 | Z56: 0.3333333333 | AA56: 0.3333333333 | AB56: 0.3333333333 | AC56: 0.3333333333 | AD56: 0.3333333333 | AE56: 0.3333333333 | AF56: 0.3333333333 | AG56: 0.3333333333 | AM56: Pay | AN56: End Interim | AO56: =IF(AO51<=NumPayPars,IF(AO51=NumPayPars,10,AP55),"") -> 2 | AP56: =IF(AP51<=NumPayPars,IF(AP51=NumPayPars,10,AQ55),"") -> 3 | AQ56: 4 | AR56: 5 | AS56: 6 | AT56: 7 | AU56: 8 | AV56: 9 | AW56: 10 | AZ56: Exp | BA56: End Period | BB56: =IF(BB51<=NumExpPars,IF(BB51=NumExpPars,10,BC55),"") -> 2 | BC56: 3 | BD56: 4 | BE56: 5 | BF56: 6 | BG56: 7 | BH56: 8 | BI56: 9 | BJ56: =IF(BJ51<=NumExpPars,IF(BJ51=NumExpPars,10,BK55),"") -> 10 | BN56: Dev | BO56: End Period | BP56: =IF(BP51<=NumDevPars,IF(BP51=NumDevPars,10,BQ55),"") -> 2 | BQ56: 3 | BR56: 4 | BS56: 5 | BT56: 6 | BU56: 7 | BV56: 8 | BW56: 9 | BX56: =IF(BX51<=NumDevPars,IF(BX51=NumDevPars,10,#REF!),"") -> 10
B57: 5 | C57: 4-5 | D57: 1.715363736 | F57: 13-14 | G57: 1.69472541 | H57: 6.778901639 | J57: 13-14 | K57: 0.1111111111 | L57: 0.1111111111 | M57: 0.1111111111 | N57: 0.1111111111 | O57: 0.1111111111 | P57: 0.1111111111 | Q57: 0.1111111111 | R57: 0.1111111111 | S57: 0.1111111111 | U57: 13-14 | V57: 0 | W57: 0 | Y57: 0.4444444444 | Z57: 0.4444444444 | AA57: 0.4444444444 | AB57: 0.4444444444 | AC57: 0.4444444444 | AD57: 0.4444444444 | AE57: 0.4444444444 | AF57: 0.4444444444 | AG57: 0.4444444444 | AM57: Pay | AN57: Map Interim | AO57: =IF(AO51=RefPay,0,1) -> 0 | AP57: =IF(AP51=RefPay,0,IF(INDEX($AO$56:$AW$56,AO57)<RefPay,IF(INDEX($AO$56:$AW$56,AO57)<=AP51,1,0),IF(INDEX($AO$56:$AW$56,AO57)>=AP51,0,1)))+1 -> 1 | AQ57: =IF(AQ51=RefPay,0,IF(INDEX($AO$56:$AW$56,AP57)<RefPay,IF(INDEX($AO$56:$AW$56,AP57)<=AQ51,1,0),IF(INDEX($AO$56:$AW$56,AP57)>=AQ51,0,1)))+AP57 -> 2 | AR57: 3 | AS57: 4 | AT57: 5 | AU57: 6 | AV57: 7 | AW57: 8 | AX57: 9 | AZ57: Exp | BA57: Interim | BB57: =IF(BB51=RefExp,0,1) -> 1 | BC57: =IF(BC51=RefExp,0,IF(INDEX($BB$56:$BJ$56,BB57)<RefExp,IF(INDEX($BB$56:$BJ$56,BB57)<=BC51,1,0),IF(INDEX($BB$56:$BJ$56,BB57)>=BC51,0,1)))+1 -> 2 | BD57: =IF(BD51=RefExp,0,IF(INDEX($BB$56:$BJ$56,BC57)<RefExp,IF(INDEX($BB$56:$BJ$56,BC57)<=BD51,1,0),IF(INDEX($BB$56:$BJ$56,BC57)>=BD51,0,1)))+BC57 -> 3 | BE57: 4 | BF57: 5 | BG57: 6 | BH57: 7 | BI57: 8 | BJ57: 9 | BK57: 9 | BN57: Dev | BO57: Interim | BP57: =IF(BP51=RefDev,0,1) -> 0 | BQ57: =IF(BQ51=RefDev,0,IF(INDEX($BP$56:$BX$56,BP57)<RefDev,IF(INDEX($BP$56:$BX$56,BP57)<=BQ51,1,0),IF(INDEX($BP$56:$BX$56,BP57)>=BQ51,0,1)))+1 -> 1 | BR57: =IF(BR51=RefDev,0,IF(INDEX($BP$56:$BX$56,BQ57)<RefDev,IF(INDEX($BP$56:$BX$56,BQ57)<=BR51,1,0),IF(INDEX($BP$56:$BX$56,BQ57)>=BR51,0,1)))+BQ57 -> 2 | BS57: 3 | BT57: 4 | BU57: 5 | BV57: 6 | BW57: 7 | BX57: 8 | BY57: 9
B58: 6 | C58: 5-6 | D58: 1.701772414 | F58: 14-15 | G58: 1.69472541 | H58: 8.473627049 | J58: 14-15 | K58: 0.1111111111 | L58: 0.1111111111 | M58: 0.1111111111 | N58: 0.1111111111 | O58: 0.1111111111 | P58: 0.1111111111 | Q58: 0.1111111111 | R58: 0.1111111111 | S58: 0.1111111111 | U58: 14-15 | V58: 0 | W58: 0 | Y58: 0.5555555556 | Z58: 0.5555555556 | AA58: 0.5555555556 | AB58: 0.5555555556 | AC58: 0.5555555556 | AD58: 0.5555555556 | AE58: 0.5555555556 | AF58: 0.5555555556 | AG58: 0.5555555556 | AM58: Pay | AN58: Map Diag's | AO58: =IF(AO51:AX51=RefPay,0,AO57:AX57) -> 0 | AP58: 1 | AQ58: 2 | AR58: 3 | AS58: 4 | AT58: 5 | AU58: 6 | AV58: 7 | AW58: 8 | AX58: 9 | AZ58: Exp | BA58: Map Rows | BB58: =IF(BB51:BK51=RefExp,0,BB57:BK57) -> 1 | BC58: 2 | BD58: 3 | BE58: 4 | BF58: 5 | BG58: 6 | BH58: 7 | BI58: 8 | BJ58: 9 | BK58: 0 | BN58: Dev | BO58: Map Col's | BP58: =IF(BP51:BY51=RefDev,0,BP57:BY57) -> 0 | BQ58: 1 | BR58: 2 | BS58: 3 | BT58: 4 | BU58: 5 | BV58: 6 | BW58: 7 | BX58: 8 | BY58: 9
B59: =B58+IF(B58+1=RefPay,2,1) -> 7 | C59: 6-7 | D59: 1.659750556 | F59: 15-16 | G59: 1.69472541 | H59: 10.16835246 | I59: =IF(SUM(OFFSET(J59,0,FirstDiagIncluded,1,10-FirstDiagIncluded))<>1,"Sum≠1","") ->  | J59: 15-16 | K59: 0.1111111111 | L59: 0.1111111111 | M59: 0.1111111111 | N59: 0.1111111111 | O59: 0.1111111111 | P59: 0.1111111111 | Q59: 0.1111111111 | R59: 0.1111111111 | S59: 0.1111111111 | U59: 15-16 | V59: 0 | W59: 0 | Y59: 0.6666666667 | Z59: 0.6666666667 | AA59: 0.6666666667 | AB59: 0.6666666667 | AC59: 0.6666666667 | AD59: 0.6666666667 | AE59: 0.6666666667 | AF59: 0.6666666667 | AG59: 0.6666666667 | AM59: Pay | AN59: Start Period | AO59: =IF(AO51<FirstPayParIncluded,0,IF(AO51=FirstPayParIncluded,FirstDiagIncluded,AO55)) -> 1 | AP59: 2 | AQ59: 3 | AR59: 4 | AS59: 5 | AT59: 6 | AU59: 7 | AV59: 8 | AW59: 9
B60: 8 | C60: 7-8 | D60: 1.627839894 | F60: 16-17 | G60: 1.69472541 | H60: 11.86307787 | J60: 16-17 | K60: 0.1111111111 | L60: 0.1111111111 | M60: 0.1111111111 | N60: 0.1111111111 | O60: 0.1111111111 | P60: 0.1111111111 | Q60: 0.1111111111 | R60: 0.1111111111 | S60: 0.1111111111 | U60: 16-17 | V60: 0 | W60: 0 | Y60: 0.7777777778 | Z60: 0.7777777778 | AA60: 0.7777777778 | AB60: 0.7777777778 | AC60: 0.7777777778 | AD60: 0.7777777778 | AE60: 0.7777777778 | AF60: 0.7777777778 | AG60: 0.7777777778 | AM60: Pay | AN60: End Period | AO60: =IF(AO51<FirstPayParIncluded,0,AO56) -> 2 | AP60: 3 | AQ60: 4 | AR60: 5 | AS60: 6 | AT60: 7 | AU60: 8 | AV60: 9 | AW60: 10
B61: 9 | C61: 8-9 | D61: 1.630999483 | F61: 17-18 | G61: 1.69472541 | H61: 13.55780328 | J61: 17-18 | K61: 0.1111111111 | L61: 0.1111111111 | M61: 0.1111111111 | N61: 0.1111111111 | O61: 0.1111111111 | P61: 0.1111111111 | Q61: 0.1111111111 | R61: 0.1111111111 | S61: 0.1111111111 | U61: 17-18 | V61: 0 | W61: 0 | Y61: 0.8888888889 | Z61: 0.8888888889 | AA61: 0.8888888889 | AB61: 0.8888888889 | AC61: 0.8888888889 | AD61: 0.8888888889 | AE61: 0.8888888889 | AF61: 0.8888888889 | AG61: 0.8888888889
B62: 10 | C62: 9-10 | D62: 1.625189063 | F62: 18-19 | G62: 1.69472541 | H62: 15.25252869 | J62: 18-19 | K62: 0.1111111111 | L62: 0.1111111111 | M62: 0.1111111111 | N62: 0.1111111111 | O62: 0.1111111111 | P62: 0.1111111111 | Q62: 0.1111111111 | R62: 0.1111111111 | S62: 0.1111111111 | U62: 18-19 | V62: 0 | W62: 0 | Y62: 1 | Z62: 1 | AA62: 1 | AB62: 1 | AC62: 1 | AD62: 1 | AE62: 1 | AF62: 1 | AG62: 1
F63: 19-20 | G63: 1.69472541 | H63: 16.9472541 | J63: 19-20 | K63: 0.1111111111 | L63: 0.1111111111 | M63: 0.1111111111 | N63: 0.1111111111 | O63: 0.1111111111 | P63: 0.1111111111 | Q63: 0.1111111111 | R63: 0.1111111111 | S63: 0.1111111111 | U63: 19-20 | V63: 0 | W63: 0 | Y63: 1.111111111 | Z63: 1.111111111 | AA63: 1.111111111 | AB63: 1.111111111 | AC63: 1.111111111 | AD63: 1.111111111 | AE63: 1.111111111 | AF63: 1.111111111 | AG63: 1.111111111
F64: 20-21 | G64: 1.69472541 | H64: 18.64197951 | J64: 20-21 | K64: 0.1111111111 | L64: 0.1111111111 | M64: 0.1111111111 | N64: 0.1111111111 | O64: 0.1111111111 | P64: 0.1111111111 | Q64: 0.1111111111 | R64: 0.1111111111 | S64: 0.1111111111 | U64: 20-21 | V64: 0 | W64: 0 | Y64: 1.222222222 | Z64: 1.222222222 | AA64: 1.222222222 | AB64: 1.222222222 | AC64: 1.222222222 | AD64: 1.222222222 | AE64: 1.222222222 | AF64: 1.222222222 | AG64: 1.222222222
F65: 21-22 | G65: 1.69472541 | H65: 20.33670492 | J65: 21-22 | K65: 0.1111111111 | L65: 0.1111111111 | M65: 0.1111111111 | N65: 0.1111111111 | O65: 0.1111111111 | P65: 0.1111111111 | Q65: 0.1111111111 | R65: 0.1111111111 | S65: 0.1111111111 | U65: 21-22 | V65: 0 | W65: 0 | Y65: 1.333333333 | Z65: 1.333333333 | AA65: 1.333333333 | AB65: 1.333333333 | AC65: 1.333333333 | AD65: 1.333333333 | AE65: 1.333333333 | AF65: 1.333333333 | AG65: 1.333333333
F66: 22-23 | G66: 1.69472541 | H66: 22.03143033 | J66: 22-23 | K66: 0.1111111111 | L66: 0.1111111111 | M66: 0.1111111111 | N66: 0.1111111111 | O66: 0.1111111111 | P66: 0.1111111111 | Q66: 0.1111111111 | R66: 0.1111111111 | S66: 0.1111111111 | U66: 22-23 | V66: 0 | W66: 0 | Y66: 1.444444444 | Z66: 1.444444444 | AA66: 1.444444444 | AB66: 1.444444444 | AC66: 1.444444444 | AD66: 1.444444444 | AE66: 1.444444444 | AF66: 1.444444444 | AG66: 1.444444444
F67: 23-24 | G67: 1.69472541 | H67: 23.72615574 | J67: 23-24 | K67: 0.1111111111 | L67: 0.1111111111 | M67: 0.1111111111 | N67: 0.1111111111 | O67: 0.1111111111 | P67: 0.1111111111 | Q67: 0.1111111111 | R67: 0.1111111111 | S67: 0.1111111111 | U67: 23-24 | V67: 0 | W67: 0 | Y67: 1.555555556 | Z67: 1.555555556 | AA67: 1.555555556 | AB67: 1.555555556 | AC67: 1.555555556 | AD67: 1.555555556 | AE67: 1.555555556 | AF67: 1.555555556 | AG67: 1.555555556
C72: Fitted Development Period Trends | F72: Extrapolated Development Period Trends (Future) | J72: Extrapolation Weights (Future) | U72: Extrapolation Offset (Future) | Y72: Grouped Parameter Weights (cumulative)
B73: Dev Period | C73: Trend | D73: Incremental | F73: Trend | G73: Incremental | H73: Cumulative | J73: Trend | K73: 1-2 | L73: 2-3 | M73: 3-4 | N73: 4-5 | O73: 5-6 | P73: 6-7 | Q73: 7-8 | R73: 8-9 | S73: 9-10 | U73: Trend | V73: Offset | W73: Cumu. | Y73: 1 | Z73: 2 | AA73: 3 | AB73: 4 | AC73: 5 | AD73: 6 | AE73: 7 | AF73: 8 | AG73: 9
B74: =IF(1<RefDev,1,2) -> 2 | C74: 1-2 | D74: =INDEX($F$15:$F$41,NumExpPars+INDEX(MapColsToDevPeriodPars,B74)) -> -1.954934091 | F74: 10-11 | G74: =MMULT(K74:S74,$D$74:$D$82)+V74 -> -2.265943576 | H74: =G74 -> -2.265943576 | I74: =IF(SUM(K74:S74)<>1,"Sum≠1","") ->  | J74: 10-11 | K74: 0 | L74: 0 | M74: 0 | N74: 0 | O74: 0.2 | P74: 0.2 | Q74: 0.2 | R74: 0.2 | S74: 0.2 | U74: 10-11 | V74: 0.0865 | W74: =V74 -> 0.0865 | Y74: =IF(Y$53>NumDevPars,"",SUM(OFFSET($J74,0,INDEX(DevParStart,Y$73),1,INDEX(DevParEnd,Y$73)-INDEX(DevParStart,Y$73)))) -> 0 | Z74: 0 | AA74: 0 | AB74: 0 | AC74: 0.2 | AD74: 0.2 | AE74: 0.2 | AF74: 0.2 | AG74: 0.2
B75: =B74+IF(B74+1=RefDev,2,1) -> 3 | C75: 2-3 | D75: -2.51233756 | F75: 11-12 | G75: =MMULT(K75:S75,$D$74:$D$82)+V75 -> -2.265943576 | H75: =H74+G75 -> -4.531887153 | I75: =IF(SUM(K75:S75)<>1,"Sum≠1","") ->  | J75: 11-12 | K75: 0 | L75: 0 | M75: 0 | N75: 0 | O75: 0.2 | P75: 0.2 | Q75: 0.2 | R75: 0.2 | S75: 0.2 | U75: 11-12 | V75: 0.0865 | W75: =V75+W74 -> 0.173 | Y75: =IF(Y$53>NumDevPars,"",Y74+SUM(OFFSET($J75,0,INDEX(DevParStart,Y$73),1,INDEX(DevParEnd,Y$73)-INDEX(DevParStart,Y$73)))) -> 0 | Z75: 0 | AA75: 0 | AB75: 0 | AC75: 0.4 | AD75: 0.4 | AE75: 0.4 | AF75: 0.4 | AG75: 0.4
B76: 4 | C76: 3-4 | D76: -2.332625767 | F76: 12-13 | G76: =MMULT(K76:S76,$D$74:$D$82)+V76 -> -2.265943576 | H76: =H75+G76 -> -6.797830729 | J76: 12-13 | K76: 0 | L76: 0 | M76: 0 | N76: 0 | O76: 0.2 | P76: 0.2 | Q76: 0.2 | R76: 0.2 | S76: 0.2 | U76: 12-13 | V76: 0.0865 | W76: =V76+W75 -> 0.2595 | Y76: 0 | Z76: 0 | AA76: 0 | AB76: 0 | AC76: 0.6 | AD76: 0.6 | AE76: 0.6 | AF76: 0.6 | AG76: 0.6
B77: 5 | C77: 4-5 | D77: -2.350167979 | F77: 13-14 | G77: =MMULT(K77:S77,$D$74:$D$82)+V77 -> -2.265943576 | H77: -9.063774306 | J77: 13-14 | K77: 0 | L77: 0 | M77: 0 | N77: 0 | O77: 0.2 | P77: 0.2 | Q77: 0.2 | R77: 0.2 | S77: 0.2 | U77: 13-14 | V77: 0.0865 | W77: 0.346 | Y77: 0 | Z77: 0 | AA77: 0 | AB77: 0 | AC77: 0.8 | AD77: 0.8 | AE77: 0.8 | AF77: 0.8 | AG77: 0.8
B78: 6 | C78: 5-6 | D78: -2.377086555 | F78: 14-15 | G78: =MMULT(K78:S78,$D$74:$D$82)+V78 -> -2.265943576 | H78: -11.32971788 | J78: 14-15 | K78: 0 | L78: 0 | M78: 0 | N78: 0 | O78: 0.2 | P78: 0.2 | Q78: 0.2 | R78: 0.2 | S78: 0.2 | U78: 14-15 | V78: 0.0865 | W78: 0.4325 | Y78: 0 | Z78: 0 | AA78: 0 | AB78: 0 | AC78: 1 | AD78: 1 | AE78: 1 | AF78: 1 | AG78: 1
B79: 7 | C79: 6-7 | D79: -2.342169334
B80: 8 | C80: 7-8 | D80: -2.331139763 | F80: Extrapolated Payment Period Trends (Past) | J80: Extrapolation Weights (Past) | U80: Extrapolation Offset (Past) | Y80: Grouped Parameter Weights (cumulative)
B81: 9 | C81: 8-9 | D81: -2.445849255 | F81: Trend | G81: Incremental | H81: Cumulative | J81: Trend | K81: 1-2 | L81: 2-3 | M81: 3-4 | N81: 4-5 | O81: 5-6 | P81: 6-7 | Q81: 7-8 | R81: 8-9 | S81: 9-10 | U81: Trend | V81: Offset | W81: Cumu. | Y81: 1 | Z81: 2 | AA81: 3 | AB81: 4 | AC81: 5 | AD81: 6 | AE81: 7 | AF81: 8 | AG81: 9
B82: 10 | C82: 9-10 | D82: -2.265972975 | F82: 1-2 | G82: =IF(B54>=FirstDiagIncluded,0,MMULT(K82:S82,$D$54:$D$62)+V82) -> 0 | H82: =H83-G82 -> 0 | I82: =IF(SUM(OFFSET(J82,0,FirstDiagIncluded,1,10-FirstDiagIncluded))<>1,"Sum≠1","") ->  | J82: 1-2 | K82: 0 | L82: 0 | M82: 0 | N82: 0 | O82: 0 | P82: 0 | Q82: =1/3 -> 0.3333333333 | R82: 0.3333333333 | S82: 0.3333333333 | U82: 1-2 | V82: 0 | W82: =IF($B54>=FirstDiagIncluded,0,W83-V82) -> 0 | Y82: =IF(Y$81>NumPayParsIncluded,"",IF($B54>=FirstDiagIncluded,0,Y83-SUM(OFFSET($J82,0,INDEX(PayParStart,FirstPayParIncluded+Y$81-1),1,INDEX(PayParEnd,FirstPayParIncluded+Y$81-1)-INDEX(PayParStart,FirstPayParIncluded+Y$81-1))))) -> 0 | Z82: 0 | AA82: 0 | AB82: 0 | AC82: 0 | AD82: 0 | AE82: 0 | AF82: 0 | AG82: 0
F83: 2-3 | G83: 0 | H83: 0 | J83: 2-3 | K83: 0 | L83: 0 | M83: 0 | N83: 0 | O83: 0 | P83: 0 | Q83: 0.3333333333 | R83: 0.3333333333 | S83: 0.3333333333 | U83: 2-3 | V83: 0 | W83: 0 | Y83: 0 | Z83: 0 | AA83: 0 | AB83: 0 | AC83: 0 | AD83: 0 | AE83: 0 | AF83: 0 | AG83: 0
F84: 3-4 | G84: 0 | H84: 0 | J84: 3-4 | K84: 0 | L84: 0 | M84: 0 | N84: 0 | O84: 0 | P84: 0 | Q84: 0.3333333333 | R84: 0.3333333333 | S84: 0.3333333333 | U84: 3-4 | V84: 0 | W84: 0 | Y84: 0 | Z84: 0 | AA84: 0 | AB84: 0 | AC84: 0 | AD84: 0 | AE84: 0 | AF84: 0 | AG84: 0
F85: 4-5 | G85: 0 | H85: 0 | J85: 4-5 | K85: 0 | L85: 0 | M85: 0 | N85: 0 | O85: 0 | P85: 0 | Q85: 0.3333333333 | R85: 0.3333333333 | S85: 0.3333333333 | U85: 4-5 | V85: 0 | W85: 0 | Y85: 0 | Z85: 0 | AA85: 0 | AB85: 0 | AC85: 0 | AD85: 0 | AE85: 0 | AF85: 0 | AG85: 0
F86: 5-6 | G86: 0 | H86: 0 | J86: 5-6 | K86: 0 | L86: 0 | M86: 0 | N86: 0 | O86: 0 | P86: 0 | Q86: 0.3333333333 | R86: 0.3333333333 | S86: 0.3333333333 | U86: 5-6 | V86: 0 | W86: 0 | Y86: 0 | Z86: 0 | AA86: 0 | AB86: 0 | AC86: 0 | AD86: 0 | AE86: 0 | AF86: 0 | AG86: 0
F87: 6-7 | G87: 0 | H87: 0 | J87: 6-7 | K87: 0 | L87: 0 | M87: 0 | N87: 0 | O87: 0 | P87: 0 | Q87: 0.3333333333 | R87: 0.3333333333 | S87: 0.3333333333 | U87: 6-7 | V87: 0 | W87: 0 | Y87: 0 | Z87: 0 | AA87: 0 | AB87: 0 | AC87: 0 | AD87: 0 | AE87: 0 | AF87: 0 | AG87: 0
F88: 7-8 | G88: 0 | H88: 0 | J88: 7-8 | K88: 0 | L88: 0 | M88: 0 | N88: 0 | O88: 0 | P88: 0 | Q88: 0.3333333333 | R88: 0.3333333333 | S88: 0.3333333333 | U88: 7-8 | V88: 0 | W88: 0 | Y88: 0 | Z88: 0 | AA88: 0 | AB88: 0 | AC88: 0 | AD88: 0 | AE88: 0 | AF88: 0 | AG88: 0
F89: 8-9 | G89: 0 | H89: =H90-G89 -> 0 | J89: 8-9 | K89: 0 | L89: 0 | M89: 0 | N89: 0 | O89: 0 | P89: 0 | Q89: 0.3333333333 | R89: 0.3333333333 | S89: 0.3333333333 | U89: 8-9 | V89: 0 | W89: 0 | Y89: 0 | Z89: 0 | AA89: 0 | AB89: 0 | AC89: 0 | AD89: 0 | AE89: 0 | AF89: 0 | AG89: 0
F90: 9-10 | G90: 0 | H90: =G90 -> 0 | J90: 9-10 | K90: 0 | L90: 0 | M90: 0 | N90: 0 | O90: 0 | P90: 0 | Q90: 0.3333333333 | R90: 0.3333333333 | S90: 0.3333333333 | U90: 9-10 | V90: 0 | W90: =IF($B62>=FirstDiagIncluded,0,-V90) -> 0 | Y90: =IF(Y$81>NumPayParsIncluded,"",IF($B62>=FirstDiagIncluded,0,-SUM(OFFSET($J90,0,INDEX(PayParStart,FirstPayParIncluded+Y$81-1),1,INDEX(PayParEnd,FirstPayParIncluded+Y$81-1)-INDEX(PayParStart,FirstPayParIncluded+Y$81-1))))) -> 0 | Z90: 0 | AA90: 0 | AB90: 0 | AC90: 0 | AD90: 0 | AE90: 0 | AF90: 0 | AG90: 0
C92: Index of Triangle Cells | G92: Model Matrix (X) - lightly shaded cells only, darker cells used for extrapolated values | AJ92: Data Values | AL92: Modeled Values | AO92: Hat Matrix Diagonal Values & Auxilary Indices | AV92: Residuals | BA92: Chart Series & Auxilary Chart Data | BP92: Plots of Standardized Pearson Residuals
G93: =TRANSPOSE(A15:A41) -> 1 | H93: 1 | I93: 1 | J93: 1 | K93: 1 | L93: 1 | M93: 1 | N93: 1 | O93: 1 | P93: 2 | Q93: 2 | R93: 2 | S93: 2 | T93: 2 | U93: 2 | V93: 2 | W93: 2 | X93: 2 | Y93: 3 | Z93: 3 | AA93: 3 | AB93: 3 | AC93: 3 | AD93: 3 | AE93: 3 | AF93: 3 | AG93: 3 | AO93: =SUM(IF(A96:A195,0,IF(ROUND(AO96:AO150,9)=1,0,1))) -> 52 | AP93: 9 | AV93: =VLOOKUP(VarianceFunction,$A$2:$B$5,2,FALSE) -> 1 | AX93: =SQRT(SUMSQ(AX96:AX195)/NumResiduals-AY93^2) -> 56.59048808 | AY93: =SUM(AX96:AX195)/NumResiduals -> 0.1630540243 | BG93: =LINEST(OFFSET(BH96,0,0,NumResiduals,1),OFFSET(BG96,0,0,NumResiduals,1)) -> 1.038620401e-08 | BH93: -0.01203429545
G94: 1 | H94: 2 | I94: 3 | J94: 4 | K94: 5 | L94: 6 | M94: 7 | N94: 8 | O94: 9 | P94: 10 | Q94: 11 | R94: 12 | S94: 13 | T94: 14 | U94: 15 | V94: 16 | W94: 17 | X94: 18 | Y94: 19 | Z94: 20 | AA94: 21 | AB94: 22 | AC94: 23 | AD94: 24 | AE94: 25 | AF94: 26 | AG94: 27
A95: Expanded | B95: Mtrx Row | C95: Row | D95: Column | E95: Diag | G95: =TRANSPOSE(C15:C41) -> α₁ | H95: α₂ | I95: α₃ | J95: α₄ | K95: α₅ | L95: α₆ | M95: α₇ | N95: α₈ | O95: α₉ | P95: β₁ | Q95: β₂ | R95: β₃ | S95: β₄ | T95: β₅ | U95: β₆ | V95: β₇ | W95: β₈ | X95: β₉ | Y95: γ₁ | Z95: γ₂ | AA95: γ₃ | AB95: γ₄ | AC95: γ₅ | AD95: γ₆ | AE95: γ₇ | AF95: γ₈ | AG95: γ₉ | AH95: Offset | AJ95: Y | AL95: X∙π | AM95: eX∙π | AO95: h | AP95: ResDef | AQ95: Indx1 | AR95: Indx2 | AS95: Index | AV95: Sqr(Var) | AW95: Pearson | AX95: DeLev | AY95: Stand. | BA95: Index | BB95: Match | BC95: ResDef | BD95: Exp | BE95: Dev | BF95: Pay | BG95: FittedY | BH95: Resid. | BI95: ProjRes | BJ95: Period | BK95: Avg_Exp | BL95: Avg_Dev | BM95: Avg_Pay
A96: =B96>$BL$34 -> FALSE | B96: 1 | C96: =MATCH(B96-1,IF(A96,GetRow_Extrapolated,GetRow_Included),1) -> 1 | D96: =MATCH(B96-1,OFFSET(IF(A96,GetCol_Extrapolated,GetCol_Included),C96,0),1) -> 1 | E96: =C96:C195+D96:D195-1 -> 1 | G96: =IF(G95="","",INDEX(OFFSET($CN$23:$CW$23,G$94,0),IF(G$93<3,OFFSET($B$96:$B$195,0,G$93),IF(OFFSET($B$96:$B$195,0,G$93)<10,OFFSET($B$96:$B$195,0,G$93),10)))+IF(G$93<>3,0,IF(OFFSET($B$96:$B$195,0,G$93)<FirstDiagIncluded,OFFSET($X$81,OFFSET($B$96:$B$195,0,G$93),G$94-NumExpPars-NumDevPars),IF(OFFSET($B$96:$B$195,0,G$93)<=10,0,OFFSET($X$53,OFFSET($B$96:$B$195,0,G$93)-10,G$94-NumExpPars-NumDevPars))))) -> -1 | H96: =IF(H95="","",INDEX(OFFSET($CN$23:$CW$23,H$94,0),IF(H$93<3,OFFSET($B$96:$B$195,0,H$93),IF(OFFSET($B$96:$B$195,0,H$93)<10,OFFSET($B$96:$B$195,0,H$93),10)))+IF(H$93<>3,0,IF(OFFSET($B$96:$B$195,0,H$93)<FirstDiagIncluded,OFFSET($X$81,OFFSET($B$96:$B$195,0,H$93),H$94-NumExpPars-NumDevPars),IF(OFFSET($B$96:$B$195,0,H$93)<=10,0,OFFSET($X$53,OFFSET($B$96:$B$195,0,H$93)-10,H$94-NumExpPars-NumDevPars))))) -> -1 | I96: =IF(I95="","",INDEX(OFFSET($CN$23:$CW$23,I$94,0),IF(I$93<3,OFFSET($B$96:$B$195,0,I$93),IF(OFFSET($B$96:$B$195,0,I$93)<10,OFFSET($B$96:$B$195,0,I$93),10)))+IF(I$93<>3,0,IF(OFFSET($B$96:$B$195,0,I$93)<FirstDiagIncluded,OFFSET($X$81,OFFSET($B$96:$B$195,0,I$93),I$94-NumExpPars-NumDevPars),IF(OFFSET($B$96:$B$195,0,I$93)<=10,0,OFFSET($X$53,OFFSET($B$96:$B$195,0,I$93)-10,I$94-NumExpPars-NumDevPars))))) -> -1 | J96: =IF(J95="","",INDEX(OFFSET($CN$23:$CW$23,J$94,0),IF(J$93<3,OFFSET($B$96:$B$195,0,J$93),IF(OFFSET($B$96:$B$195,0,J$93)<10,OFFSET($B$96:$B$195,0,J$93),10)))+IF(J$93<>3,0,IF(OFFSET($B$96:$B$195,0,J$93)<FirstDiagIncluded,OFFSET($X$81,OFFSET($B$96:$B$195,0,J$93),J$94-NumExpPars-NumDevPars),IF(OFFSET($B$96:$B$195,0,J$93)<=10,0,OFFSET($X$53,OFFSET($B$96:$B$195,0,J$93)-10,J$94-NumExpPars-NumDevPars))))) -> -1 | K96: =IF(K95="","",INDEX(OFFSET($CN$23:$CW$23,K$94,0),IF(K$93<3,OFFSET($B$96:$B$195,0,K$93),IF(OFFSET($B$96:$B$195,0,K$93)<10,OFFSET($B$96:$B$195,0,K$93),10)))+IF(K$93<>3,0,IF(OFFSET($B$96:$B$195,0,K$93)<FirstDiagIncluded,OFFSET($X$81,OFFSET($B$96:$B$195,0,K$93),K$94-NumExpPars-NumDevPars),IF(OFFSET($B$96:$B$195,0,K$93)<=10,0,OFFSET($X$53,OFFSET($B$96:$B$195,0,K$93)-10,K$94-NumExpPars-NumDevPars))))) -> -1 | L96: =IF(L95="","",INDEX(OFFSET($CN$23:$CW$23,L$94,0),IF(L$93<3,OFFSET($B$96:$B$195,0,L$93),IF(OFFSET($B$96:$B$195,0,L$93)<10,OFFSET($B$96:$B$195,0,L$93),10)))+IF(L$93<>3,0,IF(OFFSET($B$96:$B$195,0,L$93)<FirstDiagIncluded,OFFSET($X$81,OFFSET($B$96:$B$195,0,L$93),L$94-NumExpPars-NumDevPars),IF(OFFSET($B$96:$B$195,0,L$93)<=10,0,OFFSET($X$53,OFFSET($B$96:$B$195,0,L$93)-10,L$94-NumExpPars-NumDevPars))))) -> -1 | M96: =IF(M95="","",INDEX(OFFSET($CN$23:$CW$23,M$94,0),IF(M$93<3,OFFSET($B$96:$B$195,0,M$93),IF(OFFSET($B$96:$B$195,0,M$93)<10,OFFSET($B$96:$B$195,0,M$93),10)))+IF(M$93<>3,0,IF(OFFSET($B$96:$B$195,0,M$93)<FirstDiagIncluded,OFFSET($X$81,OFFSET($B$96:$B$195,0,M$93),M$94-NumExpPars-NumDevPars),IF(OFFSET($B$96:$B$195,0,M$93)<=10,0,OFFSET($X$53,OFFSET($B$96:$B$195,0,M$93)-10,M$94-NumExpPars-NumDevPars))))) -> -1 | N96: =IF(N95="","",INDEX(OFFSET($CN$23:$CW$23,N$94,0),IF(N$93<3,OFFSET($B$96:$B$195,0,N$93),IF(OFFSET($B$96:$B$195,0,N$93)<10,OFFSET($B$96:$B$195,0,N$93),10)))+IF(N$93<>3,0,IF(OFFSET($B$96:$B$195,0,N$93)<FirstDiagIncluded,OFFSET($X$81,OFFSET($B$96:$B$195,0,N$93),N$94-NumExpPars-NumDevPars),IF(OFFSET($B$96:$B$195,0,N$93)<=10,0,OFFSET($X$53,OFFSET($B$96:$B$195,0,N$93)-10,N$94-NumExpPars-NumDevPars))))) -> -1 | O96: =IF(O95="","",INDEX(OFFSET($CN$23:$CW$23,O$94,0),IF(O$93<3,OFFSET($B$96:$B$195,0,O$93),IF(OFFSET($B$96:$B$195,0,O$93)<10,OFFSET($B$96:$B$195,0,O$93),10)))+IF(O$93<>3,0,IF(OFFSET($B$96:$B$195,0,O$93)<FirstDiagIncluded,OFFSET($X$81,OFFSET($B$96:$B$195,0,O$93),O$94-NumExpPars-NumDevPars),IF(OFFSET($B$96:$B$195,0,O$93)<=10,0,OFFSET($X$53,OFFSET($B$96:$B$195,0,O$93)-10,O$94-NumExpPars-NumDevPars))))) -> -1 | P96: =IF(P95="","",INDEX(OFFSET($CN$23:$CW$23,P$94,0),IF(P$93<3,OFFSET($B$96:$B$195,0,P$93),IF(OFFSET($B$96:$B$195,0,P$93)<10,OFFSET($B$96:$B$195,0,P$93),10)))+IF(P$93<>3,0,IF(OFFSET($B$96:$B$195,0,P$93)<FirstDiagIncluded,OFFSET($X$81,OFFSET($B$96:$B$195,0,P$93),P$94-NumExpPars-NumDevPars),IF(OFFSET($B$96:$B$195,0,P$93)<=10,0,OFFSET($X$53,OFFSET($B$96:$B$195,0,P$93)-10,P$94-NumExpPars-NumDevPars))))) -> 0 | Q96: =IF(Q95="","",INDEX(OFFSET($CN$23:$CW$23,Q$94,0),IF(Q$93<3,OFFSET($B$96:$B$195,0,Q$93),IF(OFFSET($B$96:$B$195,0,Q$93)<10,OFFSET($B$96:$B$195,0,Q$93),10)))+IF(Q$93<>3,0,IF(OFFSET($B$96:$B$195,0,Q$93)<FirstDiagIncluded,OFFSET($X$81,OFFSET($B$96:$B$195,0,Q$93),Q$94-NumExpPars-NumDevPars),IF(OFFSET($B$96:$B$195,0,Q$93)<=10,0,OFFSET($X$53,OFFSET($B$96:$B$195,0,Q$93)-10,Q$94-NumExpPars-NumDevPars))))) -> 0 | R96: =IF(R95="","",INDEX(OFFSET($CN$23:$CW$23,R$94,0),IF(R$93<3,OFFSET($B$96:$B$195,0,R$93),IF(OFFSET($B$96:$B$195,0,R$93)<10,OFFSET($B$96:$B$195,0,R$93),10)))+IF(R$93<>3,0,IF(OFFSET($B$96:$B$195,0,R$93)<FirstDiagIncluded,OFFSET($X$81,OFFSET($B$96:$B$195,0,R$93),R$94-NumExpPars-NumDevPars),IF(OFFSET($B$96:$B$195,0,R$93)<=10,0,OFFSET($X$53,OFFSET($B$96:$B$195,0,R$93)-10,R$94-NumExpPars-NumDevPars))))) -> 0 | S96: =IF(S95="","",INDEX(OFFSET($CN$23:$CW$23,S$94,0),IF(S$93<3,OFFSET($B$96:$B$195,0,S$93),IF(OFFSET($B$96:$B$195,0,S$93)<10,OFFSET($B$96:$B$195,0,S$93),10)))+IF(S$93<>3,0,IF(OFFSET($B$96:$B$195,0,S$93)<FirstDiagIncluded,OFFSET($X$81,OFFSET($B$96:$B$195,0,S$93),S$94-NumExpPars-NumDevPars),IF(OFFSET($B$96:$B$195,0,S$93)<=10,0,OFFSET($X$53,OFFSET($B$96:$B$195,0,S$93)-10,S$94-NumExpPars-NumDevPars))))) -> 0 | T96: =IF(T95="","",INDEX(OFFSET($CN$23:$CW$23,T$94,0),IF(T$93<3,OFFSET($B$96:$B$195,0,T$93),IF(OFFSET($B$96:$B$195,0,T$93)<10,OFFSET($B$96:$B$195,0,T$93),10)))+IF(T$93<>3,0,IF(OFFSET($B$96:$B$195,0,T$93)<FirstDiagIncluded,OFFSET($X$81,OFFSET($B$96:$B$195,0,T$93),T$94-NumExpPars-NumDevPars),IF(OFFSET($B$96:$B$195,0,T$93)<=10,0,OFFSET($X$53,OFFSET($B$96:$B$195,0,T$93)-10,T$94-NumExpPars-NumDevPars))))) -> 0 | U96: =IF(U95="","",INDEX(OFFSET($CN$23:$CW$23,U$94,0),IF(U$93<3,OFFSET($B$96:$B$195,0,U$93),IF(OFFSET($B$96:$B$195,0,U$93)<10,OFFSET($B$96:$B$195,0,U$93),10)))+IF(U$93<>3,0,IF(OFFSET($B$96:$B$195,0,U$93)<FirstDiagIncluded,OFFSET($X$81,OFFSET($B$96:$B$195,0,U$93),U$94-NumExpPars-NumDevPars),IF(OFFSET($B$96:$B$195,0,U$93)<=10,0,OFFSET($X$53,OFFSET($B$96:$B$195,0,U$93)-10,U$94-NumExpPars-NumDevPars))))) -> 0 | V96: =IF(V95="","",INDEX(OFFSET($CN$23:$CW$23,V$94,0),IF(V$93<3,OFFSET($B$96:$B$195,0,V$93),IF(OFFSET($B$96:$B$195,0,V$93)<10,OFFSET($B$96:$B$195,0,V$93),10)))+IF(V$93<>3,0,IF(OFFSET($B$96:$B$195,0,V$93)<FirstDiagIncluded,OFFSET($X$81,OFFSET($B$96:$B$195,0,V$93),V$94-NumExpPars-NumDevPars),IF(OFFSET($B$96:$B$195,0,V$93)<=10,0,OFFSET($X$53,OFFSET($B$96:$B$195,0,V$93)-10,V$94-NumExpPars-NumDevPars))))) -> 0 | W96: =IF(W95="","",INDEX(OFFSET($CN$23:$CW$23,W$94,0),IF(W$93<3,OFFSET($B$96:$B$195,0,W$93),IF(OFFSET($B$96:$B$195,0,W$93)<10,OFFSET($B$96:$B$195,0,W$93),10)))+IF(W$93<>3,0,IF(OFFSET($B$96:$B$195,0,W$93)<FirstDiagIncluded,OFFSET($X$81,OFFSET($B$96:$B$195,0,W$93),W$94-NumExpPars-NumDevPars),IF(OFFSET($B$96:$B$195,0,W$93)<=10,0,OFFSET($X$53,OFFSET($B$96:$B$195,0,W$93)-10,W$94-NumExpPars-NumDevPars))))) -> 0 | X96: =IF(X95="","",INDEX(OFFSET($CN$23:$CW$23,X$94,0),IF(X$93<3,OFFSET($B$96:$B$195,0,X$93),IF(OFFSET($B$96:$B$195,0,X$93)<10,OFFSET($B$96:$B$195,0,X$93),10)))+IF(X$93<>3,0,IF(OFFSET($B$96:$B$195,0,X$93)<FirstDiagIncluded,OFFSET($X$81,OFFSET($B$96:$B$195,0,X$93),X$94-NumExpPars-NumDevPars),IF(OFFSET($B$96:$B$195,0,X$93)<=10,0,OFFSET($X$53,OFFSET($B$96:$B$195,0,X$93)-10,X$94-NumExpPars-NumDevPars))))) -> 0 | Y96: =IF(Y95="","",INDEX(OFFSET($CN$23:$CW$23,Y$94,0),IF(Y$93<3,OFFSET($B$96:$B$195,0,Y$93),IF(OFFSET($B$96:$B$195,0,Y$93)<10,OFFSET($B$96:$B$195,0,Y$93),10)))+IF(Y$93<>3,0,IF(OFFSET($B$96:$B$195,0,Y$93)<FirstDiagIncluded,OFFSET($X$81,OFFSET($B$96:$B$195,0,Y$93),Y$94-NumExpPars-NumDevPars),IF(OFFSET($B$96:$B$195,0,Y$93)<=10,0,OFFSET($X$53,OFFSET($B$96:$B$195,0,Y$93)-10,Y$94-NumExpPars-NumDevPars))))) -> 0 | Z96: =IF(Z95="","",INDEX(OFFSET($CN$23:$CW$23,Z$94,0),IF(Z$93<3,OFFSET($B$96:$B$195,0,Z$93),IF(OFFSET($B$96:$B$195,0,Z$93)<10,OFFSET($B$96:$B$195,0,Z$93),10)))+IF(Z$93<>3,0,IF(OFFSET($B$96:$B$195,0,Z$93)<FirstDiagIncluded,OFFSET($X$81,OFFSET($B$96:$B$195,0,Z$93),Z$94-NumExpPars-NumDevPars),IF(OFFSET($B$96:$B$195,0,Z$93)<=10,0,OFFSET($X$53,OFFSET($B$96:$B$195,0,Z$93)-10,Z$94-NumExpPars-NumDevPars))))) -> 0 | AA96: =IF(AA95="","",INDEX(OFFSET($CN$23:$CW$23,AA$94,0),IF(AA$93<3,OFFSET($B$96:$B$195,0,AA$93),IF(OFFSET($B$96:$B$195,0,AA$93)<10,OFFSET($B$96:$B$195,0,AA$93),10)))+IF(AA$93<>3,0,IF(OFFSET($B$96:$B$195,0,AA$93)<FirstDiagIncluded,OFFSET($X$81,OFFSET($B$96:$B$195,0,AA$93),AA$94-NumExpPars-NumDevPars),IF(OFFSET($B$96:$B$195,0,AA$93)<=10,0,OFFSET($X$53,OFFSET($B$96:$B$195,0,AA$93)-10,AA$94-NumExpPars-NumDevPars))))) -> 0 | AB96: =IF(AB95="","",INDEX(OFFSET($CN$23:$CW$23,AB$94,0),IF(AB$93<3,OFFSET($B$96:$B$195,0,AB$93),IF(OFFSET($B$96:$B$195,0,AB$93)<10,OFFSET($B$96:$B$195,0,AB$93),10)))+IF(AB$93<>3,0,IF(OFFSET($B$96:$B$195,0,AB$93)<FirstDiagIncluded,OFFSET($X$81,OFFSET($B$96:$B$195,0,AB$93),AB$94-NumExpPars-NumDevPars),IF(OFFSET($B$96:$B$195,0,AB$93)<=10,0,OFFSET($X$53,OFFSET($B$96:$B$195,0,AB$93)-10,AB$94-NumExpPars-NumDevPars))))) -> 0 | AC96: =IF(AC95="","",INDEX(OFFSET($CN$23:$CW$23,AC$94,0),IF(AC$93<3,OFFSET($B$96:$B$195,0,AC$93),IF(OFFSET($B$96:$B$195,0,AC$93)<10,OFFSET($B$96:$B$195,0,AC$93),10)))+IF(AC$93<>3,0,IF(OFFSET($B$96:$B$195,0,AC$93)<FirstDiagIncluded,OFFSET($X$81,OFFSET($B$96:$B$195,0,AC$93),AC$94-NumExpPars-NumDevPars),IF(OFFSET($B$96:$B$195,0,AC$93)<=10,0,OFFSET($X$53,OFFSET($B$96:$B$195,0,AC$93)-10,AC$94-NumExpPars-NumDevPars))))) -> 0 | AD96: =IF(AD95="","",INDEX(OFFSET($CN$23:$CW$23,AD$94,0),IF(AD$93<3,OFFSET($B$96:$B$195,0,AD$93),IF(OFFSET($B$96:$B$195,0,AD$93)<10,OFFSET($B$96:$B$195,0,AD$93),10)))+IF(AD$93<>3,0,IF(OFFSET($B$96:$B$195,0,AD$93)<FirstDiagIncluded,OFFSET($X$81,OFFSET($B$96:$B$195,0,AD$93),AD$94-NumExpPars-NumDevPars),IF(OFFSET($B$96:$B$195,0,AD$93)<=10,0,OFFSET($X$53,OFFSET($B$96:$B$195,0,AD$93)-10,AD$94-NumExpPars-NumDevPars))))) -> 0 | AE96: =IF(AE95="","",INDEX(OFFSET($CN$23:$CW$23,AE$94,0),IF(AE$93<3,OFFSET($B$96:$B$195,0,AE$93),IF(OFFSET($B$96:$B$195,0,AE$93)<10,OFFSET($B$96:$B$195,0,AE$93),10)))+IF(AE$93<>3,0,IF(OFFSET($B$96:$B$195,0,AE$93)<FirstDiagIncluded,OFFSET($X$81,OFFSET($B$96:$B$195,0,AE$93),AE$94-NumExpPars-NumDevPars),IF(OFFSET($B$96:$B$195,0,AE$93)<=10,0,OFFSET($X$53,OFFSET($B$96:$B$195,0,AE$93)-10,AE$94-NumExpPars-NumDevPars))))) -> 0 | AF96: =IF(AF95="","",INDEX(OFFSET($CN$23:$CW$23,AF$94,0),IF(AF$93<3,OFFSET($B$96:$B$195,0,AF$93),IF(OFFSET($B$96:$B$195,0,AF$93)<10,OFFSET($B$96:$B$195,0,AF$93),10)))+IF(AF$93<>3,0,IF(OFFSET($B$96:$B$195,0,AF$93)<FirstDiagIncluded,OFFSET($X$81,OFFSET($B$96:$B$195,0,AF$93),AF$94-NumExpPars-NumDevPars),IF(OFFSET($B$96:$B$195,0,AF$93)<=10,0,OFFSET($X$53,OFFSET($B$96:$B$195,0,AF$93)-10,AF$94-NumExpPars-NumDevPars))))) -> 0 | AG96: =IF(AG95="","",INDEX(OFFSET($CN$23:$CW$23,AG$94,0),IF(AG$93<3,OFFSET($B$96:$B$195,0,AG$93),IF(OFFSET($B$96:$B$195,0,AG$93)<10,OFFSET($B$96:$B$195,0,AG$93),10)))+IF(AG$93<>3,0,IF(OFFSET($B$96:$B$195,0,AG$93)<FirstDiagIncluded,OFFSET($X$81,OFFSET($B$96:$B$195,0,AG$93),AG$94-NumExpPars-NumDevPars),IF(OFFSET($B$96:$B$195,0,AG$93)<=10,0,OFFSET($X$53,OFFSET($B$96:$B$195,0,AG$93)-10,AG$94-NumExpPars-NumDevPars))))) -> 0 | AH96: =IF(A96,IF(E96<FirstDiagIncluded,OFFSET($W$81,E96,0),OFFSET($W$53,E96-10,0)),0) -> 0 | AJ96: =IF(A96,"",INDEX(CleanData,C96,D96)) -> 2823701 | AL96: =MMULT(ModelMatrix ThisRow,Parameters)+AH96 -> 14.85355899 | AM96: =EXP(AL96:AL195) -> 2823701 | AN96: 2823701 | AO96: 1 | AP96: =IF(A96:A195,FALSE,ROUND(AO96:AO195,$AP$93)<>1) -> FALSE | AQ96: =IF(AP96,1,0) -> 0 | AR96: =$AQ$195+IF(AP96,0,1) -> 53 | AS96: =IF(AP96:AP195,AQ96:AQ195,AR96:AR195) -> 53 | AU96: 1.137682774 | AV96: =IF(A96:A195,"",AM96:AM195^($AV$93/2)) -> 1680.387158 | AW96: =IF($A96:$A195,"",(AJ96:AJ195-ModeledValues)/AV96:AV195) -> -5.431463332e-11 | AX96: =IF($A96:$A195,"",IF(ROUND(AO96:AO195,9)=1,"",AW96:AW195/SQRT(1-AO96:AO195))) ->  | AY96: =IF($AX96:$AX195="","",AX96:AX195/$AX$93) ->  | BA96: 1 | BB96: =MATCH(BA96:BA150,$AS$96:$AS$195,0) -> 2 | BC96: =INDEX($AP$96:$AP$195,BB96:BB150) -> TRUE | BD96: =IF($BC96:$BC150,INDEX($C$96:$C$195,$BB96:$BB150),"") -> 1 | BE96: =IF($BC96:$BC150,INDEX($D$96:$D$195,$BB96:$BB150),"") -> 2 | BF96: =IF($BC96:$BC150,BD96:BD150+BE96:BE150-1,"") -> 2 | BG96: =IF($BC96:$BC150,INDEX($AM$96:$AM$195,$BB96:$BB150),"") -> 2466642.11 | BH96: =IF($BC96:$BC150,INDEX($AY$96:$AY$195,$BB96:$BB150),"") -> 1.501147924 | BI96: =IF($BC$96:$BC$150,$BG$96:$BG$150*$BG$93+$BH$93,"") -> 0.01358475272 | BJ96: 1 | BK96: =IFERROR(AVERAGEIFS($BH$96:$BH$150,$BC$96:$BC$150,TRUE,$BD$96:$BD$150,$BJ96),0) -> -0.1563483542 | BL96: =IFERROR(AVERAGEIFS($BH$96:$BH$150,$BC$96:$BC$150,TRUE,$BE$96:$BE$150,$BJ96),0) -> -0.006332006371 | BM96: =IFERROR(AVERAGEIFS($BH$96:$BH$150,$BC$96:$BC$150,TRUE,$BF$96:$BF$150,$BJ96),0) -> 0
A97: FALSE | B97: 2 | C97: =MATCH(B97-1,IF(A97,GetRow_Extrapolated,GetRow_Included),1) -> 1 | D97: =MATCH(B97-1,OFFSET(IF(A97,GetCol_Extrapolated,GetCol_Included),C97,0),1) -> 2 | E97: 2 | G97: -1 | H97: -1 | I97: -1 | J97: -1 | K97: -1 | L97: -1 | M97: -1 | N97: -1 | O97: -1 | P97: 1 | Q97: 0 | R97: 0 | S97: 0 | T97: 0 | U97: 0 | V97: 0 | W97: 0 | X97: 0 | Y97: 1 | Z97: 0 | AA97: 0 | AB97: 0 | AC97: 0 | AD97: 0 | AE97: 0 | AF97: 0 | AG97: 0 | AH97: 0 | AJ97: =IF(A97,"",INDEX(CleanData,C97,D97)) -> 2536475 | AL97: =MMULT(ModelMatrix ThisRow,Parameters)+AH97 -> 14.71836831 | AM97: 2466642.11 | AN97: 2466642.11 | AO97: 0.7260444991 | AP97: TRUE | AQ97: =AQ96+IF(AP97,1,0) -> 1 | AR97: =AR96+IF(AP97,0,1) -> 53 | AS97: 1 | AU97: -0.5854987671 | AV97: 1570.554714 | AW97: 44.4638375 | AX97: 84.95069368 | AY97: 1.501147924 | BA97: 2 | BB97: 3 | BC97: TRUE | BD97: 1 | BE97: 3 | BF97: 3 | BG97: 1141766.816 | BH97: -0.3703449361 | BI97: -0.0001756723795 | BJ97: 2 | BK97: =IFERROR(AVERAGEIFS($BH$96:$BH$150,$BC$96:$BC$150,TRUE,$BD$96:$BD$150,$BJ97),0) -> -0.1407388286 | BL97: =IFERROR(AVERAGEIFS($BH$96:$BH$150,$BC$96:$BC$150,TRUE,$BE$96:$BE$150,$BJ97),0) -> 0.003042927942 | BM97: =IFERROR(AVERAGEIFS($BH$96:$BH$150,$BC$96:$BC$150,TRUE,$BF$96:$BF$150,$BJ97),0) -> 1.905031688e-12
A98: FALSE | B98: 3 | C98: 1 | D98: 3 | E98: 3 | G98: -1 | H98: -1 | I98: -1 | J98: -1 | K98: -1 | L98: -1 | M98: -1 | N98: -1 | O98: -1 | P98: 1 | Q98: 1 | R98: 0 | S98: 0 | T98: 0 | U98: 0 | V98: 0 | W98: 0 | X98: 0 | Y98: 1 | Z98: 1 | AA98: 0 | AB98: 0 | AC98: 0 | AD98: 0 | AE98: 0 | AF98: 0 | AG98: 0 | AH98: 0 | AJ98: 1125533 | AL98: =MMULT(ModelMatrix ThisRow,Parameters)+AH98 -> 13.94808746 | AM98: 1141766.816 | AN98: 1141766.816 | AO98: 0.4745104344 | AP98: TRUE | AQ98: =AQ97+IF(AP98,1,0) -> 2 | AR98: =AR97+IF(AP98,0,1) -> 53 | AS98: 2 | AU98: -0.1578902357 | AV98: 1068.534892 | AW98: -15.19259284 | AX98: -20.95800069 | AY98: -0.3703449361 | BA98: 3 | BB98: 4 | BC98: TRUE | BD98: 1 | BE98: 4 | BF98: 4 | BG98: 624855.1358 | BH98: -0.6509543746 | BI98: -0.005544422538 | BJ98: 3 | BK98: 0.01597979412 | BL98: 0.004404660473 | BM98: -0.02121157628
A99: FALSE | B99: 4 | C99: 1 | D99: 4 | E99: 4 | G99: -1 | H99: -1 | I99: -1 | J99: -1 | K99: -1 | L99: -1 | M99: -1 | N99: -1 | O99: -1 | P99: 1 | Q99: 1 | R99: 1 | S99: 0 | T99: 0 | U99: 0 | V99: 0 | W99: 0 | X99: 0 | Y99: 1 | Z99: 1 | AA99: 1 | AB99: 0 | AC99: 0 | AD99: 0 | AE99: 0 | AF99: 0 | AG99: 0 | AH99: 0 | AJ99: 601484 | AL99: =MMULT(ModelMatrix ThisRow,Parameters)+AH99 -> 13.34527512 | AM99: 624855.1358 | AN99: 624855.1358 | AO99: 0.3558421316 | AP99: TRUE | AQ99: 3 | AR99: 53 | AS99: 3 | AU99: -0.6064458236 | AV99: 790.4777896 | AW99: -29.56583492 | AX99: -36.83782578 | AY99: -0.6509543746 | BA99: 4 | BB99: 5 | BC99: TRUE | BD99: 1 | BE99: 5 | BF99: 5 | BG99: 331197.7393 | BH99: -0.3565988545 | BI99: -0.008594408166 | BJ99: 4 | BK99: 0.112766449 | BL99: -0.002025910599 | BM99: -0.03666820502
A100: FALSE | B100: 5 | C100: 1 | D100: 5 | E100: 5 | G100: -1 | H100: -1 | I100: -1 | J100: -1 | K100: -1 | L100: -1 | M100: -1 | N100: -1 | O100: -1 | P100: 1 | Q100: 1 | R100: 1 | S100: 1 | T100: 0 | U100: 0 | V100: 0 | W100: 0 | X100: 0 | Y100: 1 | Z100: 1 | AA100: 1 | AB100: 1 | AC100: 0 | AD100: 0 | AE100: 0 | AF100: 0 | AG100: 0 | AH100: 0 | AJ100: 321420 | AL100: =MMULT(ModelMatrix ThisRow,Parameters)+AH100 -> 12.71047088 | AM100: 331197.7393 | AN100: 331197.7393 | AO100: 0.2911688726 | AP100: TRUE | AQ100: 4 | AR100: 53 | AS100: 4 | AU100: -0.3300182103 | AV100: 575.4978187 | AW100: -16.99005457 | AX100: -20.18010323 | AY100: -0.3565988545 | BA100: 5 | BB100: 6 | BC100: TRUE | BD100: 1 | BE100: 6 | BF100: 6 | BG100: 168578.4897 | BH100: -0.5379988773 | BI100: -0.01028340487 | BJ100: 5 | BK100: 0.08833556541 | BL100: 0.006816628359 | BM100: -0.04909237274
A101: FALSE | B101: 6 | C101: 1 | D101: 6 | E101: 6 | G101: -1 | H101: -1 | I101: -1 | J101: -1 | K101: -1 | L101: -1 | M101: -1 | N101: -1 | O101: -1 | P101: 1 | Q101: 1 | R101: 1 | S101: 1 | T101: 1 | U101: 0 | V101: 0 | W101: 0 | X101: 0 | Y101: 1 | Z101: 1 | AA101: 1 | AB101: 1 | AC101: 1 | AD101: 0 | AE101: 0 | AF101: 0 | AG101: 0 | AH101: 0 | AJ101: 157915 | AL101: =MMULT(ModelMatrix ThisRow,Parameters)+AH101 -> 12.03515673 | AM101: 168578.4897 | AN101: 168578.4897 | AO101: 0.2723091276 | AP101: TRUE | AQ101: 5 | AR101: 53 | AS101: 5 | AU101: -0.5115264388 | AV101: 410.5831093 | AW101: -25.97157413 | AX101: -30.44561906 | AY101: -0.5379988773 | BA101: 6 | BB101: 7 | BC101: TRUE | BD101: 1 | BE101: 7 | BF101: 7 | BG101: 85198.40195 | BH101: -0.4188877784 | BI101: -0.01114940747 | BJ101: 6 | BK101: 0.1813509266 | BL101: 0.01012006347 | BM101: -0.1066836096
A102: FALSE | B102: 7 | C102: 1 | D102: 7 | E102: 7 | G102: -1 | H102: -1 | I102: -1 | J102: -1 | K102: -1 | L102: -1 | M102: -1 | N102: -1 | O102: -1 | P102: 1 | Q102: 1 | R102: 1 | S102: 1 | T102: 1 | U102: 1 | V102: 0 | W102: 0 | X102: 0 | Y102: 1 | Z102: 1 | AA102: 1 | AB102: 1 | AC102: 1 | AD102: 1 | AE102: 0 | AF102: 0 | AG102: 0 | AH102: 0 | AJ102: 79395 | AL102: =MMULT(ModelMatrix ThisRow,Parameters)+AH102 -> 11.35273796 | AM102: 85198.40195 | AN102: 85198.40195 | AO102: 0.2965202575 | AP102: TRUE | AQ102: 6 | AR102: 53 | AS102: 6 | AU102: -0.4661275898 | AV102: 291.887653 | AW102: -19.88231394 | AX102: -23.70506383 | AY102: -0.4188877784 | BA102: 7 | BB102: 8 | BC102: TRUE | BD102: 1 | BE102: 8 | BF102: 8 | BG102: 42168.89266 | BH102: -0.4486798536 | BI102: -0.01159632073 | BJ102: 7 | BK102: 0.06513062395 | BL102: 0.01018050421 | BM102: -0.1523614122
A103: FALSE | B103: 8 | C103: 1 | D103: 8 | E103: 8 | G103: -1 | H103: -1 | I103: -1 | J103: -1 | K103: -1 | L103: -1 | M103: -1 | N103: -1 | O103: -1 | P103: 1 | Q103: 1 | R103: 1 | S103: 1 | T103: 1 | U103: 1 | V103: 1 | W103: 0 | X103: 0 | Y103: 1 | Z103: 1 | AA103: 1 | AB103: 1 | AC103: 1 | AD103: 1 | AE103: 1 | AF103: 0 | AG103: 0 | AH103: 0 | AJ103: 38016 | AL103: =MMULT(ModelMatrix ThisRow,Parameters)+AH103 -> 10.64943809 | AM103: 42168.89266 | AN103: 42168.89266 | AO103: 0.3656204176 | AP103: TRUE | AQ103: 7 | AR103: 53 | AS103: 7 | AU103: -1.101804254 | AV103: 205.3506578 | AW103: -20.22342028 | AX103: -25.39101191 | AY103: -0.4486798536 | BA103: 8 | BB103: 9 | BC103: TRUE | BD103: 1 | BE103: 9 | BF103: 9 | BG103: 18668.4146 | BH103: 0.03152991695 | BI103: -0.01184040149 | BJ103: 8 | BK103: 0.01758991245 | BL103: 0.00660638286 | BM103: -0.1308662244
A104: FALSE | B104: 9 | C104: 1 | D104: 9 | E104: 9 | G104: -1 | H104: -1 | I104: -1 | J104: -1 | K104: -1 | L104: -1 | M104: -1 | N104: -1 | O104: -1 | P104: 1 | Q104: 1 | R104: 1 | S104: 1 | T104: 1 | U104: 1 | V104: 1 | W104: 1 | X104: 0 | Y104: 1 | Z104: 1 | AA104: 1 | AB104: 1 | AC104: 1 | AD104: 1 | AE104: 1 | AF104: 1 | AG104: 0 | AH104: 0 | AJ104: 18838 | AL104: =MMULT(ModelMatrix ThisRow,Parameters)+AH104 -> 9.834588316 | AM104: 18668.4146 | AN104: 18668.4146 | AO104: 0.5161208052 | AP104: TRUE | AQ104: 8 | AR104: 53 | AS104: 8 | AU104: 1.137682774 | AV104: 136.6324068 | AW104: 1.241179921 | AX104: 1.784293389 | AY104: 0.03152991695 | BA104: 9 | BB104: 11 | BC104: TRUE | BD104: 2 | BE104: 1 | BF104: 2 | BG104: 3251213.89 | BH104: -1.501147924 | BI104: 0.02173347527 | BJ104: 9 | BK104: -2.191580251e-13 | BL104: 3.049643871e-15 | BM104: 0.1062929146
A105: FALSE | B105: 10 | C105: 1 | D105: 10 | E105: 10 | G105: -1 | H105: -1 | I105: -1 | J105: -1 | K105: -1 | L105: -1 | M105: -1 | N105: -1 | O105: -1 | P105: 1 | Q105: 1 | R105: 1 | S105: 1 | T105: 1 | U105: 1 | V105: 1 | W105: 1 | X105: 1 | Y105: 1 | Z105: 1 | AA105: 1 | AB105: 1 | AC105: 1 | AD105: 1 | AE105: 1 | AF105: 1 | AG105: 1 | AH105: 0 | AJ105: 9836 | AL105: =MMULT(ModelMatrix ThisRow,Parameters)+AH105 -> 9.193804403 | AM105: 9836 | AN105: 9836 | AO105: 1 | AP105: FALSE | AQ105: 8 | AR105: 54 | AS105: 54 | AU105: 1.633117308 | AV105: 99.17661015 | AW105: -1.467272899e-13 | BA105: 10 | BB105: 12 | BC105: TRUE | BD105: 2 | BE105: 2 | BF105: 3 | BG105: 2627810.643 | BH105: 1.826266802 | BI105: 0.01525868197 | BJ105: 10 | BK105: 0 | BL105: 0 | BM105: 0.3003152477
A106: FALSE | B106: 11 | C106: 2 | D106: 1 | E106: 2 | G106: 0 | H106: -1 | I106: -1 | J106: -1 | K106: -1 | L106: -1 | M106: -1 | N106: -1 | O106: -1 | P106: 0 | Q106: 0 | R106: 0 | S106: 0 | T106: 0 | U106: 0 | V106: 0 | W106: 0 | X106: 0 | Y106: 1 | Z106: 0 | AA106: 0 | AB106: 0 | AC106: 0 | AD106: 0 | AE106: 0 | AF106: 0 | AG106: 0 | AH106: 0 | AJ106: 3181381 | AL106: =MMULT(ModelMatrix ThisRow,Parameters)+AH106 -> 14.99453899 | AM106: 3251213.89 | AN106: 3251213.89 | AO106: 0.7921545005 | AP106: TRUE | AQ106: 9 | AR106: 54 | AS106: 9 | AU106: -0.3449417686 | AV106: 1803.112279 | AW106: -38.72908549 | AX106: -84.95069368 | AY106: -1.501147924 | BA106: 11 | BB106: 13 | BC106: TRUE | BD106: 2 | BE106: 3 | BF106: 4 | BG106: 1201567.449 | BH106: 0.5282055945 | BI106: 0.000445429203
A107: FALSE | B107: 12 | C107: 2 | D107: 2 | E107: 3 | G107: 0 | H107: -1 | I107: -1 | J107: -1 | K107: -1 | L107: -1 | M107: -1 | N107: -1 | O107: -1 | P107: 1 | Q107: 0 | R107: 0 | S107: 0 | T107: 0 | U107: 0 | V107: 0 | W107: 0 | X107: 0 | Y107: 1 | Z107: 1 | AA107: 0 | AB107: 0 | AC107: 0 | AD107: 0 | AE107: 0 | AF107: 0 | AG107: 0 | AH107: 0 | AJ107: 2723043 | AL107: =MMULT(ModelMatrix ThisRow,Parameters)+AH107 -> 14.7816616 | AM107: 2627810.643 | AN107: 2627810.643 | AO107: 0.6768831022 | AP107: TRUE | AQ107: 10 | AR107: 54 | AS107: 10 | AU107: -0.559390479 | AV107: 1621.052326 | AW107: 58.7472443 | AX107: 103.3493297 | AY107: 1.826266802 | BA107: 12 | BB107: 14 | BC107: TRUE | BD107: 2 | BE107: 4 | BF107: 5 | BG107: 648148.7092 | BH107: -0.3874779714 | BI107: -0.005302490733
A108: FALSE | B108: 13 | C108: 2 | D108: 3 | E108: 4 | G108: 0 | H108: -1 | I108: -1 | J108: -1 | K108: -1 | L108: -1 | M108: -1 | N108: -1 | O108: -1 | P108: 1 | Q108: 1 | R108: 0 | S108: 0 | T108: 0 | U108: 0 | V108: 0 | W108: 0 | X108: 0 | Y108: 1 | Z108: 1 | AA108: 1 | AB108: 0 | AC108: 0 | AD108: 0 | AE108: 0 | AF108: 0 | AG108: 0 | AH108: 0 | AJ108: 1226151 | AL108: =MMULT(ModelMatrix ThisRow,Parameters)+AH108 -> 13.99913747 | AM108: 1201567.449 | AN108: 1201567.449 | AO108: 0.437078041 | AP108: TRUE | AQ108: 11 | AR108: 54 | AS108: 11 | AU108: -0.2142619192 | AV108: 1096.160321 | AW108: 22.42696636 | AX108: 29.8914124 | AY108: 0.5282055945 | BA108: 13 | BB108: 15 | BC108: TRUE | BD108: 2 | BE108: 5 | BF108: 6 | BG108: 338906.6139 | BH108: -0.613961599 | BI108: -0.008514342222
A109: FALSE | B109: 14 | C109: 2 | D109: 4 | E109: 5 | G109: 0 | H109: -1 | I109: -1 | J109: -1 | K109: -1 | L109: -1 | M109: -1 | N109: -1 | O109: -1 | P109: 1 | Q109: 1 | R109: 1 | S109: 0 | T109: 0 | U109: 0 | V109: 0 | W109: 0 | X109: 0 | Y109: 1 | Z109: 1 | AA109: 1 | AB109: 1 | AC109: 0 | AD109: 0 | AE109: 0 | AF109: 0 | AG109: 0 | AH109: 0 | AJ109: 633645 | AL109: =MMULT(ModelMatrix ThisRow,Parameters)+AH109 -> 13.38187544 | AM109: 648148.7092 | AN109: 648148.7092 | AO109: 0.3250018351 | AP109: TRUE | AQ109: 12 | AR109: 54 | AS109: 12 | AU109: -0.3304352087 | AV109: 805.0768343 | AW109: -18.01531056 | AX109: -21.92756752 | AY109: -0.3874779714 | BA109: 14 | BB109: 16 | BC109: TRUE | BD109: 2 | BE109: 6 | BF109: 7 | BG109: 165403.6077 | BH109: -0.5377252306 | BI109: -0.01031637984
A110: FALSE | B110: 15 | C110: 2 | D110: 5 | E110: 6 | G110: 0 | H110: -1 | I110: -1 | J110: -1 | K110: -1 | L110: -1 | M110: -1 | N110: -1 | O110: -1 | P110: 1 | Q110: 1 | R110: 1 | S110: 1 | T110: 0 | U110: 0 | V110: 0 | W110: 0 | X110: 0 | Y110: 1 | Z110: 1 | AA110: 1 | AB110: 1 | AC110: 1 | AD110: 0 | AE110: 0 | AF110: 0 | AG110: 0 | AH110: 0 | AJ110: 321623 | AL110: =MMULT(ModelMatrix ThisRow,Parameters)+AH110 -> 12.73347987 | AM110: 338906.6139 | AN110: 338906.6139 | AO110: 0.269837087 | AP110: TRUE | AQ110: 13 | AR110: 54 | AS110: 13 | AU110: -0.3841231436 | AV110: 582.1568636 | AW110: -29.68892914 | AX110: -34.74438655 | AY110: -0.613961599 | BA110: 15 | BB110: 17 | BC110: TRUE | BD110: 2 | BE110: 7 | BF110: 8 | BG110: 80968.41621 | BH110: -0.5024936107 | BI110: -0.01119334096 | BV110: Selection of Trend Groups - input TRUE to start a new trend group
A111: FALSE | B111: 16 | C111: 2 | D111: 6 | E111: 7 | G111: 0 | H111: -1 | I111: -1 | J111: -1 | K111: -1 | L111: -1 | M111: -1 | N111: -1 | O111: -1 | P111: 1 | Q111: 1 | R111: 1 | S111: 1 | T111: 1 | U111: 0 | V111: 0 | W111: 0 | X111: 0 | Y111: 1 | Z111: 1 | AA111: 1 | AB111: 1 | AC111: 1 | AD111: 1 | AE111: 0 | AF111: 0 | AG111: 0 | AH111: 0 | AJ111: 154692 | AL111: =MMULT(ModelMatrix ThisRow,Parameters)+AH111 -> 12.01614387 | AM111: 165403.6077 | AN111: 165403.6077 | AO111: 0.250870956 | AP111: TRUE | AQ111: 14 | AR111: 54 | AS111: 14 | AU111: -1.078556778 | AV111: 406.6984236 | AW111: -26.3379623 | AX111: -30.43013325 | AY111: -0.5377252306 | BA111: 16 | BB111: 18 | BC111: TRUE | BD111: 2 | BE111: 8 | BF111: 9 | BG111: 40202.08562 | BH111: -0.04678560191 | BI111: -0.01161674839 | BW111: Trends | BX111: 1-2 | BY111: 2-3 | BZ111: 3-4 | CA111: 4-5 | CB111: 5-6 | CC111: 6-7 | CD111: 7-8 | CE111: 8-9 | CF111: 9-10
A112: FALSE | B112: 17 | C112: 2 | D112: 7 | E112: 8 | G112: 0 | H112: -1 | I112: -1 | J112: -1 | K112: -1 | L112: -1 | M112: -1 | N112: -1 | O112: -1 | P112: 1 | Q112: 1 | R112: 1 | S112: 1 | T112: 1 | U112: 1 | V112: 0 | W112: 0 | X112: 0 | Y112: 1 | Z112: 1 | AA112: 1 | AB112: 1 | AC112: 1 | AD112: 1 | AE112: 1 | AF112: 0 | AG112: 0 | AH112: 0 | AJ112: 74083 | AL112: =MMULT(ModelMatrix ThisRow,Parameters)+AH112 -> 11.30181443 | AM112: 80968.41621 | AN112: 80968.41621 | AO112: 0.2759029403 | AP112: TRUE | AQ112: 15 | AR112: 54 | AS112: 15 | AU112: -1.101804254 | AV112: 284.5494969 | AW112: -24.19760458 | AX112: -28.43635869 | AY112: -0.5024936107 | BA112: 17 | BB112: 19 | BC112: TRUE | BD112: 2 | BE112: 9 | BF112: 10 | BG112: 17694.5854 | BH112: -0.03152991695 | BI112: -0.01185051588 | BV112: Exp | BW112: α | BX112: TRUE | BY112: TRUE | BZ112: TRUE | CA112: TRUE | CB112: TRUE | CC112: TRUE | CD112: TRUE | CE112: TRUE | CF112: TRUE
A113: FALSE | B113: 18 | C113: 2 | D113: 8 | E113: 9 | G113: 0 | H113: -1 | I113: -1 | J113: -1 | K113: -1 | L113: -1 | M113: -1 | N113: -1 | O113: -1 | P113: 1 | Q113: 1 | R113: 1 | S113: 1 | T113: 1 | U113: 1 | V113: 1 | W113: 0 | X113: 0 | Y113: 1 | Z113: 1 | AA113: 1 | AB113: 1 | AC113: 1 | AD113: 1 | AE113: 1 | AF113: 1 | AG113: 0 | AH113: 0 | AJ113: 39773 | AL113: =MMULT(ModelMatrix ThisRow,Parameters)+AH113 -> 10.60167415 | AM113: 40202.08562 | AN113: 40202.08562 | AO113: 0.3466768905 | AP113: TRUE | AQ113: 16 | AR113: 54 | AS113: 16 | AU113: 1.165734949 | AV113: 200.5045776 | AW113: -2.140029061 | AX113: -2.647620047 | AY113: -0.04678560191 | BA113: 18 | BB113: 20 | BC113: TRUE | BD113: 3 | BE113: 1 | BF113: 3 | BG113: 3267312.541 | BH113: -1.519556595 | BI113: 0.02190067915 | BV113: Dev | BW113: β | BX113: TRUE | BY113: TRUE | BZ113: TRUE | CA113: TRUE | CB113: TRUE | CC113: TRUE | CD113: TRUE | CE113: TRUE | CF113: TRUE
A114: FALSE | B114: 19 | C114: 2 | D114: 9 | E114: 10 | G114: 0 | H114: -1 | I114: -1 | J114: -1 | K114: -1 | L114: -1 | M114: -1 | N114: -1 | O114: -1 | P114: 1 | Q114: 1 | R114: 1 | S114: 1 | T114: 1 | U114: 1 | V114: 1 | W114: 1 | X114: 0 | Y114: 1 | Z114: 1 | AA114: 1 | AB114: 1 | AC114: 1 | AD114: 1 | AE114: 1 | AF114: 1 | AG114: 1 | AH114: 0 | AJ114: 17525 | AL114: =MMULT(ModelMatrix ThisRow,Parameters)+AH114 -> 9.781013962 | AM114: 17694.5854 | AN114: 17694.5854 | AO114: 0.4894903033 | AP114: TRUE | AQ114: 17 | AR114: 54 | AS114: 17 | AU114: 0.9080329948 | AV114: 133.0209961 | AW114: -1.274876936 | AX114: -1.784293389 | AY114: -0.03152991695 | BA114: 19 | BB114: 21 | BC114: TRUE | BD114: 3 | BE114: 2 | BF114: 4 | BG114: 2608687.264 | BH114: 1.350444907 | BI114: 0.01506006266 | BV114: Pay | BW114: γ | BX114: TRUE | BY114: TRUE | BZ114: TRUE | CA114: TRUE | CB114: TRUE | CC114: TRUE | CD114: TRUE | CE114: TRUE | CF114: TRUE
A115: FALSE | B115: 20 | C115: 3 | D115: 1 | E115: 3 | G115: 0 | H115: 0 | I115: -1 | J115: -1 | K115: -1 | L115: -1 | M115: -1 | N115: -1 | O115: -1 | P115: 0 | Q115: 0 | R115: 0 | S115: 0 | T115: 0 | U115: 0 | V115: 0 | W115: 0 | X115: 0 | Y115: 1 | Z115: 1 | AA115: 0 | AB115: 0 | AC115: 0 | AD115: 0 | AE115: 0 | AF115: 0 | AG115: 0 | AH115: 0 | AJ115: 3188314 | AL115: =MMULT(ModelMatrix ThisRow,Parameters)+AH115 -> 14.99947835 | AM115: 3267312.541 | AN115: 3267312.541 | AO115: 0.74169856 | AP115: TRUE | AQ115: 18 | AR115: 54 | AS115: 18 | AU115: -0.4680581798 | AV115: 1807.570895 | AW115: -43.70425617 | AX115: -85.99244939 | AY115: -1.519556595 | BA115: 20 | BB115: 22 | BC115: TRUE | BD115: 3 | BE115: 3 | BF115: 5 | BG115: 1175711.277 | BH115: 0.447412943 | BI115: 0.0001768817221
A116: FALSE | B116: 21 | C116: 3 | D116: 2 | E116: 4 | G116: 0 | H116: 0 | I116: -1 | J116: -1 | K116: -1 | L116: -1 | M116: -1 | N116: -1 | O116: -1 | P116: 1 | Q116: 0 | R116: 0 | S116: 0 | T116: 0 | U116: 0 | V116: 0 | W116: 0 | X116: 0 | Y116: 1 | Z116: 1 | AA116: 1 | AB116: 0 | AC116: 0 | AD116: 0 | AE116: 0 | AF116: 0 | AG116: 0 | AH116: 0 | AJ116: 2682586 | AL116: =MMULT(ModelMatrix ThisRow,Parameters)+AH116 -> 14.77435769 | AM116: 2608687.264 | AN116: 2608687.264 | AO116: 0.641564199 | AP116: TRUE | AQ116: 19 | AR116: 54 | AS116: 19 | AU116: -1.038294683 | AV116: 1615.143109 | AW116: 45.75367696 | AX116: 76.42233642 | AY116: 1.350444907 | BA116: 21 | BB116: 23 | BC116: TRUE | BD116: 3 | BE116: 4 | BF116: 6 | BG116: 625640.0663 | BH116: -0.07320678666 | BI116: -0.00553627009
A117: FALSE | B117: 22 | C117: 3 | D117: 3 | E117: 5 | G117: 0 | H117: 0 | I117: -1 | J117: -1 | K117: -1 | L117: -1 | M117: -1 | N117: -1 | O117: -1 | P117: 1 | Q117: 1 | R117: 0 | S117: 0 | T117: 0 | U117: 0 | V117: 0 | W117: 0 | X117: 0 | Y117: 1 | Z117: 1 | AA117: 1 | AB117: 1 | AC117: 0 | AD117: 0 | AE117: 0 | AF117: 0 | AG117: 0 | AH117: 0 | AJ117: 1196454 | AL117: =MMULT(ModelMatrix ThisRow,Parameters)+AH117 -> 13.97738386 | AM117: 1175711.277 | AN117: 1175711.277 | AO117: 0.4291435856 | AP117: TRUE | AQ117: 20 | AR117: 54 | AS117: 20 | AU117: -0.2770825236 | AV117: 1084.302207 | AW117: 19.13002008 | AX117: 25.31931682 | AY117: 0.447412943 | BA117: 22 | BB117: 24 | BC117: TRUE | BD117: 3 | BE117: 5 | BF117: 7 | BG117: 313675.1225 | BH117: -0.5727368496 | BI117: -0.00877640164
A118: FALSE | B118: 23 | C118: 3 | D118: 4 | E118: 6 | G118: 0 | H118: 0 | I118: -1 | J118: -1 | K118: -1 | L118: -1 | M118: -1 | N118: -1 | O118: -1 | P118: 1 | Q118: 1 | R118: 1 | S118: 0 | T118: 0 | U118: 0 | V118: 0 | W118: 0 | X118: 0 | Y118: 1 | Z118: 1 | AA118: 1 | AB118: 1 | AC118: 1 | AD118: 0 | AE118: 0 | AF118: 0 | AG118: 0 | AH118: 0 | AJ118: 622922 | AL118: =MMULT(ModelMatrix ThisRow,Parameters)+AH118 -> 13.34653051 | AM118: 625640.0663 | AN118: 625640.0663 | AO118: 0.3119722077 | AP118: TRUE | AQ118: 21 | AR118: 54 | AS118: 21 | AU118: -0.782408315 | AV118: 790.9741249 | AW118: -3.436353034 | AX118: -4.142807788 | AY118: -0.07320678666 | BA118: 23 | BB118: 25 | BC118: TRUE | BD118: 3 | BE118: 6 | BF118: 8 | BG118: 148281.3003 | BH118: -0.2411270332 | BI118: -0.01049421562
A119: FALSE | B119: 24 | C119: 3 | D119: 5 | E119: 7 | G119: 0 | H119: 0 | I119: -1 | J119: -1 | K119: -1 | L119: -1 | M119: -1 | N119: -1 | O119: -1 | P119: 1 | Q119: 1 | R119: 1 | S119: 1 | T119: 0 | U119: 0 | V119: 0 | W119: 0 | X119: 0 | Y119: 1 | Z119: 1 | AA119: 1 | AB119: 1 | AC119: 1 | AD119: 1 | AE119: 0 | AF119: 0 | AG119: 0 | AH119: 0 | AJ119: 297869 | AL119: =MMULT(ModelMatrix ThisRow,Parameters)+AH119 -> 12.65611309 | AM119: 313675.1225 | AN119: 313675.1225 | AO119: 0.2418179883 | AP119: TRUE | AQ119: 22 | AR119: 54 | AS119: 22 | AU119: -0.8125865716 | AV119: 560.0670696 | AW119: -28.22183862 | AX119: -32.41145786 | AY119: -0.5727368496 | BA119: 24 | BB119: 26 | BC119: TRUE | BD119: 3 | BE119: 7 | BF119: 9 | BG119: 72816.40676 | BH119: 0.2213231635 | BI119: -0.0112780094
A120: FALSE | B120: 25 | C120: 3 | D120: 6 | E120: 8 | G120: 0 | H120: 0 | I120: -1 | J120: -1 | K120: -1 | L120: -1 | M120: -1 | N120: -1 | O120: -1 | P120: 1 | Q120: 1 | R120: 1 | S120: 1 | T120: 1 | U120: 0 | V120: 0 | W120: 0 | X120: 0 | Y120: 1 | Z120: 1 | AA120: 1 | AB120: 1 | AC120: 1 | AD120: 1 | AE120: 1 | AF120: 0 | AG120: 0 | AH120: 0 | AJ120: 143653 | AL120: =MMULT(ModelMatrix ThisRow,Parameters)+AH120 -> 11.90686643 | AM120: 148281.3003 | AN120: 148281.3003 | AO120: 0.2241495858 | AP120: TRUE | AQ120: 23 | AR120: 54 | AS120: 23 | AU120: -0.3646315044 | AV120: 385.0731104 | AW120: -12.0192769 | AX120: -13.6454965 | AY120: -0.2411270332 | BA120: 25 | BB120: 27 | BC120: TRUE | BD120: 3 | BE120: 8 | BF120: 10 | BG120: 35945.02172 | BH120: 0.5152846041 | BI120: -0.01166096312
A121: FALSE | B121: 26 | C121: 3 | D121: 7 | E121: 9 | G121: 0 | H121: 0 | I121: -1 | J121: -1 | K121: -1 | L121: -1 | M121: -1 | N121: -1 | O121: -1 | P121: 1 | Q121: 1 | R121: 1 | S121: 1 | T121: 1 | U121: 1 | V121: 0 | W121: 0 | X121: 0 | Y121: 1 | Z121: 1 | AA121: 1 | AB121: 1 | AC121: 1 | AD121: 1 | AE121: 1 | AF121: 1 | AG121: 0 | AH121: 0 | AJ121: 75744 | AL121: =MMULT(ModelMatrix ThisRow,Parameters)+AH121 -> 11.19569658 | AM121: 72816.40676 | AN121: 72816.40676 | AO121: 0.2496712107 | AP121: TRUE | AQ121: 24 | AR121: 54 | AS121: 24 | AU121: 0.9444897997 | AV121: 269.8451533 | AW121: 10.84915999 | AX121: 12.52478584 | AY121: 0.2213231635 | BA121: 26 | BB121: 28 | BC121: TRUE | BD121: 4 | BE121: 1 | BF121: 4 | BG121: 3632377.151 | BH121: -1.374368947 | BI121: 0.02569231466
A122: FALSE | B122: 27 | C122: 3 | D122: 8 | E122: 10 | G122: 0 | H122: 0 | I122: -1 | J122: -1 | K122: -1 | L122: -1 | M122: -1 | N122: -1 | O122: -1 | P122: 1 | Q122: 1 | R122: 1 | S122: 1 | T122: 1 | U122: 1 | V122: 1 | W122: 0 | X122: 0 | Y122: 1 | Z122: 1 | AA122: 1 | AB122: 1 | AC122: 1 | AD122: 1 | AE122: 1 | AF122: 1 | AG122: 1 | AH122: 0 | AJ122: 40527 | AL122: =MMULT(ModelMatrix ThisRow,Parameters)+AH122 -> 10.48974588 | AM122: 35945.02172 | AN122: 35945.02172 | AO122: 0.3131117463 | AP122: TRUE | AQ122: 25 | AR122: 54 | AS122: 25 | AU122: 0.1693052127 | AV122: 189.5917238 | AW122: 24.16760706 | AX122: 29.16020725 | AY122: 0.5152846041 | BA122: 27 | BB122: 29 | BC122: TRUE | BD122: 4 | BE122: 2 | BF122: 5 | BG122: 2858556.968 | BH122: 0.8656697611 | BI122: 0.01765526038
A123: FALSE | B123: 28 | C123: 4 | D123: 1 | E123: 4 | G123: 0 | H123: 0 | I123: 0 | J123: -1 | K123: -1 | L123: -1 | M123: -1 | N123: -1 | O123: -1 | P123: 0 | Q123: 0 | R123: 0 | S123: 0 | T123: 0 | U123: 0 | V123: 0 | W123: 0 | X123: 0 | Y123: 1 | Z123: 1 | AA123: 1 | AB123: 0 | AC123: 0 | AD123: 0 | AE123: 0 | AF123: 0 | AG123: 0 | AH123: 0 | AJ123: 3557266 | AL123: =MMULT(ModelMatrix ThisRow,Parameters)+AH123 -> 15.10539785 | AM123: 3632377.151 | AN123: 3632377.151 | AO123: 0.7432417834 | AP123: TRUE | AQ123: 26 | AR123: 54 | AS123: 26 | AU123: -0.5964125145 | AV123: 1905.879627 | AW123: -39.41022813 | AX123: -77.77620951 | AY123: -1.374368947 | BA123: 28 | BB123: 30 | BC123: TRUE | BD123: 4 | BE123: 3 | BF123: 6 | BG123: 1270933.659 | BH123: 0.3631830104 | BI123: 0.001165880804
A124: FALSE | B124: 29 | C124: 4 | D124: 2 | E124: 5 | G124: 0 | H124: 0 | I124: 0 | J124: -1 | K124: -1 | L124: -1 | M124: -1 | N124: -1 | O124: -1 | P124: 1 | Q124: 0 | R124: 0 | S124: 0 | T124: 0 | U124: 0 | V124: 0 | W124: 0 | X124: 0 | Y124: 1 | Z124: 1 | AA124: 1 | AB124: 1 | AC124: 0 | AD124: 0 | AE124: 0 | AF124: 0 | AG124: 0 | AH124: 0 | AJ124: 2907921 | AL124: =MMULT(ModelMatrix ThisRow,Parameters)+AH124 -> 14.8658275 | AM124: 2858556.968 | AN124: 2858556.968 | AO124: 0.6447917684 | AP124: TRUE | AQ124: 27 | AR124: 54 | AS124: 27 | AU124: -0.8088923192 | AV124: 1690.726757 | AW124: 29.19693061 | AX124: 48.9886743 | AY124: 0.8656697611 | BA124: 29 | BB124: 31 | BC124: TRUE | BD124: 4 | BE124: 4 | BF124: 7 | BG124: 648480.4533 | BH124: -0.2237474418 | BI124: -0.005299045171 | CI124: Standardized Pearson Residuals
A125: FALSE | B125: 30 | C125: 4 | D125: 3 | E125: 6 | G125: 0 | H125: 0 | I125: 0 | J125: -1 | K125: -1 | L125: -1 | M125: -1 | N125: -1 | O125: -1 | P125: 1 | Q125: 1 | R125: 0 | S125: 0 | T125: 0 | U125: 0 | V125: 0 | W125: 0 | X125: 0 | Y125: 1 | Z125: 1 | AA125: 1 | AB125: 1 | AC125: 1 | AD125: 0 | AE125: 0 | AF125: 0 | AG125: 0 | AH125: 0 | AJ125: 1288319 | AL125: =MMULT(ModelMatrix ThisRow,Parameters)+AH125 -> 14.05526235 | AM125: 1270933.659 | AN125: 1270933.659 | AO125: 0.4370035792 | AP125: TRUE | AQ125: 28 | AR125: 54 | AS125: 28 | AU125: -0.9627779674 | AV125: 1127.356935 | AW125: 15.42132822 | AX125: 20.55270382 | AY125: 0.3631830104 | BA125: 30 | BB125: 32 | BC125: TRUE | BD125: 4 | BE125: 5 | BF125: 8 | BG125: 314915.32 | BH125: -0.1227631018 | BI125: -0.008763520695 | CI125: Period | CJ125: Dev | CK125: 1 | CL125: 2 | CM125: 3 | CN125: 4 | CO125: 5 | CP125: 6 | CQ125: 7 | CR125: 8 | CS125: 9 | CT125: 10
A126: FALSE | B126: 31 | C126: 4 | D126: 4 | E126: 7 | G126: 0 | H126: 0 | I126: 0 | J126: -1 | K126: -1 | L126: -1 | M126: -1 | N126: -1 | O126: -1 | P126: 1 | Q126: 1 | R126: 1 | S126: 0 | T126: 0 | U126: 0 | V126: 0 | W126: 0 | X126: 0 | Y126: 1 | Z126: 1 | AA126: 1 | AB126: 1 | AC126: 1 | AD126: 1 | AE126: 0 | AF126: 0 | AG126: 0 | AH126: 0 | AJ126: 640096 | AL126: =MMULT(ModelMatrix ThisRow,Parameters)+AH126 -> 13.38238714 | AM126: 648480.4533 | AN126: 648480.4533 | AO126: 0.3238398441 | AP126: TRUE | AQ126: 29 | AR126: 54 | AS126: 29 | AU126: -0.3260367663 | AV126: 805.2828406 | AW126: -10.41181172 | AX126: -12.66197694 | AY126: -0.2237474418 | BA126: 31 | BB126: 33 | BC126: TRUE | BD126: 4 | BE126: 6 | BF126: 9 | BG126: 149338.6739 | BH126: 0.5406116193 | BI126: -0.01048323352 | CI126: Exp
A127: FALSE | B127: 32 | C127: 4 | D127: 5 | E127: 8 | G127: 0 | H127: 0 | I127: 0 | J127: -1 | K127: -1 | L127: -1 | M127: -1 | N127: -1 | O127: -1 | P127: 1 | Q127: 1 | R127: 1 | S127: 1 | T127: 0 | U127: 0 | V127: 0 | W127: 0 | X127: 0 | Y127: 1 | Z127: 1 | AA127: 1 | AB127: 1 | AC127: 1 | AD127: 1 | AE127: 1 | AF127: 0 | AG127: 0 | AH127: 0 | AJ127: 311520 | AL127: =MMULT(ModelMatrix ThisRow,Parameters)+AH127 -> 12.66005906 | AM127: 314915.32 | AN127: 314915.32 | AO127: 0.2415183934 | AP127: TRUE | AQ127: 30 | AR127: 54 | AS127: 30 | AU127: -0.02100849855 | AV127: 561.173164 | AW127: -6.050396265 | AX127: -6.947223847 | AY127: -0.1227631018 | BA127: 32 | BB127: 34 | BC127: TRUE | BD127: 4 | BE127: 7 | BF127: 10 | BG127: 72910.77508 | BH127: 0.7407802424 | BI127: -0.01127702927 | CI127: 1 | CK127: =IF(IncludedDataPoints,INDEX(AY96:AY150,LookupIncludedCells),"") ->  | CL127: 1.501147924 | CM127: -0.3703449361 | CN127: -0.6509543746 | CO127: -0.3565988545 | CP127: -0.5379988773 | CQ127: -0.4188877784 | CR127: -0.4486798536 | CS127: 0.03152991695
A128: =B128>$BL$34 -> FALSE | B128: 33 | C128: =MATCH(B128-1,IF(A128,GetRow_Extrapolated,GetRow_Included),1) -> 4 | D128: =MATCH(B128-1,OFFSET(IF(A128,GetCol_Extrapolated,GetCol_Included),C128,0),1) -> 6 | E128: 9 | G128: 0 | H128: 0 | I128: 0 | J128: -1 | K128: -1 | L128: -1 | M128: -1 | N128: -1 | O128: -1 | P128: 1 | Q128: 1 | R128: 1 | S128: 1 | T128: 1 | U128: 0 | V128: 0 | W128: 0 | X128: 0 | Y128: 1 | Z128: 1 | AA128: 1 | AB128: 1 | AC128: 1 | AD128: 1 | AE128: 1 | AF128: 1 | AG128: 0 | AH128: =IF(A128,IF(E128<FirstDiagIncluded,OFFSET($W$81,E128,0),OFFSET($W$53,E128-10,0)),0) -> 0 | AJ128: =IF(A128,"",INDEX(CleanData,C128,D128)) -> 159719 | AL128: =MMULT(ModelMatrix ThisRow,Parameters)+AH128 -> 11.91397198 | AM128: 149338.6739 | AN128: 149338.6739 | AO128: 0.2291105954 | AP128: TRUE | AQ128: 31 | AR128: 54 | AS128: 31 | AU128: 0.09128068032 | AV128: 386.4436231 | AW128: 26.86116556 | AX128: 30.5934754 | AY128: 0.5406116193 | BA128: 33 | BB128: 35 | BC128: TRUE | BD128: 5 | BE128: 1 | BF128: 5 | BG128: 3910392.306 | BH128: -0.8144677419 | BI128: 0.02857983678 | CI128: 2 | CK128: -1.501147924 | CL128: 1.826266802 | CM128: 0.5282055945 | CN128: -0.3874779714 | CO128: -0.613961599 | CP128: -0.5377252306 | CQ128: -0.5024936107 | CR128: -0.04678560191 | CS128: -0.03152991695
A129: FALSE | B129: 34 | C129: 4 | D129: 7 | E129: 10 | G129: 0 | H129: 0 | I129: 0 | J129: -1 | K129: -1 | L129: -1 | M129: -1 | N129: -1 | O129: -1 | P129: 1 | Q129: 1 | R129: 1 | S129: 1 | T129: 1 | U129: 1 | V129: 0 | W129: 0 | X129: 0 | Y129: 1 | Z129: 1 | AA129: 1 | AB129: 1 | AC129: 1 | AD129: 1 | AE129: 1 | AF129: 1 | AG129: 1 | AH129: 0 | AJ129: 82672 | AL129: =MMULT(ModelMatrix ThisRow,Parameters)+AH129 -> 11.19699171 | AM129: 72910.77508 | AN129: 72910.77508 | AO129: 0.2563796528 | AP129: TRUE | AQ129: 32 | AR129: 54 | AS129: 32 | AU129: -0.0944124285 | AV129: 270.0199531 | AW129: 36.1500134 | AX129: 41.92111548 | AY129: 0.7407802424 | BA129: 34 | BB129: 36 | BC129: TRUE | BD129: 5 | BE129: 2 | BF129: 6 | BG129: 3035803.17 | BH129: 0.6926104 | BI129: 0.0194961756 | CI129: 3 | CK129: -1.519556595 | CL129: 1.350444907 | CM129: 0.447412943 | CN129: -0.07320678666 | CO129: -0.5727368496 | CP129: -0.2411270332 | CQ129: 0.2213231635 | CR129: 0.5152846041
A130: FALSE | B130: 35 | C130: 5 | D130: 1 | E130: 5 | G130: 0 | H130: 0 | I130: 0 | J130: 0 | K130: -1 | L130: -1 | M130: -1 | N130: -1 | O130: -1 | P130: 0 | Q130: 0 | R130: 0 | S130: 0 | T130: 0 | U130: 0 | V130: 0 | W130: 0 | X130: 0 | Y130: 1 | Z130: 1 | AA130: 1 | AB130: 1 | AC130: 0 | AD130: 0 | AE130: 0 | AF130: 0 | AG130: 0 | AH130: 0 | AJ130: 3864567 | AL130: =MMULT(ModelMatrix ThisRow,Parameters)+AH130 -> 15.17914826 | AM130: 3910392.306 | AN130: 3910392.306 | AO130: 0.7472123997 | AP130: TRUE | AQ130: 33 | AR130: 54 | AS130: 33 | AU130: -0.880725962 | AV130: 1977.47119 | AW130: -23.17369098 | AX130: -46.09112704 | AY130: -0.8144677419 | BA130: 35 | BB130: 37 | BC130: TRUE | BD130: 5 | BE130: 3 | BF130: 7 | BG130: 1294195.182 | BH130: -0.1766080685 | BI130: 0.001407479736 | CI130: 4 | CK130: -1.374368947 | CL130: 0.8656697611 | CM130: 0.3631830104 | CN130: -0.2237474418 | CO130: -0.1227631018 | CP130: 0.5406116193 | CQ130: 0.7407802424
A131: FALSE | B131: 36 | C131: 5 | D131: 2 | E131: 6 | G131: 0 | H131: 0 | I131: 0 | J131: 0 | K131: -1 | L131: -1 | M131: -1 | N131: -1 | O131: -1 | P131: 1 | Q131: 0 | R131: 0 | S131: 0 | T131: 0 | U131: 0 | V131: 0 | W131: 0 | X131: 0 | Y131: 1 | Z131: 1 | AA131: 1 | AB131: 1 | AC131: 1 | AD131: 0 | AE131: 0 | AF131: 0 | AG131: 0 | AH131: 0 | AJ131: 3076096 | AL131: =MMULT(ModelMatrix ThisRow,Parameters)+AH131 -> 14.92598658 | AM131: 3035803.17 | AN131: 3035803.17 | AO131: 0.6518895739 | AP131: TRUE | AQ131: 34 | AR131: 54 | AS131: 34 | AU131: -0.9157885504 | AV131: 1742.355638 | AW131: 23.12549106 | AX131: 39.19516059 | AY131: 0.6926104 | BA131: 36 | BB131: 38 | BC131: TRUE | BD131: 5 | BE131: 4 | BF131: 8 | BG131: 639609.8796 | BH131: -0.153598955 | BI131: -0.00539117676 | CI131: 5 | CK131: -0.8144677419 | CL131: 0.6926104 | CM131: -0.1766080685 | CN131: -0.153598955 | CO131: 0.1552379187 | CP131: 0.8268398391
A132: FALSE | B132: 37 | C132: 5 | D132: 3 | E132: 7 | G132: 0 | H132: 0 | I132: 0 | J132: 0 | K132: -1 | L132: -1 | M132: -1 | N132: -1 | O132: -1 | P132: 1 | Q132: 1 | R132: 0 | S132: 0 | T132: 0 | U132: 0 | V132: 0 | W132: 0 | X132: 0 | Y132: 1 | Z132: 1 | AA132: 1 | AB132: 1 | AC132: 1 | AD132: 1 | AE132: 0 | AF132: 0 | AG132: 0 | AH132: 0 | AJ132: 1285639 | AL132: =MMULT(ModelMatrix ThisRow,Parameters)+AH132 -> 14.07339958 | AM132: 1294195.182 | AN132: 1294195.182 | AO132: 0.4336924671 | AP132: TRUE | AQ132: 35 | AR132: 54 | AS132: 35 | AU132: -0.9132910048 | AV132: 1137.626996 | AW132: -7.521078989 | AX132: -9.994336796 | AY132: -0.1766080685 | BA132: 37 | BB132: 39 | BC132: TRUE | BD132: 5 | BE132: 5 | BF132: 9 | BG132: 311590.533 | BH132: 0.1552379187 | BI132: -0.008798052611 | CI132: 6 | CK132: -0.4707278052 | CL132: -0.04924420677 | CM132: -0.6863297122 | CN132: 0.5613341008 | CO132: 1.551722256
A133: FALSE | B133: 38 | C133: 5 | D133: 4 | E133: 8 | G133: 0 | H133: 0 | I133: 0 | J133: 0 | K133: -1 | L133: -1 | M133: -1 | N133: -1 | O133: -1 | P133: 1 | Q133: 1 | R133: 1 | S133: 0 | T133: 0 | U133: 0 | V133: 0 | W133: 0 | X133: 0 | Y133: 1 | Z133: 1 | AA133: 1 | AB133: 1 | AC133: 1 | AD133: 1 | AE133: 1 | AF133: 0 | AG133: 0 | AH133: 0 | AJ133: 633827 | AL133: =MMULT(ModelMatrix ThisRow,Parameters)+AH133 -> 13.36861371 | AM133: 639609.8796 | AN133: 639609.8796 | AO133: 0.3079942078 | AP133: TRUE | AQ133: 36 | AR133: 54 | AS133: 36 | AU133: 0.1101339817 | AV133: 799.7561376 | AW133: -7.230803597 | AX133: -8.692239831 | AY133: -0.153598955 | BA133: 38 | BB133: 40 | BC133: TRUE | BD133: 5 | BE133: 6 | BF133: 10 | BG133: 146905.9284 | BH133: 0.8268398391 | BI133: -0.01050850051 | CI133: 7 | CK133: 0.9124196906 | CL133: -1.064127242 | CM133: -0.5012400069 | CN133: 0.9134700545
A134: FALSE | B134: 39 | C134: 5 | D134: 5 | E134: 9 | G134: 0 | H134: 0 | I134: 0 | J134: 0 | K134: -1 | L134: -1 | M134: -1 | N134: -1 | O134: -1 | P134: 1 | Q134: 1 | R134: 1 | S134: 1 | T134: 0 | U134: 0 | V134: 0 | W134: 0 | X134: 0 | Y134: 1 | Z134: 1 | AA134: 1 | AB134: 1 | AC134: 1 | AD134: 1 | AE134: 1 | AF134: 1 | AG134: 0 | AH134: 0 | AJ134: 315839 | AL134: =MMULT(ModelMatrix ThisRow,Parameters)+AH134 -> 12.64944521 | AM134: 311590.533 | AN134: 311590.533 | AO134: 0.2494186986 | AP134: TRUE | AQ134: 37 | AR134: 54 | AS134: 37 | AU134: -0.4325296743 | AV134: 558.2029497 | AW134: 7.610971956 | AX134: 8.78498959 | AY134: 0.1552379187 | BA134: 39 | BB134: 41 | BC134: TRUE | BD134: 6 | BE134: 1 | BF134: 6 | BG134: 4281990.001 | BH134: -0.4707278052 | BI134: 0.03243932625 | CI134: 8 | CK134: 2.172189714 | CL134: -2.550378436 | CM134: 0.4309584597
A135: FALSE | B135: 40 | C135: 5 | D135: 6 | E135: 10 | G135: 0 | H135: 0 | I135: 0 | J135: 0 | K135: -1 | L135: -1 | M135: -1 | N135: -1 | O135: -1 | P135: 1 | Q135: 1 | R135: 1 | S135: 1 | T135: 1 | U135: 0 | V135: 0 | W135: 0 | X135: 0 | Y135: 1 | Z135: 1 | AA135: 1 | AB135: 1 | AC135: 1 | AD135: 1 | AE135: 1 | AF135: 1 | AG135: 1 | AH135: 0 | AJ135: 162529 | AL135: =MMULT(ModelMatrix ThisRow,Parameters)+AH135 -> 11.89754772 | AM135: 146905.9284 | AN135: 146905.9284 | AO135: 0.2411361629 | AP135: TRUE | AQ135: 38 | AR135: 54 | AS135: 38 | AU135: -1.074810217 | AV135: 383.2830917 | AW135: 40.76118134 | AX135: 46.79127006 | AY135: 0.8268398391 | BA135: 40 | BB135: 42 | BC135: TRUE | BD135: 6 | BE135: 2 | BF135: 7 | BG135: 3187491.741 | BH135: -0.04924420677 | BI135: 0.02107164404 | CI135: 9 | CK135: 2.545003557 | CL135: -2.545003557
A136: FALSE | B136: 41 | C136: 6 | D136: 1 | E136: 6 | G136: 0 | H136: 0 | I136: 0 | J136: 0 | K136: 0 | L136: -1 | M136: -1 | N136: -1 | O136: -1 | P136: 0 | Q136: 0 | R136: 0 | S136: 0 | T136: 0 | U136: 0 | V136: 0 | W136: 0 | X136: 0 | Y136: 1 | Z136: 1 | AA136: 1 | AB136: 1 | AC136: 1 | AD136: 0 | AE136: 0 | AF136: 0 | AG136: 0 | AH136: 0 | AJ136: 4254977 | AL136: =MMULT(ModelMatrix ThisRow,Parameters)+AH136 -> 15.26992841 | AM136: 4281990.001 | AN136: 4281990.001 | AO136: 0.7598550586 | AP136: TRUE | AQ136: 39 | AR136: 54 | AS136: 39 | AU136: -0.1039832958 | AV136: 2069.296982 | AW136: -13.05419252 | AX136: -26.63871625 | AY136: -0.4707278052 | BA136: 41 | BB136: 43 | BC136: TRUE | BD136: 6 | BE136: 3 | BF136: 8 | BG136: 1316184.018 | BH136: -0.6863297122 | BI136: 0.001635860263 | CI136: 10
A137: FALSE | B137: 42 | C137: 6 | D137: 2 | E137: 7 | G137: 0 | H137: 0 | I137: 0 | J137: 0 | K137: 0 | L137: -1 | M137: -1 | N137: -1 | O137: -1 | P137: 1 | Q137: 0 | R137: 0 | S137: 0 | T137: 0 | U137: 0 | V137: 0 | W137: 0 | X137: 0 | Y137: 1 | Z137: 1 | AA137: 1 | AB137: 1 | AC137: 1 | AD137: 1 | AE137: 0 | AF137: 0 | AG137: 0 | AH137: 0 | AJ137: 3184599 | AL137: =MMULT(ModelMatrix ThisRow,Parameters)+AH137 -> 14.97474488 | AM137: 3187491.741 | AN137: 3187491.741 | AO137: 0.6619562138 | AP137: TRUE | AQ137: 40 | AR137: 54 | AS137: 40 | AU137: -0.2944586772 | AV137: 1785.354794 | AW137: -1.620261321 | AX137: -2.786753697 | AY137: -0.04924420677 | BA137: 42 | BB137: 44 | BC137: TRUE | BD137: 6 | BE137: 4 | BF137: 9 | BG137: 652535.5687 | BH137: 0.5613341008 | BI137: -0.005256927916
A138: FALSE | B138: 43 | C138: 6 | D138: 3 | E138: 8 | G138: 0 | H138: 0 | I138: 0 | J138: 0 | K138: 0 | L138: -1 | M138: -1 | N138: -1 | O138: -1 | P138: 1 | Q138: 1 | R138: 0 | S138: 0 | T138: 0 | U138: 0 | V138: 0 | W138: 0 | X138: 0 | Y138: 1 | Z138: 1 | AA138: 1 | AB138: 1 | AC138: 1 | AD138: 1 | AE138: 1 | AF138: 0 | AG138: 0 | AH138: 0 | AJ138: 1282801 | AL138: =MMULT(ModelMatrix ThisRow,Parameters)+AH138 -> 14.09024721 | AM138: 1316184.018 | AN138: 1316184.018 | AO138: 0.4387167424 | AP138: TRUE | AQ138: 41 | AR138: 54 | AS138: 41 | AU138: 1.214750802 | AV138: 1147.250634 | AW138: -29.09827769 | AX138: -38.8397334 | AY138: -0.6863297122 | BA138: 43 | BB138: 45 | BC138: TRUE | BD138: 6 | BE138: 5 | BF138: 10 | BG138: 316045.6713 | BH138: 1.551722256 | BI138: -0.008751780636
A139: FALSE | B139: 44 | C139: 6 | D139: 4 | E139: 9 | G139: 0 | H139: 0 | I139: 0 | J139: 0 | K139: 0 | L139: -1 | M139: -1 | N139: -1 | O139: -1 | P139: 1 | Q139: 1 | R139: 1 | S139: 0 | T139: 0 | U139: 0 | V139: 0 | W139: 0 | X139: 0 | Y139: 1 | Z139: 1 | AA139: 1 | AB139: 1 | AC139: 1 | AD139: 1 | AE139: 1 | AF139: 1 | AG139: 0 | AH139: 0 | AJ139: 673810 | AL139: =MMULT(ModelMatrix ThisRow,Parameters)+AH139 -> 13.38862093 | AM139: 652535.5687 | AN139: 652535.5687 | AO139: 0.3126435699 | AP139: TRUE | AQ139: 42 | AR139: 54 | AS139: 42 | AU139: 0.240545399 | AV139: 807.7967372 | AW139: 26.33636701 | AX139: 31.76617074 | AY139: 0.5613341008 | BA139: 44 | BB139: 46 | BC139: TRUE | BD139: 7 | BE139: 1 | BF139: 7 | BG139: 4363904.491 | BH139: 0.9124196906 | BI139: 0.03329010685 | CI139: Summary of Fitted Parameter Estimates
A140: FALSE | B140: 45 | C140: 6 | D140: 5 | E140: 10 | G140: 0 | H140: 0 | I140: 0 | J140: 0 | K140: 0 | L140: -1 | M140: -1 | N140: -1 | O140: -1 | P140: 1 | Q140: 1 | R140: 1 | S140: 1 | T140: 0 | U140: 0 | V140: 0 | W140: 0 | X140: 0 | Y140: 1 | Z140: 1 | AA140: 1 | AB140: 1 | AC140: 1 | AD140: 1 | AE140: 1 | AF140: 1 | AG140: 1 | AH140: 0 | AJ140: 358060 | AL140: =MMULT(ModelMatrix ThisRow,Parameters)+AH140 -> 12.66364201 | AM140: 316045.6713 | AN140: 316045.6713 | AO140: 0.27568054 | AP140: TRUE | AQ140: 43 | AR140: 54 | AS140: 43 | AU140: 0.4717259457 | AV140: 562.1793942 | AW140: 74.73473615 | AX140: 87.81271986 | AY140: 1.551722256 | BA140: 45 | BB140: 47 | BC140: TRUE | BD140: 7 | BE140: 2 | BF140: 8 | BG140: 3146444.186 | BH140: -1.064127242 | BI140: 0.02064531575 | CI140: =IF(TRANSPOSE(C14:F41)="","",TRANSPOSE(C14:F41)) -> Parameter | CJ140: α₁ | CK140: α₂ | CL140: α₃ | CM140: α₄ | CN140: α₅ | CO140: α₆ | CP140: α₇ | CQ140: α₈ | CR140: α₉ | CS140: β₁ | CT140: β₂ | CU140: β₃ | CV140: β₄ | CW140: β₅ | CX140: β₆ | CY140: β₇ | CZ140: β₈ | DA140: β₉ | DB140: γ₁ | DC140: γ₂ | DD140: γ₃ | DE140: γ₄ | DF140: γ₅ | DG140: γ₆ | DH140: γ₇ | DI140: γ₈ | DJ140: γ₉
A141: FALSE | B141: 46 | C141: 7 | D141: 1 | E141: 7 | G141: 0 | H141: 0 | I141: 0 | J141: 0 | K141: 0 | L141: 0 | M141: -1 | N141: -1 | O141: -1 | P141: 0 | Q141: 0 | R141: 0 | S141: 0 | T141: 0 | U141: 0 | V141: 0 | W141: 0 | X141: 0 | Y141: 1 | Z141: 1 | AA141: 1 | AB141: 1 | AC141: 1 | AD141: 1 | AE141: 0 | AF141: 0 | AG141: 0 | AH141: 0 | AJ141: 4416059 | AL141: =MMULT(ModelMatrix ThisRow,Parameters)+AH141 -> 15.28887774 | AM141: 4363904.491 | AN141: 4363904.491 | AO141: 0.7662065645 | AP141: TRUE | AQ141: 44 | AR141: 54 | AS141: 44 | AU141: -0.3860334558 | AV141: 2088.996049 | AW141: 24.96630347 | AX141: 51.63427563 | AY141: 0.9124196906 | BA141: 46 | BB141: 48 | BC141: TRUE | BD141: 7 | BE141: 3 | BF141: 9 | BG141: 1303346.137 | BH141: -0.5012400069 | BI141: 0.001502523412 | CI141: Start Period | CJ141: 1 | CK141: 2 | CL141: 3 | CM141: 4 | CN141: 5 | CO141: 6 | CP141: 7 | CQ141: 8 | CR141: 9 | CS141: 1 | CT141: 2 | CU141: 3 | CV141: 4 | CW141: 5 | CX141: 6 | CY141: 7 | CZ141: 8 | DA141: 9 | DB141: 1 | DC141: 2 | DD141: 3 | DE141: 4 | DF141: 5 | DG141: 6 | DH141: 7 | DI141: 8 | DJ141: 9
A142: FALSE | B142: 47 | C142: 7 | D142: 2 | E142: 8 | G142: 0 | H142: 0 | I142: 0 | J142: 0 | K142: 0 | L142: 0 | M142: -1 | N142: -1 | O142: -1 | P142: 1 | Q142: 0 | R142: 0 | S142: 0 | T142: 0 | U142: 0 | V142: 0 | W142: 0 | X142: 0 | Y142: 1 | Z142: 1 | AA142: 1 | AB142: 1 | AC142: 1 | AD142: 1 | AE142: 1 | AF142: 0 | AG142: 0 | AH142: 0 | AJ142: 3085207 | AL142: =MMULT(ModelMatrix ThisRow,Parameters)+AH142 -> 14.96178354 | AM142: 3146444.186 | AN142: 3146444.186 | AO142: 0.6713479008 | AP142: TRUE | AQ142: 45 | AR142: 54 | AS142: 45 | AU142: 0.2421460029 | AV142: 1773.821915 | AW142: -34.52273595 | AX142: -60.21948003 | AY142: -1.064127242 | BA142: 47 | BB142: 49 | BC142: TRUE | BD142: 7 | BE142: 4 | BF142: 10 | BG142: 642427.1871 | BH142: 0.9134700545 | BI142: -0.005361915629 | CI142: End Period | CJ142: 2 | CK142: 3 | CL142: 4 | CM142: 5 | CN142: 6 | CO142: 7 | CP142: 8 | CQ142: 9 | CR142: 10 | CS142: 2 | CT142: 3 | CU142: 4 | CV142: 5 | CW142: 6 | CX142: 7 | CY142: 8 | CZ142: 9 | DA142: 10 | DB142: 2 | DC142: 3 | DD142: 4 | DE142: 5 | DF142: 6 | DG142: 7 | DH142: 8 | DI142: 9 | DJ142: 10
A143: FALSE | B143: 48 | C143: 7 | D143: 3 | E143: 9 | G143: 0 | H143: 0 | I143: 0 | J143: 0 | K143: 0 | L143: 0 | M143: -1 | N143: -1 | O143: -1 | P143: 1 | Q143: 1 | R143: 0 | S143: 0 | T143: 0 | U143: 0 | V143: 0 | W143: 0 | X143: 0 | Y143: 1 | Z143: 1 | AA143: 1 | AB143: 1 | AC143: 1 | AD143: 1 | AE143: 1 | AF143: 1 | AG143: 0 | AH143: 0 | AJ143: 1278943 | AL143: =MMULT(ModelMatrix ThisRow,Parameters)+AH143 -> 14.08044547 | AM143: 1303346.137 | AN143: 1303346.137 | AO143: 0.4321244131 | AP143: TRUE | AQ143: 46 | AR143: 54 | AS143: 46 | AU143: 2.160254202 | AV143: 1141.64186 | AW143: -21.37547461 | AX143: -28.36541664 | AY143: -0.5012400069 | BA143: 48 | BB143: 50 | BC143: TRUE | BD143: 8 | BE143: 1 | BF143: 8 | BG143: 4244849.988 | BH143: 2.172189714 | BI143: 0.0320535825 | CI143: Value | CJ143: -1.678763416 | CK143: -1.737117341 | CL143: -1.623893926 | CM143: -1.641613329 | CN143: -1.610992262 | CO143: -1.640801229 | CP143: -1.655500596 | CQ143: -1.658132564 | CR143: -1.606744332 | CS143: -1.954934091 | CT143: -2.51233756 | CU143: -2.332625767 | CV143: -2.350167979 | CW143: -2.377086555 | CX143: -2.342169334 | CY143: -2.331139763 | CZ143: -2.445849255 | DA143: -2.265972975 | DB143: 1.819743412 | DC143: 1.742056704 | DD143: 1.729813428 | DE143: 1.715363736 | DF143: 1.701772414 | DG143: 1.659750556 | DH143: 1.627839894 | DI143: 1.630999483 | DJ143: 1.625189063
A144: FALSE | B144: 49 | C144: 7 | D144: 4 | E144: 10 | G144: 0 | H144: 0 | I144: 0 | J144: 0 | K144: 0 | L144: 0 | M144: -1 | N144: -1 | O144: -1 | P144: 1 | Q144: 1 | R144: 1 | S144: 0 | T144: 0 | U144: 0 | V144: 0 | W144: 0 | X144: 0 | Y144: 1 | Z144: 1 | AA144: 1 | AB144: 1 | AC144: 1 | AD144: 1 | AE144: 1 | AF144: 1 | AG144: 1 | AH144: 0 | AJ144: 675913 | AL144: =MMULT(ModelMatrix ThisRow,Parameters)+AH144 -> 13.37300876 | AM144: 642427.1871 | AN144: 642427.1871 | AO144: 0.3468359525 | AP144: TRUE | AQ144: 47 | AR144: 54 | AS144: 47 | AU144: 2.736559565 | AV144: 801.5155564 | AW144: 41.77811974 | AX144: 51.69371623 | AY144: 0.9134700545 | BA144: 49 | BB144: 51 | BC144: TRUE | BD144: 8 | BE144: 2 | BF144: 9 | BG144: 3070289.549 | BH144: -2.550378436 | BI144: 0.01985435816 | CI144: St. Dev. | CJ144: =IF(CJ143="","",SQRT(INDEX($G$249:$AG$275,CJ145,CJ145))) -> 0.02460594291 | CK144: =IF(CK143="","",SQRT(INDEX($G$249:$AG$275,CK145,CK145))) -> 0.02439188588 | CL144: 0.02393476304 | CM144: 0.02324681098 | CN144: 0.02282628601 | CO144: 0.02279951014 | CP144: 0.02358785842 | CQ144: 0.02539630121 | CR144: 0.02956882673 | CS144: 0.01204559527 | CT144: 0.01759933433 | CU144: 0.02628923486 | CV144: 0.03934536219 | CW144: 0.06093066671 | CX144: 0.09575255523 | CY144: 0.154126364 | CZ144: 0.2705073126 | DA144: 0.5126560095 | DB144: 0.03373480723 | DC144: 0.02767146961 | DD144: 0.0255168298 | DE144: 0.02409648395 | DF144: 0.02315880946 | DG144: 0.02252664377 | DH144: 0.02247222677 | DI144: 0.02280758966 | DJ144: 0.02319062587
A145: FALSE | B145: 50 | C145: 8 | D145: 1 | E145: 8 | G145: 0 | H145: 0 | I145: 0 | J145: 0 | K145: 0 | L145: 0 | M145: 0 | N145: -1 | O145: -1 | P145: 0 | Q145: 0 | R145: 0 | S145: 0 | T145: 0 | U145: 0 | V145: 0 | W145: 0 | X145: 0 | Y145: 1 | Z145: 1 | AA145: 1 | AB145: 1 | AC145: 1 | AD145: 1 | AE145: 1 | AF145: 0 | AG145: 0 | AH145: 0 | AJ145: 4364315 | AL145: =MMULT(ModelMatrix ThisRow,Parameters)+AH145 -> 15.26121704 | AM145: 4244849.988 | AN145: 4244849.988 | AO145: 0.7774965601 | AP145: TRUE | AQ145: 48 | AR145: 54 | AS145: 48 | AU145: -0.4931324521 | AV145: 2060.303373 | AW145: 57.98418499 | AX145: 122.9252761 | AY145: 2.172189714 | BA145: 50 | BB145: 52 | BC145: TRUE | BD145: 8 | BE145: 3 | BF145: 10 | BG145: 1264432.463 | BH145: 0.4309584597 | BI145: 0.001098358057 | CI145: Par. Index | CJ145: =IF(CJ143="","",COLUMN()-COLUMN($CJ$145)+1) -> 1 | CK145: 2 | CL145: 3 | CM145: 4 | CN145: 5 | CO145: 6 | CP145: 7 | CQ145: 8 | CR145: 9 | CS145: 10 | CT145: 11 | CU145: 12 | CV145: 13 | CW145: 14 | CX145: 15 | CY145: 16 | CZ145: 17 | DA145: 18 | DB145: 19 | DC145: 20 | DD145: 21 | DE145: 22 | DF145: 23 | DG145: 24 | DH145: 25 | DI145: 26 | DJ145: 27
A146: FALSE | B146: 51 | C146: 8 | D146: 2 | E146: 9 | G146: 0 | H146: 0 | I146: 0 | J146: 0 | K146: 0 | L146: 0 | M146: 0 | N146: -1 | O146: -1 | P146: 1 | Q146: 0 | R146: 0 | S146: 0 | T146: 0 | U146: 0 | V146: 0 | W146: 0 | X146: 0 | Y146: 1 | Z146: 1 | AA146: 1 | AB146: 1 | AC146: 1 | AD146: 1 | AE146: 1 | AF146: 1 | AG146: 0 | AH146: 0 | AJ146: 2930960 | AL146: =MMULT(ModelMatrix ThisRow,Parameters)+AH146 -> 14.93728243 | AM146: 3070289.549 | AN146: 3070289.549 | AO146: 0.6964634495 | AP146: TRUE | AQ146: 49 | AR146: 54 | AS146: 49 | AU146: 2.728369021 | AV146: 1752.224172 | AW146: -79.51582414 | AX146: -144.3271605 | AY146: -2.550378436 | BA146: 51 | BB146: 53 | BC146: TRUE | BD146: 9 | BE146: 1 | BF146: 9 | BG146: 4131222.632 | BH146: 2.545003557 | BI146: 0.03087342559
A147: FALSE | B147: 52 | C147: 8 | D147: 3 | E147: 10 | G147: 0 | H147: 0 | I147: 0 | J147: 0 | K147: 0 | L147: 0 | M147: 0 | N147: -1 | O147: -1 | P147: 1 | Q147: 1 | R147: 0 | S147: 0 | T147: 0 | U147: 0 | V147: 0 | W147: 0 | X147: 0 | Y147: 1 | Z147: 1 | AA147: 1 | AB147: 1 | AC147: 1 | AD147: 1 | AE147: 1 | AF147: 1 | AG147: 1 | AH147: 0 | AJ147: 1284297 | AL147: =MMULT(ModelMatrix ThisRow,Parameters)+AH147 -> 14.05013393 | AM147: 1264432.463 | AN147: 1264432.463 | AO147: 0.4753090587 | AP147: TRUE | AQ147: 50 | AR147: 54 | AS147: 50 | AU147: 2.728369021 | AV147: 1124.469859 | AW147: 17.66569114 | AX147: 24.38814958 | AY147: 0.4309584597 | BA147: 52 | BB147: 54 | BC147: TRUE | BD147: 9 | BE147: 2 | BF147: 10 | BG147: 2970791.368 | BH147: -2.545003557 | BI147: 0.01882094976
A148: FALSE | B148: 53 | C148: 9 | D148: 1 | E148: 9 | G148: 0 | H148: 0 | I148: 0 | J148: 0 | K148: 0 | L148: 0 | M148: 0 | N148: 0 | O148: -1 | P148: 0 | Q148: 0 | R148: 0 | S148: 0 | T148: 0 | U148: 0 | V148: 0 | W148: 0 | X148: 0 | Y148: 1 | Z148: 1 | AA148: 1 | AB148: 1 | AC148: 1 | AD148: 1 | AE148: 1 | AF148: 1 | AG148: 0 | AH148: 0 | AJ148: 4256384 | AL148: =MMULT(ModelMatrix ThisRow,Parameters)+AH148 -> 15.23408396 | AM148: 4131222.632 | AN148: 4131222.632 | AO148: 0.8171906782 | AP148: TRUE | AQ148: 51 | AR148: 54 | AS148: 51 | AU148: -1.149851324 | AV148: 2032.54093 | AW148: 61.5787689 | AX148: 144.0229935 | AY148: 2.545003557 | BA148: 53 | BB148: 1 | BC148: FALSE | CI148: Data Values | DA148: Fitted & Extrapolated Values
A149: FALSE | B149: 54 | C149: 9 | D149: 2 | E149: 10 | G149: 0 | H149: 0 | I149: 0 | J149: 0 | K149: 0 | L149: 0 | M149: 0 | N149: 0 | O149: -1 | P149: 1 | Q149: 0 | R149: 0 | S149: 0 | T149: 0 | U149: 0 | V149: 0 | W149: 0 | X149: 0 | Y149: 1 | Z149: 1 | AA149: 1 | AB149: 1 | AC149: 1 | AD149: 1 | AE149: 1 | AF149: 1 | AG149: 1 | AH149: 0 | AJ149: 2845630 | AL149: =MMULT(ModelMatrix ThisRow,Parameters)+AH149 -> 14.90433893 | AM149: 2970791.368 | AN149: 2970791.368 | AO149: 0.7457828862 | AP149: TRUE | AQ149: 52 | AR149: 54 | AS149: 52 | AU149: -1.149851324 | AV149: 1723.598378 | AW149: -72.61631817 | AX149: -144.0229935 | AY149: -2.545003557 | BA149: 54 | BB149: 10 | BC149: FALSE | CI149: Period | CJ149: Dev | CK149: 1 | CL149: 2 | CM149: 3 | CN149: 4 | CO149: 5 | CP149: 6 | CQ149: 7 | CR149: 8 | CS149: 9 | CT149: 10 | CU149: 11 | CV149: 12 | CW149: 13 | CX149: 14 | CY149: 15 | DA149: Period | DB149: Dev | DC149: 1 | DD149: 2 | DE149: 3 | DF149: 4 | DG149: 5 | DH149: 6 | DI149: 7 | DJ149: 8 | DK149: 9 | DL149: 10 | DM149: 11 | DN149: 12 | DO149: 13 | DP149: 14 | DQ149: 15
A150: FALSE | B150: 55 | C150: 10 | D150: 1 | E150: 10 | G150: 0 | H150: 0 | I150: 0 | J150: 0 | K150: 0 | L150: 0 | M150: 0 | N150: 0 | O150: 0 | P150: 0 | Q150: 0 | R150: 0 | S150: 0 | T150: 0 | U150: 0 | V150: 0 | W150: 0 | X150: 0 | Y150: 1 | Z150: 1 | AA150: 1 | AB150: 1 | AC150: 1 | AD150: 1 | AE150: 1 | AF150: 1 | AG150: 1 | AH150: 0 | AJ150: 4208129 | AL150: =MMULT(ModelMatrix ThisRow,Parameters)+AH150 -> 15.25252869 | AM150: 4208129 | AN150: 4208129 | AO150: 1 | AP150: FALSE | AQ150: 52 | AR150: 55 | AS150: 55 | AU150: -1.149851324 | AV150: 2051.372467 | AW150: 5.220997054e-11 | BA150: 55 | BB150: 55 | BC150: FALSE | CI150: Exp | DA150: Exp
A151: TRUE | B151: 56 | C151: 2 | D151: 10 | E151: 11 | G151: 0 | H151: -1 | I151: -1 | J151: -1 | K151: -1 | L151: -1 | M151: -1 | N151: -1 | O151: -1 | P151: 1 | Q151: 1 | R151: 1 | S151: 1 | T151: 1 | U151: 1 | V151: 1 | W151: 1 | X151: 1 | Y151: 1.111111111 | Z151: 1.111111111 | AA151: 1.111111111 | AB151: 1.111111111 | AC151: 1.111111111 | AD151: 1.111111111 | AE151: 1.111111111 | AF151: 1.111111111 | AG151: 1.111111111 | AH151: 0 | AL151: =MMULT(ModelMatrix ThisRow,Parameters)+AH151 -> 9.209766397 | AM151: 9994.261896 | AP151: FALSE | AQ151: 52 | AR151: 56 | AS151: 56 | CI151: 1 | CK151: =IF(CleanData<>"",CleanData,"") -> 2823701 | CL151: 2536475 | CM151: 1125533 | CN151: 601484 | CO151: 321420 | CP151: 157915 | CQ151: 79395 | CR151: 38016 | CS151: 18838 | CT151: 9836 | DA151: 1 | DC151: =IF(DC196:DL205="","",DC166:DL175*DC181:DL190*DC196:DL205) -> 2823701 | DD151: 2466642.11 | DE151: 1141766.816 | DF151: 624855.1358 | DG151: 331197.7393 | DH151: 168578.4897 | DI151: 85198.40195 | DJ151: 42168.89266 | DK151: 18668.4146 | DL151: 9836 | DM151: =IF(DM196:DQ205="","",DM166:DQ175*DM181:DQ190*DM196:DQ205) -> 5555.736279 | DN151: 3138.085157 | DO151: 1772.506461 | DP151: 1001.177151 | DQ151: 565.5018521
A152: TRUE | B152: 57 | C152: 3 | D152: 9 | E152: 11 | G152: 0 | H152: 0 | I152: -1 | J152: -1 | K152: -1 | L152: -1 | M152: -1 | N152: -1 | O152: -1 | P152: 1 | Q152: 1 | R152: 1 | S152: 1 | T152: 1 | U152: 1 | V152: 1 | W152: 1 | X152: 0 | Y152: 1.111111111 | Z152: 1.111111111 | AA152: 1.111111111 | AB152: 1.111111111 | AC152: 1.111111111 | AD152: 1.111111111 | AE152: 1.111111111 | AF152: 1.111111111 | AG152: 1.111111111 | AH152: 0 | AL152: =MMULT(ModelMatrix ThisRow,Parameters)+AH152 -> 9.738622031 | AM152: 16960.1547 | AP152: FALSE | AQ152: 52 | AR152: 57 | AS152: 57 | CI152: 2 | CK152: 3181381 | CL152: 2723043 | CM152: 1226151 | CN152: 633645 | CO152: 321623 | CP152: 154692 | CQ152: 74083 | CR152: 39773 | CS152: 17525 | DA152: 2 | DC152: 3251213.89 | DD152: 2627810.643 | DE152: 1201567.449 | DF152: 648148.7092 | DG152: 338906.6139 | DH152: 165403.6077 | DI152: 80968.41621 | DJ152: 40202.08562 | DK152: 17694.5854 | DL152: 9994.261896 | DM152: 5645.128447 | DN152: 3188.577157 | DO152: 1801.026209 | DP152: 1017.286158 | DQ152: 574.6008146
A153: TRUE | B153: 58 | C153: 3 | D153: 10 | E153: 12 | G153: 0 | H153: 0 | I153: -1 | J153: -1 | K153: -1 | L153: -1 | M153: -1 | N153: -1 | O153: -1 | P153: 1 | Q153: 1 | R153: 1 | S153: 1 | T153: 1 | U153: 1 | V153: 1 | W153: 1 | X153: 1 | Y153: 1.222222222 | Z153: 1.222222222 | AA153: 1.222222222 | AB153: 1.222222222 | AC153: 1.222222222 | AD153: 1.222222222 | AE153: 1.222222222 | AF153: 1.222222222 | AG153: 1.222222222 | AH153: 0 | AL153: =MMULT(ModelMatrix ThisRow,Parameters)+AH153 -> 9.167374465 | AM153: 9579.440492 | AP153: FALSE | AQ153: 52 | AR153: 58 | AS153: 58 | CI153: 3 | CK153: 3188314 | CL153: 2682586 | CM153: 1196454 | CN153: 622922 | CO153: 297869 | CP153: 143653 | CQ153: 75744 | CR153: 40527 | DA153: 3 | DC153: 3267312.541 | DD153: 2608687.264 | DE153: 1175711.277 | DF153: 625640.0663 | DG153: 313675.1225 | DH153: 148281.3003 | DI153: 72816.40676 | DJ153: 35945.02172 | DK153: 16960.1547 | DL153: 9579.440492 | DM153: 5410.821988 | DN153: 3056.23221 | DO153: 1726.272892 | DP153: 975.0627222 | DQ153: 550.7514579
A154: TRUE | B154: 59 | C154: 4 | D154: 8 | E154: 11 | G154: 0 | H154: 0 | I154: 0 | J154: -1 | K154: -1 | L154: -1 | M154: -1 | N154: -1 | O154: -1 | P154: 1 | Q154: 1 | R154: 1 | S154: 1 | T154: 1 | U154: 1 | V154: 1 | W154: 0 | X154: 0 | Y154: 1.111111111 | Z154: 1.111111111 | AA154: 1.111111111 | AB154: 1.111111111 | AC154: 1.111111111 | AD154: 1.111111111 | AE154: 1.111111111 | AF154: 1.111111111 | AG154: 1.111111111 | AH154: 0 | AL154: =MMULT(ModelMatrix ThisRow,Parameters)+AH154 -> 10.56057736 | AM154: 38583.39803 | AP154: FALSE | AQ154: 52 | AR154: 59 | AS154: 59 | CI154: 4 | CK154: 3557266 | CL154: 2907921 | CM154: 1288319 | CN154: 640096 | CO154: 311520 | CP154: 159719 | CQ154: 82672 | DA154: 4 | DC154: 3632377.151 | DD154: 2858556.968 | DE154: 1270933.659 | DF154: 648480.4533 | DG154: 314915.32 | DH154: 149338.6739 | DI154: 72910.77508 | DJ154: 38583.39803 | DK154: 18205.03558 | DL154: 10282.57455 | DM154: 5807.978085 | DN154: 3280.56065 | DO154: 1852.981885 | DP154: 1046.632644 | DQ154: 591.1767944
A155: TRUE | B155: 60 | C155: 4 | D155: 9 | E155: 12 | G155: 0 | H155: 0 | I155: 0 | J155: -1 | K155: -1 | L155: -1 | M155: -1 | N155: -1 | O155: -1 | P155: 1 | Q155: 1 | R155: 1 | S155: 1 | T155: 1 | U155: 1 | V155: 1 | W155: 1 | X155: 0 | Y155: 1.222222222 | Z155: 1.222222222 | AA155: 1.222222222 | AB155: 1.222222222 | AC155: 1.222222222 | AD155: 1.222222222 | AE155: 1.222222222 | AF155: 1.222222222 | AG155: 1.222222222 | AH155: 0 | AL155: =MMULT(ModelMatrix ThisRow,Parameters)+AH155 -> 9.809453515 | AM155: 18205.03558 | AP155: FALSE | AQ155: 52 | AR155: 60 | AS155: 60 | CI155: 5 | CK155: 3864567 | CL155: 3076096 | CM155: 1285639 | CN155: 633827 | CO155: 315839 | CP155: 162529 | DA155: 5 | DC155: 3910392.306 | DD155: 3035803.17 | DE155: 1294195.182 | DF155: 639609.8796 | DG155: 311590.533 | DH155: 146905.9284 | DI155: 76887.89987 | DJ155: 40688.03878 | DK155: 19198.08082 | DL155: 10843.46671 | DM155: 6124.790705 | DN155: 3459.508125 | DO155: 1954.058032 | DP155: 1103.724187 | DQ155: 623.4242075
A156: TRUE | B156: 61 | C156: 4 | D156: 10 | E156: 13 | G156: 0 | H156: 0 | I156: 0 | J156: -1 | K156: -1 | L156: -1 | M156: -1 | N156: -1 | O156: -1 | P156: 1 | Q156: 1 | R156: 1 | S156: 1 | T156: 1 | U156: 1 | V156: 1 | W156: 1 | X156: 1 | Y156: 1.333333333 | Z156: 1.333333333 | AA156: 1.333333333 | AB156: 1.333333333 | AC156: 1.333333333 | AD156: 1.333333333 | AE156: 1.333333333 | AF156: 1.333333333 | AG156: 1.333333333 | AH156: 0 | AL156: =MMULT(ModelMatrix ThisRow,Parameters)+AH156 -> 9.23820595 | AM156: 10282.57455 | AP156: FALSE | AQ156: 52 | AR156: 61 | AS156: 61 | CI156: 6 | CK156: 4254977 | CL156: 3184599 | CM156: 1282801 | CN156: 673810 | CO156: 358060 | DA156: 6 | DC156: 4281990.001 | DD156: 3187491.741 | DE156: 1316184.018 | DF156: 652535.5687 | DG156: 316045.6713 | DH156: 159736.5007 | DI156: 83603.18885 | DJ156: 44241.67907 | DK156: 20874.81619 | DL156: 11790.52096 | DM156: 6659.721943 | DN156: 3761.657057 | DO156: 2124.722914 | DP156: 1200.122019 | DQ156: 677.8732654
A157: TRUE | B157: 62 | C157: 5 | D157: 7 | E157: 11 | G157: 0 | H157: 0 | I157: 0 | J157: 0 | K157: -1 | L157: -1 | M157: -1 | N157: -1 | O157: -1 | P157: 1 | Q157: 1 | R157: 1 | S157: 1 | T157: 1 | U157: 1 | V157: 0 | W157: 0 | X157: 0 | Y157: 1.111111111 | Z157: 1.111111111 | AA157: 1.111111111 | AB157: 1.111111111 | AC157: 1.111111111 | AD157: 1.111111111 | AE157: 1.111111111 | AF157: 1.111111111 | AG157: 1.111111111 | AH157: 0 | AL157: =MMULT(ModelMatrix ThisRow,Parameters)+AH157 -> 11.25010379 | AM157: 76887.89987 | AP157: FALSE | AQ157: 52 | AR157: 62 | AS157: 62 | CI157: 7 | CK157: 4416059 | CL157: 3085207 | CM157: 1278943 | CN157: 675913 | DA157: 7 | DC157: 4363904.491 | DD157: 3146444.186 | DE157: 1303346.137 | DF157: 642427.1871 | DG157: 333556.0489 | DH157: 168586.6344 | DI157: 88235.18838 | DJ157: 46692.8707 | DK157: 22031.3766 | DL157: 12443.76981 | DM157: 7028.701038 | DN157: 3970.070085 | DO157: 2242.442294 | DP157: 1266.614275 | DQ157: 715.4305488
A158: TRUE | B158: 63 | C158: 5 | D158: 8 | E158: 12 | G158: 0 | H158: 0 | I158: 0 | J158: 0 | K158: -1 | L158: -1 | M158: -1 | N158: -1 | O158: -1 | P158: 1 | Q158: 1 | R158: 1 | S158: 1 | T158: 1 | U158: 1 | V158: 1 | W158: 0 | X158: 0 | Y158: 1.222222222 | Z158: 1.222222222 | AA158: 1.222222222 | AB158: 1.222222222 | AC158: 1.222222222 | AD158: 1.222222222 | AE158: 1.222222222 | AF158: 1.222222222 | AG158: 1.222222222 | AH158: 0 | AL158: =MMULT(ModelMatrix ThisRow,Parameters)+AH158 -> 10.61368944 | AM158: 40688.03878 | AP158: FALSE | AQ158: 52 | AR158: 63 | AS158: 63 | CI158: 8 | CK158: 4364315 | CL158: 2930960 | CM158: 1284297 | DA158: 8 | DC158: 4244849.988 | DD158: 3070289.549 | DE158: 1264432.463 | DF158: 668127.0145 | DG158: 346899.7134 | DH158: 175330.8188 | DI158: 91764.97224 | DJ158: 48560.78467 | DK158: 22912.72563 | DL158: 12941.57368 | DM158: 7309.879057 | DN158: 4128.88982 | DO158: 2332.149549 | DP158: 1317.284248 | DQ158: 744.050822
A159: TRUE | B159: 64 | C159: 5 | D159: 9 | E159: 13 | G159: 0 | H159: 0 | I159: 0 | J159: 0 | K159: -1 | L159: -1 | M159: -1 | N159: -1 | O159: -1 | P159: 1 | Q159: 1 | R159: 1 | S159: 1 | T159: 1 | U159: 1 | V159: 1 | W159: 1 | X159: 0 | Y159: 1.333333333 | Z159: 1.333333333 | AA159: 1.333333333 | AB159: 1.333333333 | AC159: 1.333333333 | AD159: 1.333333333 | AE159: 1.333333333 | AF159: 1.333333333 | AG159: 1.333333333 | AH159: 0 | AL159: =MMULT(ModelMatrix ThisRow,Parameters)+AH159 -> 9.862565596 | AM159: 19198.08082 | AP159: FALSE | AQ159: 52 | AR159: 64 | AS159: 64 | CI159: 9 | CK159: 4256384 | CL159: 2845630 | DA159: 9 | DC159: 4131222.632 | DD159: 2970791.368 | DE159: 1311558.627 | DF159: 693028.5131 | DG159: 359828.8759 | DH159: 181865.5046 | DI159: 95185.10834 | DJ159: 50370.67453 | DK159: 23766.69679 | DL159: 13423.91397 | DM159: 7582.322677 | DN159: 4282.776045 | DO159: 2419.070176 | DP159: 1366.38023 | DQ159: 771.7820469
A160: =B160>$BL$34 -> TRUE | B160: 65 | C160: =MATCH(B160-1,IF(A160,GetRow_Extrapolated,GetRow_Included),1) -> 5 | D160: =MATCH(B160-1,OFFSET(IF(A160,GetCol_Extrapolated,GetCol_Included),C160,0),1) -> 10 | E160: 14 | G160: 0 | H160: 0 | I160: 0 | J160: 0 | K160: -1 | L160: -1 | M160: -1 | N160: -1 | O160: -1 | P160: 1 | Q160: 1 | R160: 1 | S160: 1 | T160: 1 | U160: 1 | V160: 1 | W160: 1 | X160: 1 | Y160: 1.444444444 | Z160: 1.444444444 | AA160: 1.444444444 | AB160: 1.444444444 | AC160: 1.444444444 | AD160: 1.444444444 | AE160: 1.444444444 | AF160: 1.444444444 | AG160: 1.444444444 | AH160: =IF(A160,IF(E160<FirstDiagIncluded,OFFSET($W$81,E160,0),OFFSET($W$53,E160-10,0)),0) -> 0 | AJ160: =IF(A160,"",INDEX(CleanData,C160,D160)) ->  | AL160: =MMULT(ModelMatrix ThisRow,Parameters)+AH160 -> 9.291318031 | AM160: 10843.46671 | AP160: FALSE | AQ160: 52 | AR160: 65 | AS160: 65 | CI160: 10 | CK160: 4208129 | DA160: 10 | DC160: 4208129 | DD160: 3244007.504 | DE160: 1432179.342 | DF160: 756764.5851 | DG160: 392921.4236 | DH160: 198591.2132 | DI160: 103939.041 | DJ160: 55003.13753 | DK160: 25952.45953 | DL160: 14658.47724 | DM160: 8279.649635 | DN160: 4676.65208 | DO160: 2641.545915 | DP160: 1492.042749 | DQ160: 842.7608814
A161: TRUE | B161: 66 | C161: 6 | D161: 6 | E161: 11 | G161: 0 | H161: 0 | I161: 0 | J161: 0 | K161: 0 | L161: -1 | M161: -1 | N161: -1 | O161: -1 | P161: 1 | Q161: 1 | R161: 1 | S161: 1 | T161: 1 | U161: 0 | V161: 0 | W161: 0 | X161: 0 | Y161: 1.111111111 | Z161: 1.111111111 | AA161: 1.111111111 | AB161: 1.111111111 | AC161: 1.111111111 | AD161: 1.111111111 | AE161: 1.111111111 | AF161: 1.111111111 | AG161: 1.111111111 | AH161: 0 | AL161: =MMULT(ModelMatrix ThisRow,Parameters)+AH161 -> 11.98128087 | AM161: 159736.5007 | AP161: FALSE | AQ161: 52 | AR161: 66 | AS161: 66
A162: TRUE | B162: 67 | C162: 6 | D162: 7 | E162: 12 | G162: 0 | H162: 0 | I162: 0 | J162: 0 | K162: 0 | L162: -1 | M162: -1 | N162: -1 | O162: -1 | P162: 1 | Q162: 1 | R162: 1 | S162: 1 | T162: 1 | U162: 1 | V162: 0 | W162: 0 | X162: 0 | Y162: 1.222222222 | Z162: 1.222222222 | AA162: 1.222222222 | AB162: 1.222222222 | AC162: 1.222222222 | AD162: 1.222222222 | AE162: 1.222222222 | AF162: 1.222222222 | AG162: 1.222222222 | AH162: 0 | AL162: =MMULT(ModelMatrix ThisRow,Parameters)+AH162 -> 11.33383694 | AM162: 83603.18885 | AP162: FALSE | AQ162: =AQ161+IF(AP162,1,0) -> 52 | AR162: =AR161+IF(AP162,0,1) -> 67 | AS162: 67
A163: TRUE | B163: 68 | C163: 6 | D163: 8 | E163: 13 | G163: 0 | H163: 0 | I163: 0 | J163: 0 | K163: 0 | L163: -1 | M163: -1 | N163: -1 | O163: -1 | P163: 1 | Q163: 1 | R163: 1 | S163: 1 | T163: 1 | U163: 1 | V163: 1 | W163: 0 | X163: 0 | Y163: 1.333333333 | Z163: 1.333333333 | AA163: 1.333333333 | AB163: 1.333333333 | AC163: 1.333333333 | AD163: 1.333333333 | AE163: 1.333333333 | AF163: 1.333333333 | AG163: 1.333333333 | AH163: 0 | AL163: =MMULT(ModelMatrix ThisRow,Parameters)+AH163 -> 10.69742259 | AM163: 44241.67907 | AP163: FALSE | AQ163: 52 | AR163: 68 | AS163: 68 | CI163: Exposure Period Trends (n/a for reference period) | DA163: Exposure Period Level (base value of 1 for reference period)
A164: TRUE | B164: 69 | C164: 6 | D164: 9 | E164: 14 | G164: 0 | H164: 0 | I164: 0 | J164: 0 | K164: 0 | L164: -1 | M164: -1 | N164: -1 | O164: -1 | P164: 1 | Q164: 1 | R164: 1 | S164: 1 | T164: 1 | U164: 1 | V164: 1 | W164: 1 | X164: 0 | Y164: 1.444444444 | Z164: 1.444444444 | AA164: 1.444444444 | AB164: 1.444444444 | AC164: 1.444444444 | AD164: 1.444444444 | AE164: 1.444444444 | AF164: 1.444444444 | AG164: 1.444444444 | AH164: 0 | AL164: =MMULT(ModelMatrix ThisRow,Parameters)+AH164 -> 9.946298744 | AM164: 20874.81619 | AP164: FALSE | AQ164: 52 | AR164: 69 | AS164: 69 | CI164: Period | CJ164: Dev | CK164: 1 | CL164: 2 | CM164: 3 | CN164: 4 | CO164: 5 | CP164: 6 | CQ164: 7 | CR164: 8 | CS164: 9 | CT164: 10 | CU164: 11 | CV164: 12 | CW164: 13 | CX164: 14 | CY164: 15 | DA164: Period | DB164: Dev | DC164: 1 | DD164: 2 | DE164: 3 | DF164: 4 | DG164: 5 | DH164: 6 | DI164: 7 | DJ164: 8 | DK164: 9 | DL164: 10 | DM164: 11 | DN164: 12 | DO164: 13 | DP164: 14 | DQ164: 15
A165: TRUE | B165: 70 | C165: 6 | D165: 10 | E165: 15 | G165: 0 | H165: 0 | I165: 0 | J165: 0 | K165: 0 | L165: -1 | M165: -1 | N165: -1 | O165: -1 | P165: 1 | Q165: 1 | R165: 1 | S165: 1 | T165: 1 | U165: 1 | V165: 1 | W165: 1 | X165: 1 | Y165: 1.555555556 | Z165: 1.555555556 | AA165: 1.555555556 | AB165: 1.555555556 | AC165: 1.555555556 | AD165: 1.555555556 | AE165: 1.555555556 | AF165: 1.555555556 | AG165: 1.555555556 | AH165: 0 | AL165: =MMULT(ModelMatrix ThisRow,Parameters)+AH165 -> 9.375051179 | AM165: 11790.52096 | AP165: FALSE | AQ165: 52 | AR165: 70 | AS165: 70 | CI165: Exp | DA165: Exp
A166: TRUE | B166: 71 | C166: 7 | D166: 5 | E166: 11 | G166: 0 | H166: 0 | I166: 0 | J166: 0 | K166: 0 | L166: 0 | M166: -1 | N166: -1 | O166: -1 | P166: 1 | Q166: 1 | R166: 1 | S166: 1 | T166: 0 | U166: 0 | V166: 0 | W166: 0 | X166: 0 | Y166: 1.111111111 | Z166: 1.111111111 | AA166: 1.111111111 | AB166: 1.111111111 | AC166: 1.111111111 | AD166: 1.111111111 | AE166: 1.111111111 | AF166: 1.111111111 | AG166: 1.111111111 | AH166: 0 | AL166: =MMULT(ModelMatrix ThisRow,Parameters)+AH166 -> 12.71756619 | AM166: 333556.0489 | AP166: FALSE | AQ166: 52 | AR166: 71 | AS166: 71 | CI166: 1 | CK166: =IFERROR(EXP(INDEX(Parameters,INDEX(MapRowsToExpPeriodPars,CI166))),"") -> 0.1866045856 | CL166: =IF(CK166<>"",CK166,"") -> 0.1866045856 | CM166: =IF(CL166<>"",CL166,"") -> 0.1866045856 | CN166: 0.1866045856 | CO166: 0.1866045856 | CP166: 0.1866045856 | CQ166: 0.1866045856 | CR166: 0.1866045856 | CS166: 0.1866045856 | CT166: 0.1866045856 | CU166: =IF(AND(CT166<>"",UseTailfactor="Yes"),CT166,"") -> 0.1866045856 | CV166: =IF(CU166<>"",CU166,"") -> 0.1866045856 | CW166: 0.1866045856 | CX166: 0.1866045856 | CY166: 0.1866045856 | DA166: 1 | DC166: =IF(DA166>RefExp,DC165*CK166,IF(DA166<RefExp,DC167/CK166,1)) -> 2823701 | DD166: =DC166 -> 2823701 | DE166: =DD166 -> 2823701 | DF166: 2823701 | DG166: 2823701 | DH166: 2823701 | DI166: 2823701 | DJ166: 2823701 | DK166: 2823701 | DL166: 2823701 | DM166: =IF(UseTailfactor="Yes",DL166,"") -> 2823701 | DN166: =IF(DM166<>"",DM166,"") -> 2823701 | DO166: 2823701 | DP166: 2823701 | DQ166: 2823701
A167: TRUE | B167: 72 | C167: 7 | D167: 6 | E167: 12 | G167: 0 | H167: 0 | I167: 0 | J167: 0 | K167: 0 | L167: 0 | M167: -1 | N167: -1 | O167: -1 | P167: 1 | Q167: 1 | R167: 1 | S167: 1 | T167: 1 | U167: 0 | V167: 0 | W167: 0 | X167: 0 | Y167: 1.222222222 | Z167: 1.222222222 | AA167: 1.222222222 | AB167: 1.222222222 | AC167: 1.222222222 | AD167: 1.222222222 | AE167: 1.222222222 | AF167: 1.222222222 | AG167: 1.222222222 | AH167: 0 | AL167: =MMULT(ModelMatrix ThisRow,Parameters)+AH167 -> 12.03520505 | AM167: 168586.6344 | AP167: FALSE | AQ167: 52 | AR167: 72 | AS167: 72 | CI167: 2 | CK167: 0.176027096 | CL167: =IF(CK167<>"",CK167,"") -> 0.176027096 | CM167: 0.176027096 | CN167: 0.176027096 | CO167: 0.176027096 | CP167: 0.176027096 | CQ167: 0.176027096 | CR167: 0.176027096 | CS167: 0.176027096 | CT167: 0.176027096 | CU167: 0.176027096 | CV167: =IF(CU167<>"",CU167,"") -> 0.176027096 | CW167: 0.176027096 | CX167: 0.176027096 | CY167: 0.176027096 | DA167: 2 | DC167: 526915.555 | DD167: =DC167 -> 526915.555 | DE167: 526915.555 | DF167: 526915.555 | DG167: 526915.555 | DH167: 526915.555 | DI167: 526915.555 | DJ167: 526915.555 | DK167: 526915.555 | DL167: 526915.555 | DM167: 526915.555 | DN167: =IF(DM167<>"",DM167,"") -> 526915.555 | DO167: 526915.555 | DP167: 526915.555 | DQ167: 526915.555
A168: TRUE | B168: 73 | C168: 7 | D168: 7 | E168: 13 | G168: 0 | H168: 0 | I168: 0 | J168: 0 | K168: 0 | L168: 0 | M168: -1 | N168: -1 | O168: -1 | P168: 1 | Q168: 1 | R168: 1 | S168: 1 | T168: 1 | U168: 1 | V168: 0 | W168: 0 | X168: 0 | Y168: 1.333333333 | Z168: 1.333333333 | AA168: 1.333333333 | AB168: 1.333333333 | AC168: 1.333333333 | AD168: 1.333333333 | AE168: 1.333333333 | AF168: 1.333333333 | AG168: 1.333333333 | AH168: 0 | AL168: =MMULT(ModelMatrix ThisRow,Parameters)+AH168 -> 11.38776112 | AM168: 88235.18838 | AP168: FALSE | AQ168: 52 | AR168: 73 | AS168: 73 | CI168: 3 | CK168: 0.1971295947 | CL168: =IF(CK168<>"",CK168,"") -> 0.1971295947 | CM168: 0.1971295947 | CN168: 0.1971295947 | CO168: 0.1971295947 | CP168: 0.1971295947 | CQ168: 0.1971295947 | CR168: 0.1971295947 | CS168: 0.1971295947 | CT168: 0.1971295947 | CU168: 0.1971295947 | CV168: =IF(CU168<>"",CU168,"") -> 0.1971295947 | CW168: 0.1971295947 | CX168: 0.1971295947 | CY168: 0.1971295947 | DA168: 3 | DC168: 92751.41498 | DD168: =DC168 -> 92751.41498 | DE168: 92751.41498 | DF168: 92751.41498 | DG168: 92751.41498 | DH168: 92751.41498 | DI168: 92751.41498 | DJ168: 92751.41498 | DK168: 92751.41498 | DL168: 92751.41498 | DM168: 92751.41498 | DN168: =IF(DM168<>"",DM168,"") -> 92751.41498 | DO168: 92751.41498 | DP168: 92751.41498 | DQ168: 92751.41498
A169: TRUE | B169: 74 | C169: 7 | D169: 8 | E169: 14 | G169: 0 | H169: 0 | I169: 0 | J169: 0 | K169: 0 | L169: 0 | M169: -1 | N169: -1 | O169: -1 | P169: 1 | Q169: 1 | R169: 1 | S169: 1 | T169: 1 | U169: 1 | V169: 1 | W169: 0 | X169: 0 | Y169: 1.444444444 | Z169: 1.444444444 | AA169: 1.444444444 | AB169: 1.444444444 | AC169: 1.444444444 | AD169: 1.444444444 | AE169: 1.444444444 | AF169: 1.444444444 | AG169: 1.444444444 | AH169: 0 | AL169: =MMULT(ModelMatrix ThisRow,Parameters)+AH169 -> 10.75134677 | AM169: 46692.8707 | AP169: FALSE | AQ169: 52 | AR169: 74 | AS169: 74 | CI169: 4 | CK169: 0.193667341 | CL169: =IF(CK169<>"",CK169,"") -> 0.193667341 | CM169: 0.193667341 | CN169: 0.193667341 | CO169: 0.193667341 | CP169: 0.193667341 | CQ169: 0.193667341 | CR169: 0.193667341 | CS169: 0.193667341 | CT169: 0.193667341 | CU169: 0.193667341 | CV169: =IF(CU169<>"",CU169,"") -> 0.193667341 | CW169: 0.193667341 | CX169: 0.193667341 | CY169: 0.193667341 | DA169: 4 | DC169: 18284.04884 | DD169: =DC169 -> 18284.04884 | DE169: 18284.04884 | DF169: 18284.04884 | DG169: 18284.04884 | DH169: 18284.04884 | DI169: 18284.04884 | DJ169: 18284.04884 | DK169: 18284.04884 | DL169: 18284.04884 | DM169: 18284.04884 | DN169: =IF(DM169<>"",DM169,"") -> 18284.04884 | DO169: 18284.04884 | DP169: 18284.04884 | DQ169: 18284.04884
A170: TRUE | B170: 75 | C170: 7 | D170: 9 | E170: 15 | G170: 0 | H170: 0 | I170: 0 | J170: 0 | K170: 0 | L170: 0 | M170: -1 | N170: -1 | O170: -1 | P170: 1 | Q170: 1 | R170: 1 | S170: 1 | T170: 1 | U170: 1 | V170: 1 | W170: 1 | X170: 0 | Y170: 1.555555556 | Z170: 1.555555556 | AA170: 1.555555556 | AB170: 1.555555556 | AC170: 1.555555556 | AD170: 1.555555556 | AE170: 1.555555556 | AF170: 1.555555556 | AG170: 1.555555556 | AH170: 0 | AL170: =MMULT(ModelMatrix ThisRow,Parameters)+AH170 -> 10.00022293 | AM170: 22031.3766 | AP170: FALSE | AQ170: 52 | AR170: 75 | AS170: 75 | CI170: 5 | CK170: 0.1996893716 | CL170: =IF(CK170<>"",CK170,"") -> 0.1996893716 | CM170: 0.1996893716 | CN170: 0.1996893716 | CO170: 0.1996893716 | CP170: 0.1996893716 | CQ170: 0.1996893716 | CR170: 0.1996893716 | CS170: 0.1996893716 | CT170: 0.1996893716 | CU170: 0.1996893716 | CV170: =IF(CU170<>"",CU170,"") -> 0.1996893716 | CW170: 0.1996893716 | CX170: 0.1996893716 | CY170: 0.1996893716 | DA170: 5 | DC170: 3541.023121 | DD170: =DC170 -> 3541.023121 | DE170: 3541.023121 | DF170: 3541.023121 | DG170: 3541.023121 | DH170: 3541.023121 | DI170: 3541.023121 | DJ170: 3541.023121 | DK170: 3541.023121 | DL170: 3541.023121 | DM170: 3541.023121 | DN170: =IF(DM170<>"",DM170,"") -> 3541.023121 | DO170: 3541.023121 | DP170: 3541.023121 | DQ170: 3541.023121
A171: TRUE | B171: 76 | C171: 7 | D171: 10 | E171: 16 | G171: 0 | H171: 0 | I171: 0 | J171: 0 | K171: 0 | L171: 0 | M171: -1 | N171: -1 | O171: -1 | P171: 1 | Q171: 1 | R171: 1 | S171: 1 | T171: 1 | U171: 1 | V171: 1 | W171: 1 | X171: 1 | Y171: 1.666666667 | Z171: 1.666666667 | AA171: 1.666666667 | AB171: 1.666666667 | AC171: 1.666666667 | AD171: 1.666666667 | AE171: 1.666666667 | AF171: 1.666666667 | AG171: 1.666666667 | AH171: 0 | AL171: =MMULT(ModelMatrix ThisRow,Parameters)+AH171 -> 9.42897536 | AM171: 12443.76981 | AP171: FALSE | AQ171: 52 | AR171: 76 | AS171: 76 | CI171: 6 | CK171: 0.1938246822 | CL171: =IF(CK171<>"",CK171,"") -> 0.1938246822 | CM171: 0.1938246822 | CN171: 0.1938246822 | CO171: 0.1938246822 | CP171: 0.1938246822 | CQ171: 0.1938246822 | CR171: 0.1938246822 | CS171: 0.1938246822 | CT171: 0.1938246822 | CU171: 0.1938246822 | CV171: =IF(CU171<>"",CU171,"") -> 0.1938246822 | CW171: 0.1938246822 | CX171: 0.1938246822 | CY171: 0.1938246822 | DA171: 6 | DC171: 707.1046821 | DD171: =DC171 -> 707.1046821 | DE171: 707.1046821 | DF171: 707.1046821 | DG171: 707.1046821 | DH171: 707.1046821 | DI171: 707.1046821 | DJ171: 707.1046821 | DK171: 707.1046821 | DL171: 707.1046821 | DM171: 707.1046821 | DN171: =IF(DM171<>"",DM171,"") -> 707.1046821 | DO171: 707.1046821 | DP171: 707.1046821 | DQ171: 707.1046821
A172: TRUE | B172: 77 | C172: 8 | D172: 4 | E172: 11 | G172: 0 | H172: 0 | I172: 0 | J172: 0 | K172: 0 | L172: 0 | M172: 0 | N172: -1 | O172: -1 | P172: 1 | Q172: 1 | R172: 1 | S172: 0 | T172: 0 | U172: 0 | V172: 0 | W172: 0 | X172: 0 | Y172: 1.111111111 | Z172: 1.111111111 | AA172: 1.111111111 | AB172: 1.111111111 | AC172: 1.111111111 | AD172: 1.111111111 | AE172: 1.111111111 | AF172: 1.111111111 | AG172: 1.111111111 | AH172: 0 | AL172: =MMULT(ModelMatrix ThisRow,Parameters)+AH172 -> 13.41223358 | AM172: 668127.0145 | AP172: FALSE | AQ172: 52 | AR172: 77 | AS172: 77 | CI172: 7 | CK172: 0.1909964198 | CL172: =IF(CK172<>"",CK172,"") -> 0.1909964198 | CM172: 0.1909964198 | CN172: 0.1909964198 | CO172: 0.1909964198 | CP172: 0.1909964198 | CQ172: 0.1909964198 | CR172: 0.1909964198 | CS172: 0.1909964198 | CT172: 0.1909964198 | CU172: 0.1909964198 | CV172: =IF(CU172<>"",CU172,"") -> 0.1909964198 | CW172: 0.1909964198 | CX172: 0.1909964198 | CY172: 0.1909964198 | DA172: 7 | DC172: 137.0543403 | DD172: =DC172 -> 137.0543403 | DE172: 137.0543403 | DF172: 137.0543403 | DG172: 137.0543403 | DH172: 137.0543403 | DI172: 137.0543403 | DJ172: 137.0543403 | DK172: 137.0543403 | DL172: 137.0543403 | DM172: 137.0543403 | DN172: =IF(DM172<>"",DM172,"") -> 137.0543403 | DO172: 137.0543403 | DP172: 137.0543403 | DQ172: 137.0543403
A173: TRUE | B173: 78 | C173: 8 | D173: 5 | E173: 12 | G173: 0 | H173: 0 | I173: 0 | J173: 0 | K173: 0 | L173: 0 | M173: 0 | N173: -1 | O173: -1 | P173: 1 | Q173: 1 | R173: 1 | S173: 1 | T173: 0 | U173: 0 | V173: 0 | W173: 0 | X173: 0 | Y173: 1.222222222 | Z173: 1.222222222 | AA173: 1.222222222 | AB173: 1.222222222 | AC173: 1.222222222 | AD173: 1.222222222 | AE173: 1.222222222 | AF173: 1.222222222 | AG173: 1.222222222 | AH173: 0 | AL173: =MMULT(ModelMatrix ThisRow,Parameters)+AH173 -> 12.75679101 | AM173: 346899.7134 | AP173: FALSE | AQ173: 52 | AR173: 78 | AS173: 78 | CI173: 8 | CK173: 0.1904943842 | CL173: =IF(CK173<>"",CK173,"") -> 0.1904943842 | CM173: 0.1904943842 | CN173: 0.1904943842 | CO173: 0.1904943842 | CP173: 0.1904943842 | CQ173: 0.1904943842 | CR173: 0.1904943842 | CS173: 0.1904943842 | CT173: 0.1904943842 | CU173: 0.1904943842 | CV173: =IF(CU173<>"",CU173,"") -> 0.1904943842 | CW173: 0.1904943842 | CX173: 0.1904943842 | CY173: 0.1904943842 | DA173: 8 | DC173: 26.1768883 | DD173: =DC173 -> 26.1768883 | DE173: 26.1768883 | DF173: 26.1768883 | DG173: 26.1768883 | DH173: 26.1768883 | DI173: 26.1768883 | DJ173: 26.1768883 | DK173: 26.1768883 | DL173: 26.1768883 | DM173: 26.1768883 | DN173: =IF(DM173<>"",DM173,"") -> 26.1768883 | DO173: 26.1768883 | DP173: 26.1768883 | DQ173: 26.1768883
A174: TRUE | B174: 79 | C174: 8 | D174: 6 | E174: 13 | G174: 0 | H174: 0 | I174: 0 | J174: 0 | K174: 0 | L174: 0 | M174: 0 | N174: -1 | O174: -1 | P174: 1 | Q174: 1 | R174: 1 | S174: 1 | T174: 1 | U174: 0 | V174: 0 | W174: 0 | X174: 0 | Y174: 1.333333333 | Z174: 1.333333333 | AA174: 1.333333333 | AB174: 1.333333333 | AC174: 1.333333333 | AD174: 1.333333333 | AE174: 1.333333333 | AF174: 1.333333333 | AG174: 1.333333333 | AH174: 0 | AL174: =MMULT(ModelMatrix ThisRow,Parameters)+AH174 -> 12.07442986 | AM174: 175330.8188 | AP174: FALSE | AQ174: 52 | AR174: 79 | AS174: 79 | CI174: 9 | CK174: 0.2005394424 | CL174: =IF(CK174<>"",CK174,"") -> 0.2005394424 | CM174: 0.2005394424 | CN174: 0.2005394424 | CO174: 0.2005394424 | CP174: 0.2005394424 | CQ174: 0.2005394424 | CR174: 0.2005394424 | CS174: 0.2005394424 | CT174: 0.2005394424 | CU174: 0.2005394424 | CV174: =IF(CU174<>"",CU174,"") -> 0.2005394424 | CW174: 0.2005394424 | CX174: 0.2005394424 | CY174: 0.2005394424 | DA174: 9 | DC174: 4.986550218 | DD174: =DC174 -> 4.986550218 | DE174: 4.986550218 | DF174: 4.986550218 | DG174: 4.986550218 | DH174: 4.986550218 | DI174: 4.986550218 | DJ174: 4.986550218 | DK174: 4.986550218 | DL174: 4.986550218 | DM174: 4.986550218 | DN174: =IF(DM174<>"",DM174,"") -> 4.986550218 | DO174: 4.986550218 | DP174: 4.986550218 | DQ174: 4.986550218
A175: TRUE | B175: 80 | C175: 8 | D175: 7 | E175: 14 | G175: 0 | H175: 0 | I175: 0 | J175: 0 | K175: 0 | L175: 0 | M175: 0 | N175: -1 | O175: -1 | P175: 1 | Q175: 1 | R175: 1 | S175: 1 | T175: 1 | U175: 1 | V175: 0 | W175: 0 | X175: 0 | Y175: 1.444444444 | Z175: 1.444444444 | AA175: 1.444444444 | AB175: 1.444444444 | AC175: 1.444444444 | AD175: 1.444444444 | AE175: 1.444444444 | AF175: 1.444444444 | AG175: 1.444444444 | AH175: 0 | AL175: =MMULT(ModelMatrix ThisRow,Parameters)+AH175 -> 11.42698594 | AM175: 91764.97224 | AP175: FALSE | AQ175: 52 | AR175: 80 | AS175: 80 | CI175: 10 | CL175: =IF(CK175<>"",CK175,"") ->  | CV175: =IF(CU175<>"",CU175,"") ->  | DA175: 10 | DC175: 1 | DD175: =DC175 -> 1 | DE175: 1 | DF175: 1 | DG175: 1 | DH175: 1 | DI175: 1 | DJ175: 1 | DK175: 1 | DL175: 1 | DM175: 1 | DN175: =IF(DM175<>"",DM175,"") -> 1 | DO175: 1 | DP175: 1 | DQ175: 1
A176: TRUE | B176: 81 | C176: 8 | D176: 8 | E176: 15 | G176: 0 | H176: 0 | I176: 0 | J176: 0 | K176: 0 | L176: 0 | M176: 0 | N176: -1 | O176: -1 | P176: 1 | Q176: 1 | R176: 1 | S176: 1 | T176: 1 | U176: 1 | V176: 1 | W176: 0 | X176: 0 | Y176: 1.555555556 | Z176: 1.555555556 | AA176: 1.555555556 | AB176: 1.555555556 | AC176: 1.555555556 | AD176: 1.555555556 | AE176: 1.555555556 | AF176: 1.555555556 | AG176: 1.555555556 | AH176: 0 | AL176: =MMULT(ModelMatrix ThisRow,Parameters)+AH176 -> 10.79057158 | AM176: 48560.78467 | AP176: FALSE | AQ176: 52 | AR176: 81 | AS176: 81
A177: TRUE | B177: 82 | C177: 8 | D177: 9 | E177: 16 | G177: 0 | H177: 0 | I177: 0 | J177: 0 | K177: 0 | L177: 0 | M177: 0 | N177: -1 | O177: -1 | P177: 1 | Q177: 1 | R177: 1 | S177: 1 | T177: 1 | U177: 1 | V177: 1 | W177: 1 | X177: 0 | Y177: 1.666666667 | Z177: 1.666666667 | AA177: 1.666666667 | AB177: 1.666666667 | AC177: 1.666666667 | AD177: 1.666666667 | AE177: 1.666666667 | AF177: 1.666666667 | AG177: 1.666666667 | AH177: 0 | AL177: =MMULT(ModelMatrix ThisRow,Parameters)+AH177 -> 10.03944774 | AM177: 22912.72563 | AP177: FALSE | AQ177: 52 | AR177: 82 | AS177: 82
A178: TRUE | B178: 83 | C178: 8 | D178: 10 | E178: 17 | G178: 0 | H178: 0 | I178: 0 | J178: 0 | K178: 0 | L178: 0 | M178: 0 | N178: -1 | O178: -1 | P178: 1 | Q178: 1 | R178: 1 | S178: 1 | T178: 1 | U178: 1 | V178: 1 | W178: 1 | X178: 1 | Y178: 1.777777778 | Z178: 1.777777778 | AA178: 1.777777778 | AB178: 1.777777778 | AC178: 1.777777778 | AD178: 1.777777778 | AE178: 1.777777778 | AF178: 1.777777778 | AG178: 1.777777778 | AH178: 0 | AL178: =MMULT(ModelMatrix ThisRow,Parameters)+AH178 -> 9.468200174 | AM178: 12941.57368 | AP178: FALSE | AQ178: 52 | AR178: 83 | AS178: 83 | CI178: Development Period Trends (n/a for reference period) | DA178: Development Period Level (base value of 1 for reference period)
A179: TRUE | B179: 84 | C179: 9 | D179: 3 | E179: 11 | G179: 0 | H179: 0 | I179: 0 | J179: 0 | K179: 0 | L179: 0 | M179: 0 | N179: 0 | O179: -1 | P179: 1 | Q179: 1 | R179: 0 | S179: 0 | T179: 0 | U179: 0 | V179: 0 | W179: 0 | X179: 0 | Y179: 1.111111111 | Z179: 1.111111111 | AA179: 1.111111111 | AB179: 1.111111111 | AC179: 1.111111111 | AD179: 1.111111111 | AE179: 1.111111111 | AF179: 1.111111111 | AG179: 1.111111111 | AH179: 0 | AL179: =MMULT(ModelMatrix ThisRow,Parameters)+AH179 -> 14.08672678 | AM179: 1311558.627 | AP179: FALSE | AQ179: 52 | AR179: 84 | AS179: 84 | CI179: Period | CJ179: Dev | CK179: 1 | CL179: 2 | CM179: 3 | CN179: 4 | CO179: 5 | CP179: 6 | CQ179: 7 | CR179: 8 | CS179: 9 | CT179: 10 | CU179: 11 | CV179: 12 | CW179: 13 | CX179: 14 | CY179: 15 | DA179: Period | DB179: Dev | DC179: 1 | DD179: 2 | DE179: 3 | DF179: 4 | DG179: 5 | DH179: 6 | DI179: 7 | DJ179: 8 | DK179: 9 | DL179: 10 | DM179: 11 | DN179: 12 | DO179: 13 | DP179: 14 | DQ179: 15
A180: TRUE | B180: 85 | C180: 9 | D180: 4 | E180: 12 | G180: 0 | H180: 0 | I180: 0 | J180: 0 | K180: 0 | L180: 0 | M180: 0 | N180: 0 | O180: -1 | P180: 1 | Q180: 1 | R180: 1 | S180: 0 | T180: 0 | U180: 0 | V180: 0 | W180: 0 | X180: 0 | Y180: 1.222222222 | Z180: 1.222222222 | AA180: 1.222222222 | AB180: 1.222222222 | AC180: 1.222222222 | AD180: 1.222222222 | AE180: 1.222222222 | AF180: 1.222222222 | AG180: 1.222222222 | AH180: 0 | AL180: =MMULT(ModelMatrix ThisRow,Parameters)+AH180 -> 13.44882642 | AM180: 693028.5131 | AP180: FALSE | AQ180: 52 | AR180: 85 | AS180: 85 | CI180: Exp | DA180: Exp
A181: TRUE | B181: 86 | C181: 9 | D181: 5 | E181: 13 | G181: 0 | H181: 0 | I181: 0 | J181: 0 | K181: 0 | L181: 0 | M181: 0 | N181: 0 | O181: -1 | P181: 1 | Q181: 1 | R181: 1 | S181: 1 | T181: 0 | U181: 0 | V181: 0 | W181: 0 | X181: 0 | Y181: 1.333333333 | Z181: 1.333333333 | AA181: 1.333333333 | AB181: 1.333333333 | AC181: 1.333333333 | AD181: 1.333333333 | AE181: 1.333333333 | AF181: 1.333333333 | AG181: 1.333333333 | AH181: 0 | AL181: =MMULT(ModelMatrix ThisRow,Parameters)+AH181 -> 12.79338385 | AM181: 359828.8759 | AP181: FALSE | AQ181: 52 | AR181: 86 | AS181: 86 | CI181: 1 | CK181: =IF(CK179<>RefDev,EXP(INDEX(Parameters,NumExpPars+INDEX(MapColsToDevPeriodPars,CK179))),"") ->  | CL181: 0.1415738074 | CM181: 0.08107849173 | CN181: 0.09704060621 | CO181: 0.09535314355 | CP181: 0.09282061169 | CQ181: 0.09611889793 | CR181: 0.09718491615 | CS181: 0.08665251358 | CT181: 0.1037290596 | CU181: =IF(UseTailfactor="Yes",EXP(INDEX($G$74:$G$78,CU179-10)),"") -> 0.1037321092 | CV181: =IF(UseTailfactor="Yes",EXP(INDEX($G$74:$G$78,CV179-10)),"") -> 0.1037321092 | CW181: =IF(UseTailfactor="Yes",EXP(INDEX($G$74:$G$78,CW179-10)),"") -> 0.1037321092 | CX181: =IF(UseTailfactor="Yes",EXP(INDEX($G$74:$G$78,CX179-10)),"") -> 0.1037321092 | CY181: =IF(UseTailfactor="Yes",EXP(INDEX($G$74:$G$78,CY179-10)),"") -> 0.1037321092 | DA181: 1 | DC181: =IF(DC179>RefDev,DB181*CK181,IF(DC179<RefDev,DD181/CK181,1)) -> 1 | DD181: 0.1415738074 | DE181: 0.01147859077 | DF181: 0.001113889407 | DG181: 0.0001062128565 | DH181: 9.858742308e-06 | DI181: 9.476114457e-07 | DJ181: 9.209353889e-08 | DK181: 7.980136629e-09 | DL181: 8.277720683e-10 | DM181: =IF(UseTailfactor="Yes",DL181*CU181,"") -> 8.586654256e-11 | DN181: =IF(UseTailfactor="Yes",DM181*CV181,"") -> 8.907117568e-12 | DO181: =IF(UseTailfactor="Yes",DN181*CW181,"") -> 9.23954092e-13 | DP181: =IF(UseTailfactor="Yes",DO181*CX181,"") -> 9.584370675e-14 | DQ181: =IF(UseTailfactor="Yes",DP181*CY181,"") -> 9.942069853e-15
A182: TRUE | B182: 87 | C182: 9 | D182: 6 | E182: 14 | G182: 0 | H182: 0 | I182: 0 | J182: 0 | K182: 0 | L182: 0 | M182: 0 | N182: 0 | O182: -1 | P182: 1 | Q182: 1 | R182: 1 | S182: 1 | T182: 1 | U182: 0 | V182: 0 | W182: 0 | X182: 0 | Y182: 1.444444444 | Z182: 1.444444444 | AA182: 1.444444444 | AB182: 1.444444444 | AC182: 1.444444444 | AD182: 1.444444444 | AE182: 1.444444444 | AF182: 1.444444444 | AG182: 1.444444444 | AH182: 0 | AL182: =MMULT(ModelMatrix ThisRow,Parameters)+AH182 -> 12.11102271 | AM182: 181865.5046 | AP182: FALSE | AQ182: 52 | AR182: 87 | AS182: 87 | CI182: 2 | CK182: =IF(CK181<>"",CK181,"") ->  | CL182: =IF(CL181<>"",CL181,"") -> 0.1415738074 | CM182: =IF(CM181<>"",CM181,"") -> 0.08107849173 | CN182: =IF(CN181<>"",CN181,"") -> 0.09704060621 | CO182: =IF(CO181<>"",CO181,"") -> 0.09535314355 | CP182: =IF(CP181<>"",CP181,"") -> 0.09282061169 | CQ182: =IF(CQ181<>"",CQ181,"") -> 0.09611889793 | CR182: =IF(CR181<>"",CR181,"") -> 0.09718491615 | CS182: =IF(CS181<>"",CS181,"") -> 0.08665251358 | CT182: =IF(CT181<>"",CT181,"") -> 0.1037290596 | CU182: =IF(CU181<>"",CU181,"") -> 0.1037321092 | CV182: =IF(CV181<>"",CV181,"") -> 0.1037321092 | CW182: =IF(CW181<>"",CW181,"") -> 0.1037321092 | CX182: =IF(CX181<>"",CX181,"") -> 0.1037321092 | CY182: =IF(CY181<>"",CY181,"") -> 0.1037321092 | DA182: 2 | DC182: =DC181 -> 1 | DD182: =DD181 -> 0.1415738074 | DE182: =DE181 -> 0.01147859077 | DF182: =DF181 -> 0.001113889407 | DG182: =DG181 -> 0.0001062128565 | DH182: =DH181 -> 9.858742308e-06 | DI182: =DI181 -> 9.476114457e-07 | DJ182: =DJ181 -> 9.209353889e-08 | DK182: =DK181 -> 7.980136629e-09 | DL182: =DL181 -> 8.277720683e-10 | DM182: =DM181 -> 8.586654256e-11 | DN182: =DN181 -> 8.907117568e-12 | DO182: =DO181 -> 9.23954092e-13 | DP182: =DP181 -> 9.584370675e-14 | DQ182: =DQ181 -> 9.942069853e-15
A183: TRUE | B183: 88 | C183: 9 | D183: 7 | E183: 15 | G183: 0 | H183: 0 | I183: 0 | J183: 0 | K183: 0 | L183: 0 | M183: 0 | N183: 0 | O183: -1 | P183: 1 | Q183: 1 | R183: 1 | S183: 1 | T183: 1 | U183: 1 | V183: 0 | W183: 0 | X183: 0 | Y183: 1.555555556 | Z183: 1.555555556 | AA183: 1.555555556 | AB183: 1.555555556 | AC183: 1.555555556 | AD183: 1.555555556 | AE183: 1.555555556 | AF183: 1.555555556 | AG183: 1.555555556 | AH183: 0 | AL183: =MMULT(ModelMatrix ThisRow,Parameters)+AH183 -> 11.46357878 | AM183: 95185.10834 | AP183: FALSE | AQ183: 52 | AR183: 88 | AS183: 88 | CI183: 3 | CL183: =IF(CL182<>"",CL182,"") -> 0.1415738074 | CM183: 0.08107849173 | CN183: 0.09704060621 | CO183: 0.09535314355 | CP183: 0.09282061169 | CQ183: 0.09611889793 | CR183: 0.09718491615 | CS183: 0.08665251358 | CT183: 0.1037290596 | CU183: 0.1037321092 | CV183: 0.1037321092 | CW183: 0.1037321092 | CX183: 0.1037321092 | CY183: 0.1037321092 | DA183: 3 | DC183: =DC182 -> 1 | DD183: 0.1415738074 | DE183: 0.01147859077 | DF183: 0.001113889407 | DG183: 0.0001062128565 | DH183: 9.858742308e-06 | DI183: 9.476114457e-07 | DJ183: 9.209353889e-08 | DK183: 7.980136629e-09 | DL183: 8.277720683e-10 | DM183: 8.586654256e-11 | DN183: 8.907117568e-12 | DO183: 9.23954092e-13 | DP183: 9.584370675e-14 | DQ183: 9.942069853e-15
A184: TRUE | B184: 89 | C184: 9 | D184: 8 | E184: 16 | G184: 0 | H184: 0 | I184: 0 | J184: 0 | K184: 0 | L184: 0 | M184: 0 | N184: 0 | O184: -1 | P184: 1 | Q184: 1 | R184: 1 | S184: 1 | T184: 1 | U184: 1 | V184: 1 | W184: 0 | X184: 0 | Y184: 1.666666667 | Z184: 1.666666667 | AA184: 1.666666667 | AB184: 1.666666667 | AC184: 1.666666667 | AD184: 1.666666667 | AE184: 1.666666667 | AF184: 1.666666667 | AG184: 1.666666667 | AH184: 0 | AL184: =MMULT(ModelMatrix ThisRow,Parameters)+AH184 -> 10.82716443 | AM184: 50370.67453 | AP184: FALSE | AQ184: 52 | AR184: 89 | AS184: 89 | CI184: 4 | CL184: 0.1415738074 | CM184: 0.08107849173 | CN184: 0.09704060621 | CO184: 0.09535314355 | CP184: 0.09282061169 | CQ184: 0.09611889793 | CR184: 0.09718491615 | CS184: 0.08665251358 | CT184: 0.1037290596 | CU184: 0.1037321092 | CV184: 0.1037321092 | CW184: 0.1037321092 | CX184: 0.1037321092 | CY184: 0.1037321092 | DA184: 4 | DC184: 1 | DD184: 0.1415738074 | DE184: 0.01147859077 | DF184: 0.001113889407 | DG184: 0.0001062128565 | DH184: 9.858742308e-06 | DI184: 9.476114457e-07 | DJ184: 9.209353889e-08 | DK184: 7.980136629e-09 | DL184: 8.277720683e-10 | DM184: 8.586654256e-11 | DN184: 8.907117568e-12 | DO184: 9.23954092e-13 | DP184: 9.584370675e-14 | DQ184: 9.942069853e-15
A185: TRUE | B185: 90 | C185: 9 | D185: 9 | E185: 17 | G185: 0 | H185: 0 | I185: 0 | J185: 0 | K185: 0 | L185: 0 | M185: 0 | N185: 0 | O185: -1 | P185: 1 | Q185: 1 | R185: 1 | S185: 1 | T185: 1 | U185: 1 | V185: 1 | W185: 1 | X185: 0 | Y185: 1.777777778 | Z185: 1.777777778 | AA185: 1.777777778 | AB185: 1.777777778 | AC185: 1.777777778 | AD185: 1.777777778 | AE185: 1.777777778 | AF185: 1.777777778 | AG185: 1.777777778 | AH185: 0 | AL185: =MMULT(ModelMatrix ThisRow,Parameters)+AH185 -> 10.07604059 | AM185: 23766.69679 | AP185: FALSE | AQ185: 52 | AR185: 90 | AS185: 90 | CI185: 5 | CL185: 0.1415738074 | CM185: 0.08107849173 | CN185: 0.09704060621 | CO185: 0.09535314355 | CP185: 0.09282061169 | CQ185: 0.09611889793 | CR185: 0.09718491615 | CS185: 0.08665251358 | CT185: 0.1037290596 | CU185: 0.1037321092 | CV185: 0.1037321092 | CW185: 0.1037321092 | CX185: 0.1037321092 | CY185: 0.1037321092 | DA185: 5 | DC185: 1 | DD185: 0.1415738074 | DE185: 0.01147859077 | DF185: 0.001113889407 | DG185: 0.0001062128565 | DH185: 9.858742308e-06 | DI185: 9.476114457e-07 | DJ185: 9.209353889e-08 | DK185: 7.980136629e-09 | DL185: 8.277720683e-10 | DM185: 8.586654256e-11 | DN185: 8.907117568e-12 | DO185: 9.23954092e-13 | DP185: 9.584370675e-14 | DQ185: 9.942069853e-15
A186: TRUE | B186: 91 | C186: 9 | D186: 10 | E186: 18 | G186: 0 | H186: 0 | I186: 0 | J186: 0 | K186: 0 | L186: 0 | M186: 0 | N186: 0 | O186: -1 | P186: 1 | Q186: 1 | R186: 1 | S186: 1 | T186: 1 | U186: 1 | V186: 1 | W186: 1 | X186: 1 | Y186: 1.888888889 | Z186: 1.888888889 | AA186: 1.888888889 | AB186: 1.888888889 | AC186: 1.888888889 | AD186: 1.888888889 | AE186: 1.888888889 | AF186: 1.888888889 | AG186: 1.888888889 | AH186: 0 | AL186: =MMULT(ModelMatrix ThisRow,Parameters)+AH186 -> 9.50479302 | AM186: 13423.91397 | AP186: FALSE | AQ186: 52 | AR186: 91 | AS186: 91 | CI186: 6 | CL186: 0.1415738074 | CM186: 0.08107849173 | CN186: 0.09704060621 | CO186: 0.09535314355 | CP186: 0.09282061169 | CQ186: 0.09611889793 | CR186: 0.09718491615 | CS186: 0.08665251358 | CT186: 0.1037290596 | CU186: 0.1037321092 | CV186: 0.1037321092 | CW186: 0.1037321092 | CX186: 0.1037321092 | CY186: 0.1037321092 | DA186: 6 | DC186: 1 | DD186: 0.1415738074 | DE186: 0.01147859077 | DF186: 0.001113889407 | DG186: 0.0001062128565 | DH186: 9.858742308e-06 | DI186: 9.476114457e-07 | DJ186: 9.209353889e-08 | DK186: 7.980136629e-09 | DL186: 8.277720683e-10 | DM186: 8.586654256e-11 | DN186: 8.907117568e-12 | DO186: 9.23954092e-13 | DP186: 9.584370675e-14 | DQ186: 9.942069853e-15
A187: TRUE | B187: 92 | C187: 10 | D187: 2 | E187: 11 | G187: 0 | H187: 0 | I187: 0 | J187: 0 | K187: 0 | L187: 0 | M187: 0 | N187: 0 | O187: 0 | P187: 1 | Q187: 0 | R187: 0 | S187: 0 | T187: 0 | U187: 0 | V187: 0 | W187: 0 | X187: 0 | Y187: 1.111111111 | Z187: 1.111111111 | AA187: 1.111111111 | AB187: 1.111111111 | AC187: 1.111111111 | AD187: 1.111111111 | AE187: 1.111111111 | AF187: 1.111111111 | AG187: 1.111111111 | AH187: 0 | AL187: =MMULT(ModelMatrix ThisRow,Parameters)+AH187 -> 14.99232001 | AM187: 3244007.504 | AP187: FALSE | AQ187: 52 | AR187: 92 | AS187: 92 | CI187: 7 | CL187: 0.1415738074 | CM187: 0.08107849173 | CN187: 0.09704060621 | CO187: 0.09535314355 | CP187: 0.09282061169 | CQ187: 0.09611889793 | CR187: 0.09718491615 | CS187: 0.08665251358 | CT187: 0.1037290596 | CU187: 0.1037321092 | CV187: 0.1037321092 | CW187: 0.1037321092 | CX187: 0.1037321092 | CY187: 0.1037321092 | DA187: 7 | DC187: 1 | DD187: 0.1415738074 | DE187: 0.01147859077 | DF187: 0.001113889407 | DG187: 0.0001062128565 | DH187: 9.858742308e-06 | DI187: 9.476114457e-07 | DJ187: 9.209353889e-08 | DK187: 7.980136629e-09 | DL187: 8.277720683e-10 | DM187: 8.586654256e-11 | DN187: 8.907117568e-12 | DO187: 9.23954092e-13 | DP187: 9.584370675e-14 | DQ187: 9.942069853e-15
A188: TRUE | B188: 93 | C188: 10 | D188: 3 | E188: 12 | G188: 0 | H188: 0 | I188: 0 | J188: 0 | K188: 0 | L188: 0 | M188: 0 | N188: 0 | O188: 0 | P188: 1 | Q188: 1 | R188: 0 | S188: 0 | T188: 0 | U188: 0 | V188: 0 | W188: 0 | X188: 0 | Y188: 1.222222222 | Z188: 1.222222222 | AA188: 1.222222222 | AB188: 1.222222222 | AC188: 1.222222222 | AD188: 1.222222222 | AE188: 1.222222222 | AF188: 1.222222222 | AG188: 1.222222222 | AH188: 0 | AL188: =MMULT(ModelMatrix ThisRow,Parameters)+AH188 -> 14.17470786 | AM188: 1432179.342 | AP188: FALSE | AQ188: 52 | AR188: 93 | AS188: 93 | CI188: 8 | CL188: 0.1415738074 | CM188: 0.08107849173 | CN188: 0.09704060621 | CO188: 0.09535314355 | CP188: 0.09282061169 | CQ188: 0.09611889793 | CR188: 0.09718491615 | CS188: 0.08665251358 | CT188: 0.1037290596 | CU188: 0.1037321092 | CV188: 0.1037321092 | CW188: 0.1037321092 | CX188: 0.1037321092 | CY188: 0.1037321092 | DA188: 8 | DC188: 1 | DD188: 0.1415738074 | DE188: 0.01147859077 | DF188: 0.001113889407 | DG188: 0.0001062128565 | DH188: 9.858742308e-06 | DI188: 9.476114457e-07 | DJ188: 9.209353889e-08 | DK188: 7.980136629e-09 | DL188: 8.277720683e-10 | DM188: 8.586654256e-11 | DN188: 8.907117568e-12 | DO188: 9.23954092e-13 | DP188: 9.584370675e-14 | DQ188: 9.942069853e-15
A189: TRUE | B189: 94 | C189: 10 | D189: 4 | E189: 13 | G189: 0 | H189: 0 | I189: 0 | J189: 0 | K189: 0 | L189: 0 | M189: 0 | N189: 0 | O189: 0 | P189: 1 | Q189: 1 | R189: 1 | S189: 0 | T189: 0 | U189: 0 | V189: 0 | W189: 0 | X189: 0 | Y189: 1.333333333 | Z189: 1.333333333 | AA189: 1.333333333 | AB189: 1.333333333 | AC189: 1.333333333 | AD189: 1.333333333 | AE189: 1.333333333 | AF189: 1.333333333 | AG189: 1.333333333 | AH189: 0 | AL189: =MMULT(ModelMatrix ThisRow,Parameters)+AH189 -> 13.5368075 | AM189: 756764.5851 | AP189: FALSE | AQ189: 52 | AR189: 94 | AS189: 94 | CI189: 9 | CL189: 0.1415738074 | CM189: 0.08107849173 | CN189: 0.09704060621 | CO189: 0.09535314355 | CP189: 0.09282061169 | CQ189: 0.09611889793 | CR189: 0.09718491615 | CS189: 0.08665251358 | CT189: 0.1037290596 | CU189: 0.1037321092 | CV189: 0.1037321092 | CW189: 0.1037321092 | CX189: 0.1037321092 | CY189: 0.1037321092 | DA189: 9 | DC189: 1 | DD189: 0.1415738074 | DE189: 0.01147859077 | DF189: 0.001113889407 | DG189: 0.0001062128565 | DH189: 9.858742308e-06 | DI189: 9.476114457e-07 | DJ189: 9.209353889e-08 | DK189: 7.980136629e-09 | DL189: 8.277720683e-10 | DM189: 8.586654256e-11 | DN189: 8.907117568e-12 | DO189: 9.23954092e-13 | DP189: 9.584370675e-14 | DQ189: 9.942069853e-15
A190: TRUE | B190: 95 | C190: 10 | D190: 5 | E190: 14 | G190: 0 | H190: 0 | I190: 0 | J190: 0 | K190: 0 | L190: 0 | M190: 0 | N190: 0 | O190: 0 | P190: 1 | Q190: 1 | R190: 1 | S190: 1 | T190: 0 | U190: 0 | V190: 0 | W190: 0 | X190: 0 | Y190: 1.444444444 | Z190: 1.444444444 | AA190: 1.444444444 | AB190: 1.444444444 | AC190: 1.444444444 | AD190: 1.444444444 | AE190: 1.444444444 | AF190: 1.444444444 | AG190: 1.444444444 | AH190: 0 | AL190: =MMULT(ModelMatrix ThisRow,Parameters)+AH190 -> 12.88136493 | AM190: 392921.4236 | AP190: FALSE | AQ190: 52 | AR190: 95 | AS190: 95 | CI190: 10 | CL190: 0.1415738074 | CM190: 0.08107849173 | CN190: 0.09704060621 | CO190: 0.09535314355 | CP190: 0.09282061169 | CQ190: 0.09611889793 | CR190: 0.09718491615 | CS190: 0.08665251358 | CT190: 0.1037290596 | CU190: 0.1037321092 | CV190: 0.1037321092 | CW190: 0.1037321092 | CX190: 0.1037321092 | CY190: 0.1037321092 | DA190: 10 | DC190: 1 | DD190: 0.1415738074 | DE190: 0.01147859077 | DF190: 0.001113889407 | DG190: 0.0001062128565 | DH190: 9.858742308e-06 | DI190: 9.476114457e-07 | DJ190: 9.209353889e-08 | DK190: 7.980136629e-09 | DL190: 8.277720683e-10 | DM190: 8.586654256e-11 | DN190: 8.907117568e-12 | DO190: 9.23954092e-13 | DP190: 9.584370675e-14 | DQ190: 9.942069853e-15
A191: TRUE | B191: 96 | C191: 10 | D191: 6 | E191: 15 | G191: 0 | H191: 0 | I191: 0 | J191: 0 | K191: 0 | L191: 0 | M191: 0 | N191: 0 | O191: 0 | P191: 1 | Q191: 1 | R191: 1 | S191: 1 | T191: 1 | U191: 0 | V191: 0 | W191: 0 | X191: 0 | Y191: 1.555555556 | Z191: 1.555555556 | AA191: 1.555555556 | AB191: 1.555555556 | AC191: 1.555555556 | AD191: 1.555555556 | AE191: 1.555555556 | AF191: 1.555555556 | AG191: 1.555555556 | AH191: 0 | AL191: =MMULT(ModelMatrix ThisRow,Parameters)+AH191 -> 12.19900379 | AM191: 198591.2132 | AP191: FALSE | AQ191: 52 | AR191: 96 | AS191: 96
A192: =B192>$BL$34 -> TRUE | B192: 97 | C192: =MATCH(B192-1,IF(A192,GetRow_Extrapolated,GetRow_Included),1) -> 10 | D192: =MATCH(B192-1,OFFSET(IF(A192,GetCol_Extrapolated,GetCol_Included),C192,0),1) -> 7 | E192: 16 | G192: 0 | H192: 0 | I192: 0 | J192: 0 | K192: 0 | L192: 0 | M192: 0 | N192: 0 | O192: 0 | P192: 1 | Q192: 1 | R192: 1 | S192: 1 | T192: 1 | U192: 1 | V192: 0 | W192: 0 | X192: 0 | Y192: 1.666666667 | Z192: 1.666666667 | AA192: 1.666666667 | AB192: 1.666666667 | AC192: 1.666666667 | AD192: 1.666666667 | AE192: 1.666666667 | AF192: 1.666666667 | AG192: 1.666666667 | AH192: 0 | AL192: =MMULT(ModelMatrix ThisRow,Parameters)+AH192 -> 11.55155986 | AM192: 103939.041 | AP192: FALSE | AQ192: 52 | AR192: 97 | AS192: 97
A193: TRUE | B193: 98 | C193: 10 | D193: 8 | E193: 17 | G193: 0 | H193: 0 | I193: 0 | J193: 0 | K193: 0 | L193: 0 | M193: 0 | N193: 0 | O193: 0 | P193: 1 | Q193: 1 | R193: 1 | S193: 1 | T193: 1 | U193: 1 | V193: 1 | W193: 0 | X193: 0 | Y193: 1.777777778 | Z193: 1.777777778 | AA193: 1.777777778 | AB193: 1.777777778 | AC193: 1.777777778 | AD193: 1.777777778 | AE193: 1.777777778 | AF193: 1.777777778 | AG193: 1.777777778 | AH193: 0 | AL193: =MMULT(ModelMatrix ThisRow,Parameters)+AH193 -> 10.91514551 | AM193: 55003.13753 | AP193: FALSE | AQ193: 52 | AR193: 98 | AS193: 98 | CI193: Payment Period Trends (n/a for reference period) | DA193: Payment Period Level (base value of 1 for reference period)
A194: TRUE | B194: 99 | C194: 10 | D194: 9 | E194: 18 | G194: 0 | H194: 0 | I194: 0 | J194: 0 | K194: 0 | L194: 0 | M194: 0 | N194: 0 | O194: 0 | P194: 1 | Q194: 1 | R194: 1 | S194: 1 | T194: 1 | U194: 1 | V194: 1 | W194: 1 | X194: 0 | Y194: 1.888888889 | Z194: 1.888888889 | AA194: 1.888888889 | AB194: 1.888888889 | AC194: 1.888888889 | AD194: 1.888888889 | AE194: 1.888888889 | AF194: 1.888888889 | AG194: 1.888888889 | AH194: 0 | AL194: =MMULT(ModelMatrix ThisRow,Parameters)+AH194 -> 10.16402166 | AM194: 25952.45953 | AP194: FALSE | AQ194: 52 | AR194: 99 | AS194: 99 | CI194: Period | CJ194: Dev | CK194: 1 | CL194: 2 | CM194: 3 | CN194: 4 | CO194: 5 | CP194: 6 | CQ194: 7 | CR194: 8 | CS194: 9 | CT194: 10 | CU194: 11 | CV194: 12 | CW194: 13 | CX194: 14 | CY194: 15 | DA194: Period | DB194: Dev | DC194: 1 | DD194: 2 | DE194: 3 | DF194: 4 | DG194: 5 | DH194: 6 | DI194: 7 | DJ194: 8 | DK194: 9 | DL194: 10 | DM194: 11 | DN194: 12 | DO194: 13 | DP194: 14 | DQ194: 15
A195: TRUE | B195: 100 | C195: 10 | D195: 10 | E195: 19 | G195: 0 | H195: 0 | I195: 0 | J195: 0 | K195: 0 | L195: 0 | M195: 0 | N195: 0 | O195: 0 | P195: 1 | Q195: 1 | R195: 1 | S195: 1 | T195: 1 | U195: 1 | V195: 1 | W195: 1 | X195: 1 | Y195: 2 | Z195: 2 | AA195: 2 | AB195: 2 | AC195: 2 | AD195: 2 | AE195: 2 | AF195: 2 | AG195: 2 | AH195: 0 | AL195: =MMULT(ModelMatrix ThisRow,Parameters)+AH195 -> 9.592774098 | AM195: 14658.47724 | AP195: FALSE | AQ195: 52 | AR195: 100 | AS195: 100 | CI195: Exp | DA195: Exp
A196: TRUE | B196: 101 | C196: 1 | D196: 11 | E196: 11 | G196: =IF(G95="","",INDEX(OFFSET($CN$23:$CW$23,G$94,0),IF(G$93>1,10,$C$196:$C$245))+IF(G$93<>3,0,OFFSET($X$53,$E$196:$E$245-10,G$94-NumExpPars-NumDevPars))+IF(G$93<>2,0,OFFSET($X$73,$D$196:$D$245-10,G$94-NumExpPars))) -> -1 | H196: =IF(H95="","",INDEX(OFFSET($CN$23:$CW$23,H$94,0),IF(H$93>1,10,$C$196:$C$245))+IF(H$93<>3,0,OFFSET($X$53,$E$196:$E$245-10,H$94-NumExpPars-NumDevPars))+IF(H$93<>2,0,OFFSET($X$73,$D$196:$D$245-10,H$94-NumExpPars))) -> -1 | I196: =IF(I95="","",INDEX(OFFSET($CN$23:$CW$23,I$94,0),IF(I$93>1,10,$C$196:$C$245))+IF(I$93<>3,0,OFFSET($X$53,$E$196:$E$245-10,I$94-NumExpPars-NumDevPars))+IF(I$93<>2,0,OFFSET($X$73,$D$196:$D$245-10,I$94-NumExpPars))) -> -1 | J196: =IF(J95="","",INDEX(OFFSET($CN$23:$CW$23,J$94,0),IF(J$93>1,10,$C$196:$C$245))+IF(J$93<>3,0,OFFSET($X$53,$E$196:$E$245-10,J$94-NumExpPars-NumDevPars))+IF(J$93<>2,0,OFFSET($X$73,$D$196:$D$245-10,J$94-NumExpPars))) -> -1 | K196: =IF(K95="","",INDEX(OFFSET($CN$23:$CW$23,K$94,0),IF(K$93>1,10,$C$196:$C$245))+IF(K$93<>3,0,OFFSET($X$53,$E$196:$E$245-10,K$94-NumExpPars-NumDevPars))+IF(K$93<>2,0,OFFSET($X$73,$D$196:$D$245-10,K$94-NumExpPars))) -> -1 | L196: =IF(L95="","",INDEX(OFFSET($CN$23:$CW$23,L$94,0),IF(L$93>1,10,$C$196:$C$245))+IF(L$93<>3,0,OFFSET($X$53,$E$196:$E$245-10,L$94-NumExpPars-NumDevPars))+IF(L$93<>2,0,OFFSET($X$73,$D$196:$D$245-10,L$94-NumExpPars))) -> -1 | M196: =IF(M95="","",INDEX(OFFSET($CN$23:$CW$23,M$94,0),IF(M$93>1,10,$C$196:$C$245))+IF(M$93<>3,0,OFFSET($X$53,$E$196:$E$245-10,M$94-NumExpPars-NumDevPars))+IF(M$93<>2,0,OFFSET($X$73,$D$196:$D$245-10,M$94-NumExpPars))) -> -1 | N196: =IF(N95="","",INDEX(OFFSET($CN$23:$CW$23,N$94,0),IF(N$93>1,10,$C$196:$C$245))+IF(N$93<>3,0,OFFSET($X$53,$E$196:$E$245-10,N$94-NumExpPars-NumDevPars))+IF(N$93<>2,0,OFFSET($X$73,$D$196:$D$245-10,N$94-NumExpPars))) -> -1 | O196: =IF(O95="","",INDEX(OFFSET($CN$23:$CW$23,O$94,0),IF(O$93>1,10,$C$196:$C$245))+IF(O$93<>3,0,OFFSET($X$53,$E$196:$E$245-10,O$94-NumExpPars-NumDevPars))+IF(O$93<>2,0,OFFSET($X$73,$D$196:$D$245-10,O$94-NumExpPars))) -> -1 | P196: =IF(P95="","",INDEX(OFFSET($CN$23:$CW$23,P$94,0),IF(P$93>1,10,$C$196:$C$245))+IF(P$93<>3,0,OFFSET($X$53,$E$196:$E$245-10,P$94-NumExpPars-NumDevPars))+IF(P$93<>2,0,OFFSET($X$73,$D$196:$D$245-10,P$94-NumExpPars))) -> 1 | Q196: =IF(Q95="","",INDEX(OFFSET($CN$23:$CW$23,Q$94,0),IF(Q$93>1,10,$C$196:$C$245))+IF(Q$93<>3,0,OFFSET($X$53,$E$196:$E$245-10,Q$94-NumExpPars-NumDevPars))+IF(Q$93<>2,0,OFFSET($X$73,$D$196:$D$245-10,Q$94-NumExpPars))) -> 1 | R196: =IF(R95="","",INDEX(OFFSET($CN$23:$CW$23,R$94,0),IF(R$93>1,10,$C$196:$C$245))+IF(R$93<>3,0,OFFSET($X$53,$E$196:$E$245-10,R$94-NumExpPars-NumDevPars))+IF(R$93<>2,0,OFFSET($X$73,$D$196:$D$245-10,R$94-NumExpPars))) -> 1 | S196: =IF(S95="","",INDEX(OFFSET($CN$23:$CW$23,S$94,0),IF(S$93>1,10,$C$196:$C$245))+IF(S$93<>3,0,OFFSET($X$53,$E$196:$E$245-10,S$94-NumExpPars-NumDevPars))+IF(S$93<>2,0,OFFSET($X$73,$D$196:$D$245-10,S$94-NumExpPars))) -> 1 | T196: =IF(T95="","",INDEX(OFFSET($CN$23:$CW$23,T$94,0),IF(T$93>1,10,$C$196:$C$245))+IF(T$93<>3,0,OFFSET($X$53,$E$196:$E$245-10,T$94-NumExpPars-NumDevPars))+IF(T$93<>2,0,OFFSET($X$73,$D$196:$D$245-10,T$94-NumExpPars))) -> 1.2 | U196: =IF(U95="","",INDEX(OFFSET($CN$23:$CW$23,U$94,0),IF(U$93>1,10,$C$196:$C$245))+IF(U$93<>3,0,OFFSET($X$53,$E$196:$E$245-10,U$94-NumExpPars-NumDevPars))+IF(U$93<>2,0,OFFSET($X$73,$D$196:$D$245-10,U$94-NumExpPars))) -> 1.2 | V196: =IF(V95="","",INDEX(OFFSET($CN$23:$CW$23,V$94,0),IF(V$93>1,10,$C$196:$C$245))+IF(V$93<>3,0,OFFSET($X$53,$E$196:$E$245-10,V$94-NumExpPars-NumDevPars))+IF(V$93<>2,0,OFFSET($X$73,$D$196:$D$245-10,V$94-NumExpPars))) -> 1.2 | W196: =IF(W95="","",INDEX(OFFSET($CN$23:$CW$23,W$94,0),IF(W$93>1,10,$C$196:$C$245))+IF(W$93<>3,0,OFFSET($X$53,$E$196:$E$245-10,W$94-NumExpPars-NumDevPars))+IF(W$93<>2,0,OFFSET($X$73,$D$196:$D$245-10,W$94-NumExpPars))) -> 1.2 | X196: =IF(X95="","",INDEX(OFFSET($CN$23:$CW$23,X$94,0),IF(X$93>1,10,$C$196:$C$245))+IF(X$93<>3,0,OFFSET($X$53,$E$196:$E$245-10,X$94-NumExpPars-NumDevPars))+IF(X$93<>2,0,OFFSET($X$73,$D$196:$D$245-10,X$94-NumExpPars))) -> 1.2 | Y196: =IF(Y95="","",INDEX(OFFSET($CN$23:$CW$23,Y$94,0),IF(Y$93>1,10,$C$196:$C$245))+IF(Y$93<>3,0,OFFSET($X$53,$E$196:$E$245-10,Y$94-NumExpPars-NumDevPars))+IF(Y$93<>2,0,OFFSET($X$73,$D$196:$D$245-10,Y$94-NumExpPars))) -> 1.111111111 | Z196: =IF(Z95="","",INDEX(OFFSET($CN$23:$CW$23,Z$94,0),IF(Z$93>1,10,$C$196:$C$245))+IF(Z$93<>3,0,OFFSET($X$53,$E$196:$E$245-10,Z$94-NumExpPars-NumDevPars))+IF(Z$93<>2,0,OFFSET($X$73,$D$196:$D$245-10,Z$94-NumExpPars))) -> 1.111111111 | AA196: =IF(AA95="","",INDEX(OFFSET($CN$23:$CW$23,AA$94,0),IF(AA$93>1,10,$C$196:$C$245))+IF(AA$93<>3,0,OFFSET($X$53,$E$196:$E$245-10,AA$94-NumExpPars-NumDevPars))+IF(AA$93<>2,0,OFFSET($X$73,$D$196:$D$245-10,AA$94-NumExpPars))) -> 1.111111111 | AB196: =IF(AB95="","",INDEX(OFFSET($CN$23:$CW$23,AB$94,0),IF(AB$93>1,10,$C$196:$C$245))+IF(AB$93<>3,0,OFFSET($X$53,$E$196:$E$245-10,AB$94-NumExpPars-NumDevPars))+IF(AB$93<>2,0,OFFSET($X$73,$D$196:$D$245-10,AB$94-NumExpPars))) -> 1.111111111 | AC196: =IF(AC95="","",INDEX(OFFSET($CN$23:$CW$23,AC$94,0),IF(AC$93>1,10,$C$196:$C$245))+IF(AC$93<>3,0,OFFSET($X$53,$E$196:$E$245-10,AC$94-NumExpPars-NumDevPars))+IF(AC$93<>2,0,OFFSET($X$73,$D$196:$D$245-10,AC$94-NumExpPars))) -> 1.111111111 | AD196: =IF(AD95="","",INDEX(OFFSET($CN$23:$CW$23,AD$94,0),IF(AD$93>1,10,$C$196:$C$245))+IF(AD$93<>3,0,OFFSET($X$53,$E$196:$E$245-10,AD$94-NumExpPars-NumDevPars))+IF(AD$93<>2,0,OFFSET($X$73,$D$196:$D$245-10,AD$94-NumExpPars))) -> 1.111111111 | AE196: =IF(AE95="","",INDEX(OFFSET($CN$23:$CW$23,AE$94,0),IF(AE$93>1,10,$C$196:$C$245))+IF(AE$93<>3,0,OFFSET($X$53,$E$196:$E$245-10,AE$94-NumExpPars-NumDevPars))+IF(AE$93<>2,0,OFFSET($X$73,$D$196:$D$245-10,AE$94-NumExpPars))) -> 1.111111111 | AF196: =IF(AF95="","",INDEX(OFFSET($CN$23:$CW$23,AF$94,0),IF(AF$93>1,10,$C$196:$C$245))+IF(AF$93<>3,0,OFFSET($X$53,$E$196:$E$245-10,AF$94-NumExpPars-NumDevPars))+IF(AF$93<>2,0,OFFSET($X$73,$D$196:$D$245-10,AF$94-NumExpPars))) -> 1.111111111 | AG196: =IF(AG95="","",INDEX(OFFSET($CN$23:$CW$23,AG$94,0),IF(AG$93>1,10,$C$196:$C$245))+IF(AG$93<>3,0,OFFSET($X$53,$E$196:$E$245-10,AG$94-NumExpPars-NumDevPars))+IF(AG$93<>2,0,OFFSET($X$73,$D$196:$D$245-10,AG$94-NumExpPars))) -> 1.111111111 | AH196: =OFFSET($W$53,E196-10,0)+OFFSET($W$73,D196-10,0) -> 0.0865 | AL196: =MMULT(ModelMatrix ThisRow,Parameters)+AH196 -> 8.622586237 | AM196: =EXP(AL196:AL245) -> 5555.736279 | CI196: 1 | CK196: =IF(CK194>=FirstDiagIncluded,IF(CK194<>RefPay,EXP(INDEX(Parameters,NumExpPars+NumDevPars+INDEX(MapDiagsToPayPeriodPars,CK194)-FirstPayParIncluded+1)),""),EXP(INDEX($G$82:$G$90,CK194))) ->  | CL196: 6.170275026 | CM196: 5.709073232 | CN196: 5.639601617 | CO196: 5.558697041 | CP196: 5.483658094 | CQ196: 5.257999102 | CR196: 5.092861709 | CS196: 5.108978506 | CT196: 5.079379267 | CU196: =IF(AND(UseTailfactor="Yes",CT197<>""),CT197,"") -> 5.445150575 | CV196: =IF(CU197<>"",CU197,"") -> 5.445150575 | CW196: 5.445150575 | CX196: 5.445150575 | CY196: 5.445150575 | DA196: 1 | DC196: =IF(DC194>RefPay,DB196*CK196,IF(DC194<RefPay,DD196/CK196,1)) -> 1 | DD196: 6.170275026 | DE196: 35.22655199 | DF196: 198.6637195 | DG196: 1104.31143 | DH196: 6055.666311 | DI196: 31840.68803 | DJ196: 162160.2208 | DK196: 828473.0829 | DL196: 4208129 | DM196: =IF(AND(UseTailfactor="Yes",DL197<>""),DL197,"") -> 22913896.05 | DN196: =IF(DM197<>"",DM197,"") -> 124769614.2 | DO196: =IF(DN197<>"",DN197,"") -> 679389336.7 | DP196: =IF(DO197<>"",DO197,"") -> 3699377238 | DQ196: =IF(DP197<>"",DP197,"") -> 2.014366609e+10
A197: TRUE | B197: 102 | C197: 2 | D197: 11 | E197: 12 | G197: 0 | H197: -1 | I197: -1 | J197: -1 | K197: -1 | L197: -1 | M197: -1 | N197: -1 | O197: -1 | P197: 1 | Q197: 1 | R197: 1 | S197: 1 | T197: 1.2 | U197: 1.2 | V197: 1.2 | W197: 1.2 | X197: 1.2 | Y197: 1.222222222 | Z197: 1.222222222 | AA197: 1.222222222 | AB197: 1.222222222 | AC197: 1.222222222 | AD197: 1.222222222 | AE197: 1.222222222 | AF197: 1.222222222 | AG197: 1.222222222 | AH197: =OFFSET($W$53,E197-10,0)+OFFSET($W$73,D197-10,0) -> 0.0865 | AL197: =MMULT(ModelMatrix ThisRow,Parameters)+AH197 -> 8.63854823 | AM197: 5645.128447 | CI197: 2 | CK197: =IF(CL196<>"",CL196,"") -> 6.170275026 | CL197: =IF(CM196<>"",CM196,"") -> 5.709073232 | CM197: 5.639601617 | CN197: 5.558697041 | CO197: 5.483658094 | CP197: 5.257999102 | CQ197: 5.092861709 | CR197: 5.108978506 | CS197: 5.079379267 | CT197: =EXP(G54:G62) -> 5.445150575 | CU197: 5.445150575 | CV197: 5.445150575 | CW197: 5.445150575 | CX197: 5.445150575 | CY197: 5.445150575 | DA197: 2 | DC197: =IF(DD196<>"",DD196,"") -> 6.170275026 | DD197: =IF(DE196<>"",DE196,"") -> 35.22655199 | DE197: =IF(DF196<>"",DF196,"") -> 198.6637195 | DF197: =IF(DG196<>"",DG196,"") -> 1104.31143 | DG197: =IF(DH196<>"",DH196,"") -> 6055.666311 | DH197: =IF(DI196<>"",DI196,"") -> 31840.68803 | DI197: =IF(DJ196<>"",DJ196,"") -> 162160.2208 | DJ197: =IF(DK196<>"",DK196,"") -> 828473.0829 | DK197: =IF(DL196<>"",DL196,"") -> 4208129 | DL197: =DL196*CT197 -> 22913896.05 | DM197: 124769614.2 | DN197: 679389336.7 | DO197: 3699377238 | DP197: 2.014366609e+10 | DQ197: 1.09685295e+11
A198: TRUE | B198: 103 | C198: 3 | D198: 11 | E198: 13 | G198: 0 | H198: 0 | I198: -1 | J198: -1 | K198: -1 | L198: -1 | M198: -1 | N198: -1 | O198: -1 | P198: 1 | Q198: 1 | R198: 1 | S198: 1 | T198: 1.2 | U198: 1.2 | V198: 1.2 | W198: 1.2 | X198: 1.2 | Y198: 1.333333333 | Z198: 1.333333333 | AA198: 1.333333333 | AB198: 1.333333333 | AC198: 1.333333333 | AD198: 1.333333333 | AE198: 1.333333333 | AF198: 1.333333333 | AG198: 1.333333333 | AH198: =OFFSET($W$53,E198-10,0)+OFFSET($W$73,D198-10,0) -> 0.0865 | AL198: =MMULT(ModelMatrix ThisRow,Parameters)+AH198 -> 8.596156299 | AM198: 5410.821988 | CI198: 3 | CK198: =IF(CL197<>"",CL197,"") -> 5.709073232 | CL198: 5.639601617 | CM198: 5.558697041 | CN198: 5.483658094 | CO198: 5.257999102 | CP198: 5.092861709 | CQ198: 5.108978506 | CR198: 5.079379267 | CS198: 5.445150575 | CT198: 5.445150575 | CU198: 5.445150575 | CV198: 5.445150575 | CW198: 5.445150575 | CX198: 5.445150575 | CY198: 5.445150575 | DA198: 3 | DC198: =IF(DD197<>"",DD197,"") -> 35.22655199 | DD198: 198.6637195 | DE198: 1104.31143 | DF198: 6055.666311 | DG198: 31840.68803 | DH198: 162160.2208 | DI198: 828473.0829 | DJ198: 4208129 | DK198: 22913896.05 | DL198: =DL197*CT198 -> 124769614.2 | DM198: 679389336.7 | DN198: 3699377238 | DO198: 2.014366609e+10 | DP198: 1.09685295e+11 | DQ198: 5.972529473e+11
A199: TRUE | B199: 104 | C199: 4 | D199: 11 | E199: 14 | G199: 0 | H199: 0 | I199: 0 | J199: -1 | K199: -1 | L199: -1 | M199: -1 | N199: -1 | O199: -1 | P199: 1 | Q199: 1 | R199: 1 | S199: 1 | T199: 1.2 | U199: 1.2 | V199: 1.2 | W199: 1.2 | X199: 1.2 | Y199: 1.444444444 | Z199: 1.444444444 | AA199: 1.444444444 | AB199: 1.444444444 | AC199: 1.444444444 | AD199: 1.444444444 | AE199: 1.444444444 | AF199: 1.444444444 | AG199: 1.444444444 | AH199: 0.0865 | AL199: =MMULT(ModelMatrix ThisRow,Parameters)+AH199 -> 8.666987783 | AM199: 5807.978085 | CI199: 4 | CK199: 5.639601617 | CL199: 5.558697041 | CM199: 5.483658094 | CN199: 5.257999102 | CO199: 5.092861709 | CP199: 5.108978506 | CQ199: 5.079379267 | CR199: 5.445150575 | CS199: 5.445150575 | CT199: 5.445150575 | CU199: 5.445150575 | CV199: 5.445150575 | CW199: 5.445150575 | CX199: 5.445150575 | CY199: 5.445150575 | DA199: 4 | DC199: 198.6637195 | DD199: 1104.31143 | DE199: 6055.666311 | DF199: 31840.68803 | DG199: 162160.2208 | DH199: 828473.0829 | DI199: 4208129 | DJ199: 22913896.05 | DK199: 124769614.2 | DL199: 679389336.7 | DM199: 3699377238 | DN199: 2.014366609e+10 | DO199: 1.09685295e+11 | DP199: 5.972529473e+11 | DQ199: 3.25213223e+12
A200: TRUE | B200: 105 | C200: 5 | D200: 11 | E200: 15 | G200: 0 | H200: 0 | I200: 0 | J200: 0 | K200: -1 | L200: -1 | M200: -1 | N200: -1 | O200: -1 | P200: 1 | Q200: 1 | R200: 1 | S200: 1 | T200: 1.2 | U200: 1.2 | V200: 1.2 | W200: 1.2 | X200: 1.2 | Y200: 1.555555556 | Z200: 1.555555556 | AA200: 1.555555556 | AB200: 1.555555556 | AC200: 1.555555556 | AD200: 1.555555556 | AE200: 1.555555556 | AF200: 1.555555556 | AG200: 1.555555556 | AH200: 0.0865 | AL200: =MMULT(ModelMatrix ThisRow,Parameters)+AH200 -> 8.720099864 | AM200: 6124.790705 | CI200: 5 | CK200: 5.558697041 | CL200: 5.483658094 | CM200: 5.257999102 | CN200: 5.092861709 | CO200: 5.108978506 | CP200: 5.079379267 | CQ200: 5.445150575 | CR200: 5.445150575 | CS200: 5.445150575 | CT200: 5.445150575 | CU200: 5.445150575 | CV200: 5.445150575 | CW200: 5.445150575 | CX200: 5.445150575 | CY200: =IF(CX201<>"",CX201,"") -> 5.445150575 | DA200: 5 | DC200: 1104.31143 | DD200: 6055.666311 | DE200: 31840.68803 | DF200: 162160.2208 | DG200: 828473.0829 | DH200: 4208129 | DI200: 22913896.05 | DJ200: 124769614.2 | DK200: 679389336.7 | DL200: 3699377238 | DM200: 2.014366609e+10 | DN200: 1.09685295e+11 | DO200: 5.972529473e+11 | DP200: 3.25213223e+12 | DQ200: =IF(DP201<>"",DP201,"") -> 1.770834968e+13
A201: TRUE | B201: 106 | C201: 6 | D201: 11 | E201: 16 | G201: 0 | H201: 0 | I201: 0 | J201: 0 | K201: 0 | L201: -1 | M201: -1 | N201: -1 | O201: -1 | P201: 1 | Q201: 1 | R201: 1 | S201: 1 | T201: 1.2 | U201: 1.2 | V201: 1.2 | W201: 1.2 | X201: 1.2 | Y201: 1.666666667 | Z201: 1.666666667 | AA201: 1.666666667 | AB201: 1.666666667 | AC201: 1.666666667 | AD201: 1.666666667 | AE201: 1.666666667 | AF201: 1.666666667 | AG201: 1.666666667 | AH201: 0.0865 | AL201: =MMULT(ModelMatrix ThisRow,Parameters)+AH201 -> 8.803833012 | AM201: 6659.721943 | CI201: 6 | CK201: 5.483658094 | CL201: 5.257999102 | CM201: 5.092861709 | CN201: 5.108978506 | CO201: 5.079379267 | CP201: 5.445150575 | CQ201: 5.445150575 | CR201: 5.445150575 | CS201: 5.445150575 | CT201: 5.445150575 | CU201: 5.445150575 | CV201: 5.445150575 | CW201: 5.445150575 | CX201: 5.445150575 | CY201: =IF(UseTailfactor="Yes",EXP(G63:G67),"") -> 5.445150575 | DA201: 6 | DC201: 6055.666311 | DD201: 31840.68803 | DE201: 162160.2208 | DF201: 828473.0829 | DG201: 4208129 | DH201: 22913896.05 | DI201: 124769614.2 | DJ201: 679389336.7 | DK201: 3699377238 | DL201: 2.014366609e+10 | DM201: 1.09685295e+11 | DN201: 5.972529473e+11 | DO201: 3.25213223e+12 | DP201: 1.770834968e+13 | DQ201: =IF(UseTailfactor="Yes",DQ200*CY201,"") -> 9.642463045e+13
A202: TRUE | B202: 107 | C202: 7 | D202: 11 | E202: 17 | G202: 0 | H202: 0 | I202: 0 | J202: 0 | K202: 0 | L202: 0 | M202: -1 | N202: -1 | O202: -1 | P202: 1 | Q202: 1 | R202: 1 | S202: 1 | T202: 1.2 | U202: 1.2 | V202: 1.2 | W202: 1.2 | X202: 1.2 | Y202: 1.777777778 | Z202: 1.777777778 | AA202: 1.777777778 | AB202: 1.777777778 | AC202: 1.777777778 | AD202: 1.777777778 | AE202: 1.777777778 | AF202: 1.777777778 | AG202: 1.777777778 | AH202: 0.0865 | AL202: =MMULT(ModelMatrix ThisRow,Parameters)+AH202 -> 8.857757194 | AM202: 7028.701038 | CI202: 7 | CK202: 5.257999102 | CL202: 5.092861709 | CM202: 5.108978506 | CN202: 5.079379267 | CO202: 5.445150575 | CP202: 5.445150575 | CQ202: 5.445150575 | CR202: 5.445150575 | CS202: 5.445150575 | CT202: 5.445150575 | CU202: 5.445150575 | CV202: 5.445150575 | CW202: 5.445150575 | CX202: =IF(CY201<>"",CY201,"") -> 5.445150575 | CY202: 5.445150575 | DA202: 7 | DC202: 31840.68803 | DD202: 162160.2208 | DE202: 828473.0829 | DF202: 4208129 | DG202: 22913896.05 | DH202: 124769614.2 | DI202: 679389336.7 | DJ202: 3699377238 | DK202: 2.014366609e+10 | DL202: 1.09685295e+11 | DM202: 5.972529473e+11 | DN202: 3.25213223e+12 | DO202: 1.770834968e+13 | DP202: =IF(DQ201<>"",DQ201,"") -> 9.642463045e+13 | DQ202: =IF(UseTailfactor="Yes",DQ201*CY202,"") -> 5.25046632e+14
A203: TRUE | B203: 108 | C203: 8 | D203: 11 | E203: 18 | G203: 0 | H203: 0 | I203: 0 | J203: 0 | K203: 0 | L203: 0 | M203: 0 | N203: -1 | O203: -1 | P203: 1 | Q203: 1 | R203: 1 | S203: 1 | T203: 1.2 | U203: 1.2 | V203: 1.2 | W203: 1.2 | X203: 1.2 | Y203: 1.888888889 | Z203: 1.888888889 | AA203: 1.888888889 | AB203: 1.888888889 | AC203: 1.888888889 | AD203: 1.888888889 | AE203: 1.888888889 | AF203: 1.888888889 | AG203: 1.888888889 | AH203: 0.0865 | AL203: =MMULT(ModelMatrix ThisRow,Parameters)+AH203 -> 8.896982008 | AM203: 7309.879057 | CI203: 8 | CK203: 5.092861709 | CL203: 5.108978506 | CM203: 5.079379267 | CN203: 5.445150575 | CO203: 5.445150575 | CP203: 5.445150575 | CQ203: 5.445150575 | CR203: 5.445150575 | CS203: 5.445150575 | CT203: 5.445150575 | CU203: 5.445150575 | CV203: 5.445150575 | CW203: 5.445150575 | CX203: 5.445150575 | CY203: 5.445150575 | DA203: 8 | DC203: 162160.2208 | DD203: 828473.0829 | DE203: 4208129 | DF203: 22913896.05 | DG203: 124769614.2 | DH203: 679389336.7 | DI203: 3699377238 | DJ203: 2.014366609e+10 | DK203: 1.09685295e+11 | DL203: 5.972529473e+11 | DM203: 3.25213223e+12 | DN203: 1.770834968e+13 | DO203: =IF(DP202<>"",DP202,"") -> 9.642463045e+13 | DP203: 5.25046632e+14 | DQ203: =IF(UseTailfactor="Yes",DQ202*CY203,"") -> 2858957970160034
A204: TRUE | B204: 109 | C204: 9 | D204: 11 | E204: 19 | G204: 0 | H204: 0 | I204: 0 | J204: 0 | K204: 0 | L204: 0 | M204: 0 | N204: 0 | O204: -1 | P204: 1 | Q204: 1 | R204: 1 | S204: 1 | T204: 1.2 | U204: 1.2 | V204: 1.2 | W204: 1.2 | X204: 1.2 | Y204: 2 | Z204: 2 | AA204: 2 | AB204: 2 | AC204: 2 | AD204: 2 | AE204: 2 | AF204: 2 | AG204: 2 | AH204: 0.0865 | AL204: =MMULT(ModelMatrix ThisRow,Parameters)+AH204 -> 8.933574854 | AM204: 7582.322677 | CI204: 9 | CK204: 5.108978506 | CL204: 5.079379267 | CM204: 5.445150575 | CN204: 5.445150575 | CO204: 5.445150575 | CP204: 5.445150575 | CQ204: 5.445150575 | CR204: 5.445150575 | CS204: 5.445150575 | CT204: 5.445150575 | CU204: 5.445150575 | CV204: 5.445150575 | CW204: =IF(CX203<>"",CX203,"") -> 5.445150575 | CX204: 5.445150575 | CY204: 5.445150575 | DA204: 9 | DC204: 828473.0829 | DD204: 4208129 | DE204: 22913896.05 | DF204: 124769614.2 | DG204: 679389336.7 | DH204: 3699377238 | DI204: 2.014366609e+10 | DJ204: 1.09685295e+11 | DK204: 5.972529473e+11 | DL204: 3.25213223e+12 | DM204: 1.770834968e+13 | DN204: =IF(DO203<>"",DO203,"") -> 9.642463045e+13 | DO204: 5.25046632e+14 | DP204: 2858957970160034 | DQ204: =IF(UseTailfactor="Yes",DQ203*CY204,"") -> 1.556745664e+16
A205: TRUE | B205: 110 | C205: 10 | D205: 11 | E205: 20 | G205: 0 | H205: 0 | I205: 0 | J205: 0 | K205: 0 | L205: 0 | M205: 0 | N205: 0 | O205: 0 | P205: 1 | Q205: 1 | R205: 1 | S205: 1 | T205: 1.2 | U205: 1.2 | V205: 1.2 | W205: 1.2 | X205: 1.2 | Y205: 2.111111111 | Z205: 2.111111111 | AA205: 2.111111111 | AB205: 2.111111111 | AC205: 2.111111111 | AD205: 2.111111111 | AE205: 2.111111111 | AF205: 2.111111111 | AG205: 2.111111111 | AH205: 0.0865 | AL205: =MMULT(ModelMatrix ThisRow,Parameters)+AH205 -> 9.021555932 | AM205: 8279.649635 | CI205: 10 | CK205: 5.079379267 | CL205: 5.445150575 | CM205: 5.445150575 | CN205: 5.445150575 | CO205: 5.445150575 | CP205: 5.445150575 | CQ205: 5.445150575 | CR205: 5.445150575 | CS205: 5.445150575 | CT205: 5.445150575 | CU205: 5.445150575 | CV205: 5.445150575 | CW205: 5.445150575 | CX205: 5.445150575 | CY205: 5.445150575 | DA205: 10 | DC205: 4208129 | DD205: 22913896.05 | DE205: 124769614.2 | DF205: 679389336.7 | DG205: 3699377238 | DH205: 2.014366609e+10 | DI205: 1.09685295e+11 | DJ205: 5.972529473e+11 | DK205: 3.25213223e+12 | DL205: 1.770834968e+13 | DM205: =IF(DN204<>"",DN204,"") -> 9.642463045e+13 | DN205: 5.25046632e+14 | DO205: 2858957970160034 | DP205: 1.556745664e+16 | DQ205: =IF(UseTailfactor="Yes",DQ204*CY205,"") -> 8.476714546e+16
... 69 more rows
